Body Name,Vendor Number,Vendor Name,Cost Centre,Service Label,BV Code,Amount,Period
Slough Borough Council,806064,24 X 7 Buckinghamshire Ltd,F123,Education & Inclusion,Supplies and Services,"2,017.04",Jun-22
Slough Borough Council,1869,3Ms Gold Services Limited,P006,Capital,Capital Charges,"8,497.23",Jun-22
Slough Borough Council,806901,4way Consulting Ltd,P240,Capital,Capital Charges,978.41,Jun-22
Slough Borough Council,1055,A J Chapman,F123,Education & Inclusion,Supplies and Services,940.50,Jun-22
Slough Borough Council,1055,A J Chapman,F123,Education & Inclusion,Supplies and Services,"4,180.00",Jun-22
Slough Borough Council,1055,A J Chapman,F123,Education & Inclusion,Supplies and Services,"1,732.50",Jun-22
Slough Borough Council,1055,A J Chapman,F123,Education & Inclusion,Supplies and Services,"61,211.56",Jun-22
Slough Borough Council,536,Ability Housing Association,M42E,Adult Social Care Operations,Supplies and Services,"2,851.86",Jun-22
Slough Borough Council,536,Ability Housing Association,M42E,Adult Social Care Operations,Supplies and Services,"3,490.57",Jun-22
Slough Borough Council,536,Ability Housing Association,M42E,Adult Social Care Operations,Supplies and Services,"2,630.94",Jun-22
Slough Borough Council,536,Ability Housing Association,M42E,Adult Social Care Operations,Supplies and Services,"2,731.36",Jun-22
Slough Borough Council,536,Ability Housing Association,M42E,Adult Social Care Operations,Supplies and Services,"2,691.19",Jun-22
Slough Borough Council,536,Ability Housing Association,M42E,Adult Social Care Operations,Supplies and Services,"2,530.52",Jun-22
Slough Borough Council,536,Ability Housing Association,M42E,Adult Social Care Operations,Supplies and Services,"1,446.01",Jun-22
Slough Borough Council,536,Ability Housing Association,M42E,Adult Social Care Operations,Supplies and Services,"2,758.46",Jun-22
Slough Borough Council,536,Ability Housing Association,M42E,Adult Social Care Operations,Supplies and Services,"2,517.48",Jun-22
Slough Borough Council,536,Ability Housing Association,M42E,Adult Social Care Operations,Supplies and Services,"1,272.30",Jun-22
Slough Borough Council,536,Ability Housing Association,M42E,Adult Social Care Operations,Supplies and Services,"3,039.65",Jun-22
Slough Borough Council,536,Ability Housing Association,M42E,Adult Social Care Operations,Supplies and Services,"2,698.23",Jun-22
Slough Borough Council,536,Ability Housing Association,M42E,Adult Social Care Operations,Supplies and Services,"2,675.13",Jun-22
Slough Borough Council,536,Ability Housing Association,M42E,Adult Social Care Operations,Supplies and Services,"1,894.89",Jun-22
Slough Borough Council,536,Ability Housing Association,M42E,Adult Social Care Operations,Supplies and Services,"2,437.14",Jun-22
Slough Borough Council,536,Ability Housing Association,M42E,Adult Social Care Operations,Supplies and Services,"1,855.72",Jun-22
Slough Borough Council,536,Ability Housing Association,M42E,Adult Social Care Operations,Supplies and Services,"3,076.80",Jun-22
Slough Borough Council,536,Ability Housing Association,M42E,Adult Social Care Operations,Supplies and Services,"1,383.82",Jun-22
Slough Borough Council,536,Ability Housing Association,M44E,Adult Social Care Operations,Supplies and Services,"1,815.55",Jun-22
Slough Borough Council,536,Ability Housing Association,M44E,Adult Social Care Operations,Supplies and Services,"1,883.84",Jun-22
Slough Borough Council,536,Ability Housing Association,M44E,Adult Social Care Operations,Supplies and Services,"2,221.24",Jun-22
Slough Borough Council,536,Ability Housing Association,M44E,Adult Social Care Operations,Supplies and Services,"2,301.58",Jun-22
Slough Borough Council,3292,Achieving For Children,F210,Community,Supplies and Services,"8,400.00",Jun-22
Slough Borough Council,807554,Acorn Care & Education Ltd,M26E,Adult Social Care Operations,Supplies and Services,"-5,735.71",Jun-22
Slough Borough Council,807554,Acorn Care & Education Ltd,M26E,Adult Social Care Operations,Supplies and Services,"5,735.71",Jun-22
Slough Borough Council,807554,Acorn Care & Education Ltd,M26E,Adult Social Care Operations,Supplies and Services,"5,735.71",Jun-22
Slough Borough Council,807554,Acorn Care & Education Ltd,F462,Children & Families,Supplies and Services,"4,671.43",Jun-22
Slough Borough Council,807554,Acorn Care & Education Ltd,F462,Children & Families,Supplies and Services,"4,074.29",Jun-22
Slough Borough Council,807554,Acorn Care & Education Ltd,F462,Children & Families,Supplies and Services,"4,671.43",Jun-22
Slough Borough Council,807554,Acorn Care & Education Ltd,F462,Children & Families,Supplies and Services,"3,942.86",Jun-22
Slough Borough Council,807554,Acorn Care & Education Ltd,F462,Children & Families,Supplies and Services,"4,827.14",Jun-22
Slough Borough Council,807554,Acorn Care & Education Ltd,F462,Children & Families,Supplies and Services,"3,942.86",Jun-22
Slough Borough Council,807554,Acorn Care & Education Ltd,F462,Children & Families,Supplies and Services,"-1,634.24",Jun-22
Slough Borough Council,807554,Acorn Care & Education Ltd,F462,Children & Families,Supplies and Services,"-5,066.15",Jun-22
Slough Borough Council,807554,Acorn Care & Education Ltd,F462,Children & Families,Supplies and Services,"4,671.43",Jun-22
Slough Borough Council,807554,Acorn Care & Education Ltd,F462,Children & Families,Supplies and Services,"4,671.43",Jun-22
Slough Borough Council,807554,Acorn Care & Education Ltd,F462,Children & Families,Supplies and Services,"4,827.14",Jun-22
Slough Borough Council,807554,Acorn Care & Education Ltd,F462,Children & Families,Supplies and Services,"4,827.14",Jun-22
Slough Borough Council,807554,Acorn Care & Education Ltd,F462,Children & Families,Supplies and Services,"21,586.67",Jun-22
Slough Borough Council,807554,Acorn Care & Education Ltd,F462,Children & Families,Supplies and Services,"14,235.80",Jun-22
Slough Borough Council,807554,Acorn Care & Education Ltd,F462,Children & Families,Supplies and Services,"3,286.67",Jun-22
Slough Borough Council,807554,Acorn Care & Education Ltd,F462,Children & Families,Supplies and Services,"14,235.80",Jun-22
Slough Borough Council,807554,Acorn Care & Education Ltd,F462,Children & Families,Supplies and Services,"14,493.24",Jun-22
Slough Borough Council,807554,Acorn Care & Education Ltd,F558,Children & Families,Supplies and Services,"4,074.29",Jun-22
Slough Borough Council,807554,Acorn Care & Education Ltd,F558,Children & Families,Supplies and Services,"2,756.00",Jun-22
Slough Borough Council,807554,Acorn Care & Education Ltd,F558,Children & Families,Supplies and Services,"4,028.00",Jun-22
Slough Borough Council,807554,Acorn Care & Education Ltd,F558,Children & Families,Supplies and Services,"3,306.00",Jun-22
Slough Borough Council,807554,Acorn Care & Education Ltd,F558,Children & Families,Supplies and Services,"2,756.00",Jun-22
Slough Borough Council,807554,Acorn Care & Education Ltd,F558,Children & Families,Supplies and Services,"4,876.00",Jun-22
Slough Borough Council,807554,Acorn Care & Education Ltd,F558,Children & Families,Supplies and Services,"4,876.00",Jun-22
Slough Borough Council,807554,Acorn Care & Education Ltd,F558,Children & Families,Supplies and Services,"4,028.00",Jun-22
Slough Borough Council,807554,Acorn Care & Education Ltd,F558,Children & Families,Supplies and Services,"2,756.00",Jun-22
Slough Borough Council,807554,Acorn Care & Education Ltd,F558,Children & Families,Supplies and Services,"4,664.00",Jun-22
Slough Borough Council,807554,Acorn Care & Education Ltd,F558,Children & Families,Supplies and Services,"4,664.00",Jun-22
Slough Borough Council,807554,Acorn Care & Education Ltd,F558,Children & Families,Supplies and Services,"3,828.00",Jun-22
Slough Borough Council,807554,Acorn Care & Education Ltd,F558,Children & Families,Supplies and Services,"4,664.00",Jun-22
Slough Borough Council,807554,Acorn Care & Education Ltd,F558,Children & Families,Supplies and Services,"2,756.00",Jun-22
Slough Borough Council,807554,Acorn Care & Education Ltd,F558,Children & Families,Supplies and Services,"4,028.00",Jun-22
Slough Borough Council,807554,Acorn Care & Education Ltd,F558,Children & Families,Supplies and Services,"4,876.00",Jun-22
Slough Borough Council,807554,Acorn Care & Education Ltd,F558,Children & Families,Supplies and Services,"4,664.00",Jun-22
Slough Borough Council,807554,Acorn Care & Education Ltd,F558,Children & Families,Supplies and Services,"3,306.00",Jun-22
Slough Borough Council,807554,Acorn Care & Education Ltd,F558,Children & Families,Supplies and Services,"2,262.00",Jun-22
Slough Borough Council,807554,Acorn Care & Education Ltd,F558,Children & Families,Supplies and Services,"4,002.00",Jun-22
Slough Borough Council,807554,Acorn Care & Education Ltd,F558,Children & Families,Supplies and Services,"2,610.00",Jun-22
Slough Borough Council,807554,Acorn Care & Education Ltd,F558,Children & Families,Supplies and Services,"2,262.00",Jun-22
Slough Borough Council,807554,Acorn Care & Education Ltd,F558,Children & Families,Supplies and Services,"1,696.00",Jun-22
Slough Borough Council,807554,Acorn Care & Education Ltd,F558,Children & Families,Supplies and Services,"2,544.00",Jun-22
Slough Borough Council,807554,Acorn Care & Education Ltd,F558,Children & Families,Supplies and Services,"3,180.00",Jun-22
Slough Borough Council,807554,Acorn Care & Education Ltd,F558,Children & Families,Supplies and Services,"2,756.00",Jun-22
Slough Borough Council,807554,Acorn Care & Education Ltd,F558,Children & Families,Supplies and Services,"2,120.00",Jun-22
Slough Borough Council,807554,Acorn Care & Education Ltd,F558,Children & Families,Supplies and Services,"2,756.00",Jun-22
Slough Borough Council,807554,Acorn Care & Education Ltd,F558,Children & Families,Supplies and Services,"4,028.00",Jun-22
Slough Borough Council,807554,Acorn Care & Education Ltd,F558,Children & Families,Supplies and Services,"4,876.00",Jun-22
Slough Borough Council,807554,Acorn Care & Education Ltd,F558,Children & Families,Supplies and Services,"4,664.00",Jun-22
Slough Borough Council,807554,Acorn Care & Education Ltd,F558,Children & Families,Supplies and Services,"4,876.00",Jun-22
Slough Borough Council,807554,Acorn Care & Education Ltd,F558,Children & Families,Supplies and Services,"4,002.00",Jun-22
Slough Borough Council,807554,Acorn Care & Education Ltd,F558,Children & Families,Supplies and Services,"3,828.00",Jun-22
Slough Borough Council,807554,Acorn Care & Education Ltd,F558,Children & Families,Supplies and Services,"2,756.00",Jun-22
Slough Borough Council,807554,Acorn Care & Education Ltd,F558,Children & Families,Supplies and Services,"4,028.00",Jun-22
Slough Borough Council,807554,Acorn Care & Education Ltd,F558,Children & Families,Supplies and Services,"4,876.00",Jun-22
Slough Borough Council,807554,Acorn Care & Education Ltd,F558,Children & Families,Supplies and Services,"4,664.00",Jun-22
Slough Borough Council,807554,Acorn Care & Education Ltd,F558,Children & Families,Supplies and Services,"4,452.00",Jun-22
Slough Borough Council,807554,Acorn Care & Education Ltd,F558,Children & Families,Supplies and Services,"3,654.00",Jun-22
Slough Borough Council,807554,Acorn Care & Education Ltd,F558,Children & Families,Supplies and Services,"4,452.00",Jun-22
Slough Borough Council,807554,Acorn Care & Education Ltd,F558,Children & Families,Supplies and Services,"4,452.00",Jun-22
Slough Borough Council,807554,Acorn Care & Education Ltd,F558,Children & Families,Supplies and Services,"1,566.00",Jun-22
Slough Borough Council,807554,Acorn Care & Education Ltd,F558,Children & Families,Supplies and Services,"4,452.00",Jun-22
Slough Borough Council,807554,Acorn Care & Education Ltd,F558,Children & Families,Supplies and Services,"4,452.00",Jun-22
Slough Borough Council,807554,Acorn Care & Education Ltd,F558,Children & Families,Supplies and Services,"1,566.00",Jun-22
Slough Borough Council,807554,Acorn Care & Education Ltd,F558,Children & Families,Supplies and Services,"4,452.00",Jun-22
Slough Borough Council,807554,Acorn Care & Education Ltd,F558,Children & Families,Supplies and Services,"2,756.00",Jun-22
Slough Borough Council,807554,Acorn Care & Education Ltd,F558,Children & Families,Supplies and Services,"3,654.00",Jun-22
Slough Borough Council,807554,Acorn Care & Education Ltd,F558,Children & Families,Supplies and Services,"4,452.00",Jun-22
Slough Borough Council,807554,Acorn Care & Education Ltd,F558,Children & Families,Supplies and Services,"4,452.00",Jun-22
Slough Borough Council,807554,Acorn Care & Education Ltd,F558,Children & Families,Supplies and Services,"4,452.00",Jun-22
Slough Borough Council,807554,Acorn Care & Education Ltd,F558,Children & Families,Supplies and Services,"4,452.00",Jun-22
Slough Borough Council,807554,Acorn Care & Education Ltd,F558,Children & Families,Supplies and Services,"4,452.00",Jun-22
Slough Borough Council,807554,Acorn Care & Education Ltd,F558,Children & Families,Supplies and Services,"4,028.00",Jun-22
Slough Borough Council,807554,Acorn Care & Education Ltd,F558,Children & Families,Supplies and Services,"4,876.00",Jun-22
Slough Borough Council,807554,Acorn Care & Education Ltd,F558,Children & Families,Supplies and Services,"2,756.00",Jun-22
Slough Borough Council,807554,Acorn Care & Education Ltd,F558,Children & Families,Supplies and Services,"4,452.00",Jun-22
Slough Borough Council,807554,Acorn Care & Education Ltd,F558,Children & Families,Supplies and Services,"4,664.00",Jun-22
Slough Borough Council,807554,Acorn Care & Education Ltd,F558,Children & Families,Supplies and Services,"4,002.00",Jun-22
Slough Borough Council,808103,Actian Europe Limited,J200,Place Management,Supplies and Services,"15,000.00",Jun-22
Slough Borough Council,807832,Adaptec Mobility Ltd,P006,Capital,Capital Charges,"12,266.30",Jun-22
Slough Borough Council,807832,Adaptec Mobility Ltd,P006,Capital,Capital Charges,"5,639.15",Jun-22
Slough Borough Council,2855,Advance Housing & Support Ltd,M42F,Adult Social Care Operations,Supplies and Services,635.55,Jun-22
Slough Borough Council,2855,Advance Housing & Support Ltd,M42F,Adult Social Care Operations,Supplies and Services,"1,513.47",Jun-22
Slough Borough Council,2855,Advance Housing & Support Ltd,M42F,Adult Social Care Operations,Supplies and Services,"1,806.11",Jun-22
Slough Borough Council,2855,Advance Housing & Support Ltd,M42F,Adult Social Care Operations,Supplies and Services,"1,001.35",Jun-22
Slough Borough Council,2855,Advance Housing & Support Ltd,M42F,Adult Social Care Operations,Supplies and Services,"1,108.41",Jun-22
Slough Borough Council,2855,Advance Housing & Support Ltd,M42F,Adult Social Care Operations,Supplies and Services,"1,067.51",Jun-22
Slough Borough Council,2855,Advance Housing & Support Ltd,M42F,Adult Social Care Operations,Supplies and Services,"1,850.35",Jun-22
Slough Borough Council,807002,Advanced Card Bureau LTD,J020,Place Management,Supplies and Services,"4,965.70",Jun-22
Slough Borough Council,2135,Adventure Learning Childcare Limited,F909,Children & Families,Supplies and Services,"11,268.87",Jun-22
Slough Borough Council,805178,AFM Transport Limited,D320,Place Operations,Premises,"2,107.84",Jun-22
Slough Borough Council,805178,AFM Transport Limited,D320,Place Operations,Premises,"2,710.08",Jun-22
Slough Borough Council,805178,AFM Transport Limited,D880,Place Operations,Supplies and Services,"18,112.88",Jun-22
Slough Borough Council,805178,AFM Transport Limited,D880,Place Operations,Supplies and Services,"1,421.36",Jun-22
Slough Borough Council,805178,AFM Transport Limited,D880,Place Operations,Supplies and Services,"10,873.20",Jun-22
Slough Borough Council,805178,AFM Transport Limited,D880,Place Operations,Supplies and Services,903.36,Jun-22
Slough Borough Council,805178,AFM Transport Limited,D880,Place Operations,Supplies and Services,"6,941.40",Jun-22
Slough Borough Council,805178,AFM Transport Limited,D880,Place Operations,Supplies and Services,"9,126.92",Jun-22
Slough Borough Council,805178,AFM Transport Limited,D880,Place Operations,Supplies and Services,"5,441.00",Jun-22
Slough Borough Council,805178,AFM Transport Limited,D320,Place Operations,Supplies and Services,"1,204.48",Jun-22
Slough Borough Council,1656,Agile Applications Limited,D224,Place Regulation,Supplies and Services,"48,801.40",Jun-22
Slough Borough Council,2301,Aik Saath,F382,Children & Families,Supplies and Services,"3,500.00",Jun-22
Slough Borough Council,806268,Allied Publicity Services (Manchester) Limited,A120,Customer,Supplies and Services,520.72,Jun-22
Slough Borough Council,2197,Altwood Housing Ltd,H205,Housing (People) Services,Supplies and Services,"2,250.00",Jun-22
Slough Borough Council,2197,Altwood Housing Ltd,H205,Housing (People) Services,Supplies and Services,"1,650.00",Jun-22
Slough Borough Council,2197,Altwood Housing Ltd,H205,Housing (People) Services,Supplies and Services,"1,650.00",Jun-22
Slough Borough Council,2197,Altwood Housing Ltd,H205,Housing (People) Services,Supplies and Services,900.00,Jun-22
Slough Borough Council,2197,Altwood Housing Ltd,H205,Housing (People) Services,Supplies and Services,920.00,Jun-22
Slough Borough Council,2197,Altwood Housing Ltd,H205,Housing (People) Services,Supplies and Services,900.00,Jun-22
Slough Borough Council,2197,Altwood Housing Ltd,H205,Housing (People) Services,Supplies and Services,900.00,Jun-22
Slough Borough Council,2197,Altwood Housing Ltd,H205,Housing (People) Services,Supplies and Services,900.00,Jun-22
Slough Borough Council,2197,Altwood Housing Ltd,H205,Housing (People) Services,Supplies and Services,900.00,Jun-22
Slough Borough Council,2197,Altwood Housing Ltd,H205,Housing (People) Services,Supplies and Services,900.00,Jun-22
Slough Borough Council,2197,Altwood Housing Ltd,H205,Housing (People) Services,Supplies and Services,810.00,Jun-22
Slough Borough Council,2197,Altwood Housing Ltd,H205,Housing (People) Services,Supplies and Services,900.00,Jun-22
Slough Borough Council,2197,Altwood Housing Ltd,H205,Housing (People) Services,Supplies and Services,"1,650.00",Jun-22
Slough Borough Council,2197,Altwood Housing Ltd,H205,Housing (People) Services,Supplies and Services,810.00,Jun-22
Slough Borough Council,2197,Altwood Housing Ltd,H205,Housing (People) Services,Supplies and Services,900.00,Jun-22
Slough Borough Council,2197,Altwood Housing Ltd,H205,Housing (People) Services,Supplies and Services,990.00,Jun-22
Slough Borough Council,2197,Altwood Housing Ltd,H205,Housing (People) Services,Supplies and Services,720.00,Jun-22
Slough Borough Council,2197,Altwood Housing Ltd,H205,Housing (People) Services,Supplies and Services,"1,650.00",Jun-22
Slough Borough Council,2197,Altwood Housing Ltd,H205,Housing (People) Services,Supplies and Services,930.00,Jun-22
Slough Borough Council,2197,Altwood Housing Ltd,H205,Housing (People) Services,Supplies and Services,"1,240.00",Jun-22
Slough Borough Council,2197,Altwood Housing Ltd,H205,Housing (People) Services,Supplies and Services,"1,705.00",Jun-22
Slough Borough Council,2197,Altwood Housing Ltd,H205,Housing (People) Services,Supplies and Services,744.00,Jun-22
Slough Borough Council,2197,Altwood Housing Ltd,H205,Housing (People) Services,Supplies and Services,"1,705.00",Jun-22
Slough Borough Council,2197,Altwood Housing Ltd,H205,Housing (People) Services,Supplies and Services,510.00,Jun-22
Slough Borough Council,2197,Altwood Housing Ltd,H205,Housing (People) Services,Supplies and Services,930.00,Jun-22
Slough Borough Council,2197,Altwood Housing Ltd,H205,Housing (People) Services,Supplies and Services,930.00,Jun-22
Slough Borough Council,2197,Altwood Housing Ltd,H205,Housing (People) Services,Supplies and Services,"1,705.00",Jun-22
Slough Borough Council,2197,Altwood Housing Ltd,H205,Housing (People) Services,Supplies and Services,552.00,Jun-22
Slough Borough Council,2197,Altwood Housing Ltd,H205,Housing (People) Services,Supplies and Services,"1,705.00",Jun-22
Slough Borough Council,2197,Altwood Housing Ltd,H205,Housing (People) Services,Supplies and Services,"2,325.00",Jun-22
Slough Borough Council,2197,Altwood Housing Ltd,H205,Housing (People) Services,Supplies and Services,510.00,Jun-22
Slough Borough Council,2197,Altwood Housing Ltd,H205,Housing (People) Services,Supplies and Services,660.00,Jun-22
Slough Borough Council,2197,Altwood Housing Ltd,H205,Housing (People) Services,Supplies and Services,640.00,Jun-22
Slough Borough Council,2197,Altwood Housing Ltd,H205,Housing (People) Services,Supplies and Services,930.00,Jun-22
Slough Borough Council,86,Altwood Properties Ltd,H205,Housing (People) Services,Premises,"49,341.90",Jun-22
Slough Borough Council,86,Altwood Properties Ltd,H205,Housing (People) Services,Premises,"53,623.21",Jun-22
Slough Borough Council,807515,Always Growing Together Community Interest Company Limited,F909,Children & Families,Supplies and Services,"9,888.06",Jun-22
Slough Borough Council,804962,Angel Solutions,F200,Education & Inclusion,Supplies and Services,"10,300.00",Jun-22
Slough Borough Council,808368,Anthony Toby Homes Trust,M26E,Adult Social Care Operations,Supplies and Services,"5,239.15",Jun-22
Slough Borough Council,807893,Antz Kidz Activity Centre,F382,Children & Families,Supplies and Services,"4,000.00",Jun-22
Slough Borough Council,3137,Applegarth Care Home Ltd,M25C,Adult Social Care Operations,Supplies and Services,"3,400.00",Jun-22
Slough Borough Council,3137,Applegarth Care Home Ltd,M25C,Adult Social Care Operations,Supplies and Services,"3,200.00",Jun-22
Slough Borough Council,3137,Applegarth Care Home Ltd,M27C,Adult Social Care Operations,Supplies and Services,"3,500.00",Jun-22
Slough Borough Council,3137,Applegarth Care Home Ltd,M28C,Adult Social Care Operations,Supplies and Services,"1,350.00",Jun-22
Slough Borough Council,3137,Applegarth Care Home Ltd,M28C,Adult Social Care Operations,Supplies and Services,"3,780.00",Jun-22
Slough Borough Council,808206,Applenet Care & Support,M81D,Adult Social Care Operations,Supplies and Services,"9,540.00",Jun-22
Slough Borough Council,808415,APTUS EA LTD,H205,Housing (People) Services,Supplies and Services,"33,892.00",Jun-22
Slough Borough Council,3350,Arbour Vale School,E610,Children & Families,Supplies and Services,"444,877.24",Jun-22
Slough Borough Council,420,Ashburn Estate Agents,H205,Housing (People) Services,Premises,"114,061.00",Jun-22
Slough Borough Council,420,Ashburn Estate Agents,H205,Housing (People) Services,Premises,"111,650.00",Jun-22
Slough Borough Council,808381,Asian Arts Agency,F253,Children & Families,Agency Staff,"1,760.00",Jun-22
Slough Borough Council,3666,Assisted Living South West,M26E,Adult Social Care Operations,Supplies and Services,"6,102.44",Jun-22
Slough Borough Council,3666,Assisted Living South West,M26E,Adult Social Care Operations,Supplies and Services,"6,102.44",Jun-22
Slough Borough Council,3666,Assisted Living South West,M26E,Adult Social Care Operations,Supplies and Services,"6,102.44",Jun-22
Slough Borough Council,3666,Assisted Living South West,M26E,Adult Social Care Operations,Supplies and Services,"6,102.44",Jun-22
Slough Borough Council,3666,Assisted Living South West,M26E,Adult Social Care Operations,Supplies and Services,"2,615.33",Jun-22
Slough Borough Council,3666,Assisted Living South West,M26E,Adult Social Care Operations,Supplies and Services,"6,102.44",Jun-22
Slough Borough Council,3666,Assisted Living South West,M26E,Adult Social Care Operations,Supplies and Services,"4,816.04",Jun-22
Slough Borough Council,1292,Association Of Electoral Administrators,B240,Business Services,Salaries and Wages,"8,160.00",Jun-22
Slough Borough Council,1292,Association Of Electoral Administrators,B240,Business Services,Salaries and Wages,"5,712.00",Jun-22
Slough Borough Council,806232,Astral PS LTD (Trading as Foundations),A06C,Adult Social Care Commissioning,Agency Staff,"1,125.00",Jun-22
Slough Borough Council,570,Atkins Limited,P187,Capital,Capital Charges,"24,725.00",Jun-22
Slough Borough Council,570,Atkins Limited,P235,Capital,Capital Charges,"2,977.30",Jun-22
Slough Borough Council,570,Atkins Limited,P235,Capital,Capital Charges,"7,942.69",Jun-22
Slough Borough Council,570,Atkins Limited,P235,Capital,Capital Charges,"3,322.00",Jun-22
Slough Borough Council,570,Atkins Limited,P235,Capital,Capital Charges,"7,958.78",Jun-22
Slough Borough Council,570,Atkins Limited,P209,Capital,Capital Charges,"13,730.00",Jun-22
Slough Borough Council,570,Atkins Limited,P212,Capital,Capital Charges,"11,075.00",Jun-22
Slough Borough Council,570,Atkins Limited,P212,Capital,Capital Charges,800.00,Jun-22
Slough Borough Council,570,Atkins Limited,P212,Capital,Capital Charges,"25,000.00",Jun-22
Slough Borough Council,570,Atkins Limited,D015,Place Strategy & Infrastructure,Supplies and Services,"12,982.77",Jun-22
Slough Borough Council,803123,Barcham Trees PLC,P235,Capital,Capital Charges,"3,821.00",Jun-22
Slough Borough Council,1286,Barnardos,F462,Children & Families,Supplies and Services,"32,268.00",Jun-22
Slough Borough Council,803408,Basingstoke and Deane Borough Council,B079,Place Strategy & Infrastructure,External Receipts,"14,589.15",Jun-22
Slough Borough Council,3370,Baylis Court School,E610,Children & Families,Supplies and Services,"4,166.67",Jun-22
Slough Borough Council,3370,Baylis Court School,B297,Finance & Commercial,Government Grants,"3,105.00",Jun-22
Slough Borough Council,3370,Baylis Court School,B297,Finance & Commercial,Government Grants,"3,045.00",Jun-22
Slough Borough Council,3370,Baylis Court School,B297,Finance & Commercial,Government Grants,"8,200.00",Jun-22
Slough Borough Council,1681,Bcq,B240,Business Services,Supplies and Services,"9,480.00",Jun-22
Slough Borough Council,1681,Bcq,B240,Business Services,Supplies and Services,"44,915.00",Jun-22
Slough Borough Council,3208,Be Happy Pre School,F909,Children & Families,Supplies and Services,"8,019.49",Jun-22
Slough Borough Council,3208,Be Happy Pre School,F909,Children & Families,Supplies and Services,"4,118.26",Jun-22
Slough Borough Council,805539,Beech Haven Ltd,M27C,Adult Social Care Operations,Supplies and Services,"3,171.43",Jun-22
Slough Borough Council,804471,Beech Lodge School Ltd,F462,Children & Families,Supplies and Services,"7,750.00",Jun-22
Slough Borough Council,804471,Beech Lodge School Ltd,F462,Children & Families,Supplies and Services,"11,342.00",Jun-22
Slough Borough Council,804471,Beech Lodge School Ltd,F462,Children & Families,Supplies and Services,"11,342.00",Jun-22
Slough Borough Council,804471,Beech Lodge School Ltd,F462,Children & Families,Supplies and Services,"7,750.00",Jun-22
Slough Borough Council,804588,BEN Motor & Allied Trades Bev.Fnd,M27C,Adult Social Care Operations,Supplies and Services,"5,600.00",Jun-22
Slough Borough Council,611,Berkshire College Of Agriculture,F558,Children & Families,Supplies and Services,"40,423.44",Jun-22
Slough Borough Council,612,Berkshire Healthcare Nhs Foundation Trust,A01D,Adult Social Care Operations,Agency Staff,"3,617.00",Jun-22
Slough Borough Council,612,Berkshire Healthcare Nhs Foundation Trust,A07M,Mental Health Services,Agency Staff,806.92,Jun-22
Slough Borough Council,612,Berkshire Healthcare Nhs Foundation Trust,A07M,Mental Health Services,Agency Staff,"3,801.17",Jun-22
Slough Borough Council,612,Berkshire Healthcare Nhs Foundation Trust,F417,Education & Inclusion,Supplies and Services,"4,116.67",Jun-22
Slough Borough Council,808148,BEST CHOICE CARE LTD,A07R,Adult Social Care Operations,Supplies and Services,573.20,Jun-22
Slough Borough Council,808148,BEST CHOICE CARE LTD,A07R,Adult Social Care Operations,Supplies and Services,"1,417.78",Jun-22
Slough Borough Council,808148,BEST CHOICE CARE LTD,M44C,Adult Social Care Operations,Supplies and Services,857.64,Jun-22
Slough Borough Council,808148,BEST CHOICE CARE LTD,M44C,Adult Social Care Operations,Supplies and Services,669.46,Jun-22
Slough Borough Council,808148,BEST CHOICE CARE LTD,M44C,Adult Social Care Operations,Supplies and Services,612.64,Jun-22
Slough Borough Council,808148,BEST CHOICE CARE LTD,M44C,Adult Social Care Operations,Supplies and Services,"1,382.64",Jun-22
Slough Borough Council,808148,BEST CHOICE CARE LTD,M44C,Adult Social Care Operations,Supplies and Services,980.00,Jun-22
Slough Borough Council,808148,BEST CHOICE CARE LTD,M44C,Adult Social Care Operations,Supplies and Services,678.20,Jun-22
Slough Borough Council,808148,BEST CHOICE CARE LTD,M44C,Adult Social Care Operations,Supplies and Services,"1,102.64",Jun-22
Slough Borough Council,808148,BEST CHOICE CARE LTD,M44C,Adult Social Care Operations,Supplies and Services,507.52,Jun-22
Slough Borough Council,808148,BEST CHOICE CARE LTD,M44C,Adult Social Care Operations,Supplies and Services,735.00,Jun-22
Slough Borough Council,808148,BEST CHOICE CARE LTD,M44D,Adult Social Care Operations,Supplies and Services,"2,520.00",Jun-22
Slough Borough Council,808148,BEST CHOICE CARE LTD,M44D,Adult Social Care Operations,Supplies and Services,787.50,Jun-22
Slough Borough Council,808148,BEST CHOICE CARE LTD,M45C,Adult Social Care Operations,Supplies and Services,848.75,Jun-22
Slough Borough Council,808379,BHARANI ENTERPRISES (UK) LTD,B088,Regeneration Development,Supplies and Services,"49,508.43",Jun-22
Slough Borough Council,806780,Big Blue Door Ltd,F200,Education & Inclusion,Supplies and Services,500.00,Jun-22
Slough Borough Council,806780,Big Blue Door Ltd,F200,Education & Inclusion,Supplies and Services,"4,500.00",Jun-22
Slough Borough Council,806780,Big Blue Door Ltd,F200,Education & Inclusion,Supplies and Services,"4,500.00",Jun-22
Slough Borough Council,3611,Birch Assist Ltd T/A Bluebird Care (South Bucks & Slough),M44D,Adult Social Care Operations,Supplies and Services,"1,491.00",Jun-22
Slough Borough Council,803828,Blue Willow Day Nursery Ltd,F909,Children & Families,Supplies and Services,"21,852.39",Jun-22
Slough Borough Council,1947,Bmeimaging Limited,D224,Place Regulation,Supplies and Services,"1,441.00",Jun-22
Slough Borough Council,1947,Bmeimaging Limited,D224,Place Regulation,Supplies and Services,"1,276.00",Jun-22
Slough Borough Council,1947,Bmeimaging Limited,D224,Place Regulation,Supplies and Services,"5,383.00",Jun-22
Slough Borough Council,1947,Bmeimaging Limited,D224,Place Regulation,Supplies and Services,"3,578.00",Jun-22
Slough Borough Council,1947,Bmeimaging Limited,D224,Place Regulation,Supplies and Services,"3,405.00",Jun-22
Slough Borough Council,1947,Bmeimaging Limited,D224,Place Regulation,Supplies and Services,"5,006.00",Jun-22
Slough Borough Council,1947,Bmeimaging Limited,D224,Place Regulation,Supplies and Services,"2,356.00",Jun-22
Slough Borough Council,807487,Boyer Planning Ltd,P575,Capital,Capital Charges,796.25,Jun-22
Slough Borough Council,2856,Brain Injury Rehabilitation Trust,M27C,Adult Social Care Operations,Supplies and Services,"7,240.33",Jun-22
Slough Borough Council,805179,Braywood Tree Surgery Ltd,P220,Capital,Capital Charges,"1,152.16",Jun-22
Slough Borough Council,805179,Braywood Tree Surgery Ltd,P220,Capital,Capital Charges,671.36,Jun-22
Slough Borough Council,805179,Braywood Tree Surgery Ltd,P220,Capital,Capital Charges,"4,967.73",Jun-22
Slough Borough Council,1745,Bre Global,D224,Place Regulation,Supplies and Services,"2,165.00",Jun-22
Slough Borough Council,805817,Bright World Nurseries,F909,Children & Families,Supplies and Services,"10,380.54",Jun-22
Slough Borough Council,949,British Parking Association,D123,Place Strategy & Infrastructure,Premises,681.00,Jun-22
Slough Borough Council,617,British Telecommunications,K089,Place Regulation,Supplies and Services,"2,140.95",Jun-22
Slough Borough Council,617,British Telecommunications,P235,Capital,Capital Charges,"18,594.57",Jun-22
Slough Borough Council,504,Britwell Baptist Pre School,F909,Children & Families,Supplies and Services,"6,127.32",Jun-22
Slough Borough Council,806892,Bucks & Berks SLT Consultancy,F417,Education & Inclusion,Supplies and Services,"-1,028.57",Jun-22
Slough Borough Council,806892,Bucks & Berks SLT Consultancy,F417,Education & Inclusion,Supplies and Services,"1,028.57",Jun-22
Slough Borough Council,741,Bunnies Pre-School,F909,Children & Families,Supplies and Services,"6,920.89",Jun-22
Slough Borough Council,803553,BUPA CARE HOME (CFH CARE),M25D,Adult Social Care Operations,Supplies and Services,"3,172.00",Jun-22
Slough Borough Council,804448,Bupa Care Homes (ANS) Ltd,M15D,Adult Social Care Operations,Supplies and Services,"5,821.18",Jun-22
Slough Borough Council,804448,Bupa Care Homes (ANS) Ltd,M15D,Adult Social Care Operations,Supplies and Services,"5,633.40",Jun-22
Slough Borough Council,804492,Burnham Grammar School,F551,Children & Families,Supplies and Services,"5,000.00",Jun-22
Slough Borough Council,807597,Bytesize Training ltd,B282,Digital and Strategic IT,Supplies and Services,"1,400.00",Jun-22
Slough Borough Council,807597,Bytesize Training ltd,B282,Digital and Strategic IT,Supplies and Services,"1,750.00",Jun-22
Slough Borough Council,807597,Bytesize Training ltd,B282,Digital and Strategic IT,Supplies and Services,"1,750.00",Jun-22
Slough Borough Council,2177,C F Roberts (Electrical Contractors)Plc,B189,Business Services,Premises,646.76,Jun-22
Slough Borough Council,2177,C F Roberts (Electrical Contractors)Plc,P180,Capital,Capital Charges,"34,471.11",Jun-22
Slough Borough Council,2177,C F Roberts (Electrical Contractors)Plc,P180,Capital,Capital Charges,"8,100.71",Jun-22
Slough Borough Council,629,C.H.O.I.C.E Limited,M26E,Adult Social Care Operations,Supplies and Services,"10,409.83",Jun-22
Slough Borough Council,629,C.H.O.I.C.E Limited,M26E,Adult Social Care Operations,Supplies and Services,"10,688.79",Jun-22
Slough Borough Council,629,C.H.O.I.C.E Limited,M26E,Adult Social Care Operations,Supplies and Services,"6,260.23",Jun-22
Slough Borough Council,629,C.H.O.I.C.E Limited,M26E,Adult Social Care Operations,Supplies and Services,"8,456.61",Jun-22
Slough Borough Council,629,C.H.O.I.C.E Limited,M26E,Adult Social Care Operations,Supplies and Services,"11,176.76",Jun-22
Slough Borough Council,629,C.H.O.I.C.E Limited,M26E,Adult Social Care Operations,Supplies and Services,"8,930.66",Jun-22
Slough Borough Council,629,C.H.O.I.C.E Limited,M26E,Adult Social Care Operations,Supplies and Services,"10,136.79",Jun-22
Slough Borough Council,629,C.H.O.I.C.E Limited,M26E,Adult Social Care Operations,Supplies and Services,"10,386.91",Jun-22
Slough Borough Council,629,C.H.O.I.C.E Limited,M26E,Adult Social Care Operations,Supplies and Services,"11,045.08",Jun-22
Slough Borough Council,629,C.H.O.I.C.E Limited,M26E,Adult Social Care Operations,Supplies and Services,"10,733.13",Jun-22
Slough Borough Council,629,C.H.O.I.C.E Limited,M26E,Adult Social Care Operations,Supplies and Services,"11,549.32",Jun-22
Slough Borough Council,629,C.H.O.I.C.E Limited,M26E,Adult Social Care Operations,Supplies and Services,"5,953.15",Jun-22
Slough Borough Council,629,C.H.O.I.C.E Limited,M42E,Adult Social Care Operations,Supplies and Services,"5,677.03",Jun-22
Slough Borough Council,629,C.H.O.I.C.E Limited,M42E,Adult Social Care Operations,Supplies and Services,"6,108.82",Jun-22
Slough Borough Council,629,C.H.O.I.C.E Limited,M42E,Adult Social Care Operations,Supplies and Services,"6,235.03",Jun-22
Slough Borough Council,629,C.H.O.I.C.E Limited,M42E,Adult Social Care Operations,Supplies and Services,"6,145.35",Jun-22
Slough Borough Council,629,C.H.O.I.C.E Limited,M44D,Adult Social Care Operations,Supplies and Services,"4,431.49",Jun-22
Slough Borough Council,629,C.H.O.I.C.E Limited,M44F,Adult Social Care Operations,Supplies and Services,"2,608.07",Jun-22
Slough Borough Council,629,C.H.O.I.C.E Limited,M44F,Adult Social Care Operations,Supplies and Services,"2,581.90",Jun-22
Slough Borough Council,629,C.H.O.I.C.E Limited,M26E,Adult Social Care Operations,External Receipts,-546.26,Jun-22
Slough Borough Council,629,C.H.O.I.C.E Limited,M26E,Adult Social Care Operations,External Receipts,-515.75,Jun-22
Slough Borough Council,629,C.H.O.I.C.E Limited,M26E,Adult Social Care Operations,External Receipts,-564.47,Jun-22
Slough Borough Council,805414,Calibration Engineering Service Ltd,D750,Place Operations,Supplies and Services,"3,200.00",Jun-22
Slough Borough Council,808007,Cameron & Cooper Limited (The Beech House School),F462,Children & Families,Supplies and Services,"2,420.98",Jun-22
Slough Borough Council,808007,Cameron & Cooper Limited (The Beech House School),F462,Children & Families,Supplies and Services,"1,052.60",Jun-22
Slough Borough Council,808007,Cameron & Cooper Limited (The Beech House School),F462,Children & Families,Supplies and Services,"2,105.20",Jun-22
Slough Borough Council,1901,Canal & River Trust,D411,Place Strategy & Infrastructure,Supplies and Services,"1,026.85",Jun-22
Slough Borough Council,623,Canon (Uk) Ltd,K059,Business Services,Supplies and Services,"3,015.40",Jun-22
Slough Borough Council,737,Capita Business Services Ltd,B282,Digital and Strategic IT,Supplies and Services,"21,495.00",Jun-22
Slough Borough Council,737,Capita Business Services Ltd,B014,Finance & Commercial,Government Grants,"2,543.72",Jun-22
Slough Borough Council,804861,Care Management Group Ltd,M26E,Adult Social Care Operations,Supplies and Services,"14,088.53",Jun-22
Slough Borough Council,804861,Care Management Group Ltd,M26E,Adult Social Care Operations,Supplies and Services,"14,744.00",Jun-22
Slough Borough Council,805621,Care Staff Services,A07R,Adult Social Care Operations,Supplies and Services,"1,102.50",Jun-22
Slough Borough Council,805621,Care Staff Services,A07R,Adult Social Care Operations,Supplies and Services,980.00,Jun-22
Slough Borough Council,805621,Care Staff Services,A07R,Adult Social Care Operations,Supplies and Services,"1,165.50",Jun-22
Slough Borough Council,805621,Care Staff Services,A07R,Adult Social Care Operations,Supplies and Services,822.50,Jun-22
Slough Borough Council,805621,Care Staff Services,A07R,Adult Social Care Operations,Supplies and Services,551.25,Jun-22
Slough Borough Council,805621,Care Staff Services,A07R,Adult Social Care Operations,Supplies and Services,"1,543.75",Jun-22
Slough Borough Council,805621,Care Staff Services,A07R,Adult Social Care Operations,Supplies and Services,984.38,Jun-22
Slough Borough Council,805621,Care Staff Services,A07R,Adult Social Care Operations,Supplies and Services,"2,047.50",Jun-22
Slough Borough Council,805621,Care Staff Services,A07R,Adult Social Care Operations,Supplies and Services,787.50,Jun-22
Slough Borough Council,805621,Care Staff Services,A07R,Adult Social Care Operations,Supplies and Services,971.25,Jun-22
Slough Borough Council,805621,Care Staff Services,A07R,Adult Social Care Operations,Supplies and Services,560.00,Jun-22
Slough Borough Council,805621,Care Staff Services,A07R,Adult Social Care Operations,Supplies and Services,633.21,Jun-22
Slough Borough Council,805621,Care Staff Services,A07R,Adult Social Care Operations,Supplies and Services,"1,165.50",Jun-22
Slough Borough Council,805621,Care Staff Services,A07R,Adult Social Care Operations,Supplies and Services,997.50,Jun-22
Slough Borough Council,805621,Care Staff Services,A07R,Adult Social Care Operations,Supplies and Services,"2,205.00",Jun-22
Slough Borough Council,805621,Care Staff Services,A07R,Adult Social Care Operations,Supplies and Services,"1,102.50",Jun-22
Slough Borough Council,805621,Care Staff Services,A07R,Adult Social Care Operations,Supplies and Services,787.50,Jun-22
Slough Borough Council,805621,Care Staff Services,A07R,Adult Social Care Operations,Supplies and Services,638.75,Jun-22
Slough Borough Council,805621,Care Staff Services,A07R,Adult Social Care Operations,Supplies and Services,"1,165.50",Jun-22
Slough Borough Council,805621,Care Staff Services,A07R,Adult Social Care Operations,Supplies and Services,"1,496.25",Jun-22
Slough Borough Council,805621,Care Staff Services,A07R,Adult Social Care Operations,Supplies and Services,980.00,Jun-22
Slough Borough Council,805621,Care Staff Services,A07R,Adult Social Care Operations,Supplies and Services,905.63,Jun-22
Slough Borough Council,805621,Care Staff Services,A07R,Adult Social Care Operations,Supplies and Services,660.63,Jun-22
Slough Borough Council,805621,Care Staff Services,A07R,Adult Social Care Operations,Supplies and Services,708.75,Jun-22
Slough Borough Council,805621,Care Staff Services,A07R,Adult Social Care Operations,Supplies and Services,"1,102.50",Jun-22
Slough Borough Council,805621,Care Staff Services,A07R,Adult Social Care Operations,Supplies and Services,866.25,Jun-22
Slough Borough Council,805621,Care Staff Services,A07R,Adult Social Care Operations,Supplies and Services,708.75,Jun-22
Slough Borough Council,805621,Care Staff Services,M44C,Adult Social Care Operations,Supplies and Services,"2,450.00",Jun-22
Slough Borough Council,805621,Care Staff Services,M44C,Adult Social Care Operations,Supplies and Services,860.25,Jun-22
Slough Borough Council,805621,Care Staff Services,M44C,Adult Social Care Operations,Supplies and Services,857.50,Jun-22
Slough Borough Council,805621,Care Staff Services,M44C,Adult Social Care Operations,Supplies and Services,"1,165.50",Jun-22
Slough Borough Council,805621,Care Staff Services,M44C,Adult Social Care Operations,Supplies and Services,906.50,Jun-22
Slough Borough Council,805621,Care Staff Services,M44C,Adult Social Care Operations,Supplies and Services,"1,239.50",Jun-22
Slough Borough Council,805621,Care Staff Services,M44C,Adult Social Care Operations,Supplies and Services,871.88,Jun-22
Slough Borough Council,805621,Care Staff Services,M44C,Adult Social Care Operations,Supplies and Services,"1,102.50",Jun-22
Slough Borough Council,805621,Care Staff Services,M44C,Adult Social Care Operations,Supplies and Services,"2,072.00",Jun-22
Slough Borough Council,805621,Care Staff Services,M44C,Adult Social Care Operations,Supplies and Services,857.50,Jun-22
Slough Borough Council,805621,Care Staff Services,M44C,Adult Social Care Operations,Supplies and Services,"1,202.50",Jun-22
Slough Borough Council,805621,Care Staff Services,M44C,Adult Social Care Operations,Supplies and Services,647.50,Jun-22
Slough Borough Council,805621,Care Staff Services,M44C,Adult Social Care Operations,Supplies and Services,805.00,Jun-22
Slough Borough Council,805621,Care Staff Services,M44C,Adult Social Care Operations,Supplies and Services,857.50,Jun-22
Slough Borough Council,805621,Care Staff Services,M44C,Adult Social Care Operations,Supplies and Services,906.50,Jun-22
Slough Borough Council,805621,Care Staff Services,M44C,Adult Social Care Operations,Supplies and Services,"1,032.50",Jun-22
Slough Borough Council,805621,Care Staff Services,M44C,Adult Social Care Operations,Supplies and Services,612.50,Jun-22
Slough Borough Council,805621,Care Staff Services,M44C,Adult Social Care Operations,Supplies and Services,"2,072.00",Jun-22
Slough Borough Council,805621,Care Staff Services,M44C,Adult Social Care Operations,Supplies and Services,"2,205.00",Jun-22
Slough Borough Council,805621,Care Staff Services,M44C,Adult Social Care Operations,Supplies and Services,666.00,Jun-22
Slough Borough Council,805621,Care Staff Services,M44C,Adult Social Care Operations,Supplies and Services,"2,331.00",Jun-22
Slough Borough Council,805621,Care Staff Services,M44C,Adult Social Care Operations,Supplies and Services,612.50,Jun-22
Slough Borough Council,805621,Care Staff Services,M44C,Adult Social Care Operations,Supplies and Services,"1,389.61",Jun-22
Slough Borough Council,805621,Care Staff Services,M44C,Adult Social Care Operations,Supplies and Services,"2,275.00",Jun-22
Slough Borough Council,805621,Care Staff Services,M44C,Adult Social Care Operations,Supplies and Services,"2,664.00",Jun-22
Slough Borough Council,805621,Care Staff Services,M44C,Adult Social Care Operations,Supplies and Services,752.50,Jun-22
Slough Borough Council,805621,Care Staff Services,M44C,Adult Social Care Operations,Supplies and Services,"2,146.00",Jun-22
Slough Borough Council,805621,Care Staff Services,M44C,Adult Social Care Operations,Supplies and Services,"1,406.00",Jun-22
Slough Borough Council,805621,Care Staff Services,M44C,Adult Social Care Operations,Supplies and Services,"2,331.00",Jun-22
Slough Borough Council,805621,Care Staff Services,M44C,Adult Social Care Operations,Supplies and Services,697.50,Jun-22
Slough Borough Council,805621,Care Staff Services,M44C,Adult Social Care Operations,Supplies and Services,"1,813.00",Jun-22
Slough Borough Council,805621,Care Staff Services,M44C,Adult Social Care Operations,Supplies and Services,717.50,Jun-22
Slough Borough Council,805621,Care Staff Services,M44C,Adult Social Care Operations,Supplies and Services,"1,470.00",Jun-22
Slough Borough Council,805621,Care Staff Services,M44C,Adult Social Care Operations,Supplies and Services,906.50,Jun-22
Slough Borough Council,805621,Care Staff Services,M44C,Adult Social Care Operations,Supplies and Services,"1,295.00",Jun-22
Slough Borough Council,805621,Care Staff Services,M44C,Adult Social Care Operations,Supplies and Services,"1,554.00",Jun-22
Slough Borough Council,805621,Care Staff Services,M44C,Adult Social Care Operations,Supplies and Services,906.50,Jun-22
Slough Borough Council,805621,Care Staff Services,M44C,Adult Social Care Operations,Supplies and Services,906.50,Jun-22
Slough Borough Council,805621,Care Staff Services,M44C,Adult Social Care Operations,Supplies and Services,"1,036.00",Jun-22
Slough Borough Council,805621,Care Staff Services,M44C,Adult Social Care Operations,Supplies and Services,"2,205.00",Jun-22
Slough Borough Council,805621,Care Staff Services,M44C,Adult Social Care Operations,Supplies and Services,857.50,Jun-22
Slough Borough Council,805621,Care Staff Services,M44C,Adult Social Care Operations,Supplies and Services,735.00,Jun-22
Slough Borough Council,805621,Care Staff Services,M44C,Adult Social Care Operations,Supplies and Services,"1,165.50",Jun-22
Slough Borough Council,805621,Care Staff Services,M44C,Adult Social Care Operations,Supplies and Services,721.50,Jun-22
Slough Borough Council,805621,Care Staff Services,M44C,Adult Social Care Operations,Supplies and Services,"1,225.00",Jun-22
Slough Borough Council,805621,Care Staff Services,M44C,Adult Social Care Operations,Supplies and Services,647.50,Jun-22
Slough Borough Council,805621,Care Staff Services,M44C,Adult Social Care Operations,Supplies and Services,"1,102.50",Jun-22
Slough Borough Council,805621,Care Staff Services,M44C,Adult Social Care Operations,Supplies and Services,"1,715.00",Jun-22
Slough Borough Council,805621,Care Staff Services,M44C,Adult Social Care Operations,Supplies and Services,"2,205.00",Jun-22
Slough Borough Council,805621,Care Staff Services,M44C,Adult Social Care Operations,Supplies and Services,647.50,Jun-22
Slough Borough Council,805621,Care Staff Services,M44C,Adult Social Care Operations,Supplies and Services,906.50,Jun-22
Slough Borough Council,805621,Care Staff Services,M44C,Adult Social Care Operations,Supplies and Services,925.00,Jun-22
Slough Borough Council,805621,Care Staff Services,M44C,Adult Social Care Operations,Supplies and Services,"1,715.00",Jun-22
Slough Borough Council,805621,Care Staff Services,M44D,Adult Social Care Operations,Supplies and Services,777.00,Jun-22
Slough Borough Council,805621,Care Staff Services,M44D,Adult Social Care Operations,Supplies and Services,"1,239.50",Jun-22
Slough Borough Council,805621,Care Staff Services,M44D,Adult Social Care Operations,Supplies and Services,857.50,Jun-22
Slough Borough Council,805621,Care Staff Services,M44D,Adult Social Care Operations,Supplies and Services,"1,592.50",Jun-22
Slough Borough Council,805621,Care Staff Services,M44D,Adult Social Care Operations,Supplies and Services,"1,165.50",Jun-22
Slough Borough Council,805621,Care Staff Services,M44D,Adult Social Care Operations,Supplies and Services,647.50,Jun-22
Slough Borough Council,805621,Care Staff Services,M44D,Adult Social Care Operations,Supplies and Services,"1,785.00",Jun-22
Slough Borough Council,805621,Care Staff Services,M44D,Adult Social Care Operations,Supplies and Services,832.50,Jun-22
Slough Borough Council,805621,Care Staff Services,M44D,Adult Social Care Operations,Supplies and Services,518.00,Jun-22
Slough Borough Council,805621,Care Staff Services,M44D,Adult Social Care Operations,Supplies and Services,955.00,Jun-22
Slough Borough Council,805621,Care Staff Services,M44D,Adult Social Care Operations,Supplies and Services,"1,295.00",Jun-22
Slough Borough Council,805621,Care Staff Services,M44D,Adult Social Care Operations,Supplies and Services,629.00,Jun-22
Slough Borough Council,805621,Care Staff Services,M44D,Adult Social Care Operations,Supplies and Services,"2,331.00",Jun-22
Slough Borough Council,805621,Care Staff Services,M44E,Adult Social Care Operations,Supplies and Services,518.00,Jun-22
Slough Borough Council,805621,Care Staff Services,M44F,Adult Social Care Operations,Supplies and Services,666.00,Jun-22
Slough Borough Council,805621,Care Staff Services,M44F,Adult Social Care Operations,Supplies and Services,"2,590.00",Jun-22
Slough Borough Council,805621,Care Staff Services,M44F,Adult Social Care Operations,Supplies and Services,"1,461.50",Jun-22
Slough Borough Council,805621,Care Staff Services,M44F,Adult Social Care Operations,Supplies and Services,888.00,Jun-22
Slough Borough Council,805621,Care Staff Services,M44F,Adult Social Care Operations,Supplies and Services,999.00,Jun-22
Slough Borough Council,805621,Care Staff Services,M44F,Adult Social Care Operations,Supplies and Services,518.00,Jun-22
Slough Borough Council,805621,Care Staff Services,M44F,Adult Social Care Operations,Supplies and Services,"1,036.00",Jun-22
Slough Borough Council,805621,Care Staff Services,M44F,Adult Social Care Operations,Supplies and Services,740.00,Jun-22
Slough Borough Council,805621,Care Staff Services,M45C,Adult Social Care Operations,Supplies and Services,682.50,Jun-22
Slough Borough Council,805621,Care Staff Services,M45C,Adult Social Care Operations,Supplies and Services,"1,198.75",Jun-22
Slough Borough Council,805621,Care Staff Services,M45C,Adult Social Care Operations,Supplies and Services,"2,117.50",Jun-22
Slough Borough Council,805621,Care Staff Services,M45C,Adult Social Care Operations,Supplies and Services,"2,205.00",Jun-22
Slough Borough Council,805621,Care Staff Services,M45C,Adult Social Care Operations,Supplies and Services,"2,205.00",Jun-22
Slough Borough Council,805621,Care Staff Services,M45C,Adult Social Care Operations,Supplies and Services,673.75,Jun-22
Slough Borough Council,805621,Care Staff Services,M45C,Adult Social Care Operations,Supplies and Services,"4,165.00",Jun-22
Slough Borough Council,805621,Care Staff Services,M45C,Adult Social Care Operations,Supplies and Services,581.87,Jun-22
Slough Borough Council,805621,Care Staff Services,M45C,Adult Social Care Operations,Supplies and Services,"1,056.25",Jun-22
Slough Borough Council,805621,Care Staff Services,M48C,Adult Social Care Operations,Supplies and Services,"2,450.00",Jun-22
Slough Borough Council,805621,Care Staff Services,M48C,Adult Social Care Operations,Supplies and Services,-595.32,Jun-22
Slough Borough Council,805621,Care Staff Services,M48C,Adult Social Care Operations,Supplies and Services,560.00,Jun-22
Slough Borough Council,805621,Care Staff Services,M48C,Adult Social Care Operations,Supplies and Services,"2,331.00",Jun-22
Slough Borough Council,805621,Care Staff Services,M48C,Adult Social Care Operations,Supplies and Services,"2,021.25",Jun-22
Slough Borough Council,808149,Care Staff Services Support,M44F,Adult Social Care Operations,Supplies and Services,"1,420.95",Jun-22
Slough Borough Council,808149,Care Staff Services Support,M44F,Adult Social Care Operations,Supplies and Services,581.30,Jun-22
Slough Borough Council,1162,Care Uk Community Partnership Ltd,A03E,Adult Social Care Operations,Supplies and Services,"3,842.56",Jun-22
Slough Borough Council,1162,Care Uk Community Partnership Ltd,A03E,Adult Social Care Operations,Supplies and Services,"3,842.56",Jun-22
Slough Borough Council,1162,Care Uk Community Partnership Ltd,M15D,Adult Social Care Operations,Supplies and Services,"2,736.00",Jun-22
Slough Borough Council,1162,Care Uk Community Partnership Ltd,M15D,Adult Social Care Operations,Supplies and Services,"3,803.00",Jun-22
Slough Borough Council,1162,Care Uk Community Partnership Ltd,M15D,Adult Social Care Operations,Supplies and Services,"3,803.00",Jun-22
Slough Borough Council,1162,Care Uk Community Partnership Ltd,M15D,Adult Social Care Operations,Supplies and Services,"3,969.72",Jun-22
Slough Borough Council,1162,Care Uk Community Partnership Ltd,M15D,Adult Social Care Operations,Supplies and Services,"3,803.00",Jun-22
Slough Borough Council,1162,Care Uk Community Partnership Ltd,M15D,Adult Social Care Operations,Supplies and Services,"3,803.00",Jun-22
Slough Borough Council,1162,Care Uk Community Partnership Ltd,M15D,Adult Social Care Operations,Supplies and Services,"3,803.00",Jun-22
Slough Borough Council,1162,Care Uk Community Partnership Ltd,M15D,Adult Social Care Operations,Supplies and Services,"3,803.00",Jun-22
Slough Borough Council,1162,Care Uk Community Partnership Ltd,M15D,Adult Social Care Operations,Supplies and Services,"3,803.00",Jun-22
Slough Borough Council,1162,Care Uk Community Partnership Ltd,M15D,Adult Social Care Operations,Supplies and Services,"3,969.72",Jun-22
Slough Borough Council,1162,Care Uk Community Partnership Ltd,M15D,Adult Social Care Operations,Supplies and Services,"3,803.00",Jun-22
Slough Borough Council,1162,Care Uk Community Partnership Ltd,M15F,Adult Social Care Operations,Supplies and Services,"3,803.00",Jun-22
Slough Borough Council,1162,Care Uk Community Partnership Ltd,M15F,Adult Social Care Operations,Supplies and Services,"3,531.36",Jun-22
Slough Borough Council,1162,Care Uk Community Partnership Ltd,M17C,Adult Social Care Operations,Supplies and Services,"5,571.43",Jun-22
Slough Borough Council,1162,Care Uk Community Partnership Ltd,M17C,Adult Social Care Operations,Supplies and Services,"13,717.80",Jun-22
Slough Borough Council,1162,Care Uk Community Partnership Ltd,M17C,Adult Social Care Operations,Supplies and Services,"3,969.72",Jun-22
Slough Borough Council,1162,Care Uk Community Partnership Ltd,M17C,Adult Social Care Operations,Supplies and Services,"3,969.72",Jun-22
Slough Borough Council,1162,Care Uk Community Partnership Ltd,M17C,Adult Social Care Operations,Supplies and Services,"3,969.72",Jun-22
Slough Borough Council,1162,Care Uk Community Partnership Ltd,M17C,Adult Social Care Operations,Supplies and Services,"3,969.72",Jun-22
Slough Borough Council,1162,Care Uk Community Partnership Ltd,M17C,Adult Social Care Operations,Supplies and Services,"13,717.80",Jun-22
Slough Borough Council,1162,Care Uk Community Partnership Ltd,M17C,Adult Social Care Operations,Supplies and Services,"3,969.72",Jun-22
Slough Borough Council,1162,Care Uk Community Partnership Ltd,M17C,Adult Social Care Operations,Supplies and Services,"3,969.72",Jun-22
Slough Borough Council,1162,Care Uk Community Partnership Ltd,M17C,Adult Social Care Operations,Supplies and Services,"3,969.72",Jun-22
Slough Borough Council,1162,Care Uk Community Partnership Ltd,M17C,Adult Social Care Operations,Supplies and Services,"3,969.72",Jun-22
Slough Borough Council,1162,Care Uk Community Partnership Ltd,M18C,Adult Social Care Operations,Supplies and Services,"3,803.00",Jun-22
Slough Borough Council,1162,Care Uk Community Partnership Ltd,M18C,Adult Social Care Operations,Supplies and Services,"3,969.72",Jun-22
Slough Borough Council,1162,Care Uk Community Partnership Ltd,M18C,Adult Social Care Operations,Supplies and Services,"3,969.72",Jun-22
Slough Borough Council,1162,Care Uk Community Partnership Ltd,M18C,Adult Social Care Operations,Supplies and Services,"3,803.00",Jun-22
Slough Borough Council,1162,Care Uk Community Partnership Ltd,M18C,Adult Social Care Operations,Supplies and Services,"3,803.00",Jun-22
Slough Borough Council,1162,Care Uk Community Partnership Ltd,M18C,Adult Social Care Operations,Supplies and Services,"3,969.72",Jun-22
Slough Borough Council,1162,Care Uk Community Partnership Ltd,M18C,Adult Social Care Operations,Supplies and Services,"3,803.00",Jun-22
Slough Borough Council,1162,Care Uk Community Partnership Ltd,M18C,Adult Social Care Operations,Supplies and Services,"64,651.00",Jun-22
Slough Borough Council,1162,Care Uk Community Partnership Ltd,M18C,Adult Social Care Operations,Supplies and Services,"-13,594.60",Jun-22
Slough Borough Council,1162,Care Uk Community Partnership Ltd,M18C,Adult Social Care Operations,Supplies and Services,"3,803.00",Jun-22
Slough Borough Council,1162,Care Uk Community Partnership Ltd,M18C,Adult Social Care Operations,Supplies and Services,"3,803.00",Jun-22
Slough Borough Council,1162,Care Uk Community Partnership Ltd,M18C,Adult Social Care Operations,Supplies and Services,"3,803.00",Jun-22
Slough Borough Council,1162,Care Uk Community Partnership Ltd,M18C,Adult Social Care Operations,Supplies and Services,"3,803.00",Jun-22
Slough Borough Council,1162,Care Uk Community Partnership Ltd,M18C,Adult Social Care Operations,Supplies and Services,"-41,832.68",Jun-22
Slough Borough Council,1162,Care Uk Community Partnership Ltd,M18C,Adult Social Care Operations,Supplies and Services,"3,803.00",Jun-22
Slough Borough Council,1162,Care Uk Community Partnership Ltd,M18C,Adult Social Care Operations,Supplies and Services,"3,969.72",Jun-22
Slough Borough Council,1162,Care Uk Community Partnership Ltd,M18C,Adult Social Care Operations,Supplies and Services,"3,969.72",Jun-22
Slough Borough Council,1162,Care Uk Community Partnership Ltd,M18C,Adult Social Care Operations,Supplies and Services,"3,969.72",Jun-22
Slough Borough Council,1162,Care Uk Community Partnership Ltd,M18C,Adult Social Care Operations,Supplies and Services,"3,803.00",Jun-22
Slough Borough Council,1162,Care Uk Community Partnership Ltd,M18C,Adult Social Care Operations,Supplies and Services,"3,803.00",Jun-22
Slough Borough Council,1162,Care Uk Community Partnership Ltd,M18C,Adult Social Care Operations,Supplies and Services,"3,803.00",Jun-22
Slough Borough Council,1162,Care Uk Community Partnership Ltd,M18C,Adult Social Care Operations,Supplies and Services,"3,969.72",Jun-22
Slough Borough Council,1162,Care Uk Community Partnership Ltd,M18C,Adult Social Care Operations,Supplies and Services,"3,803.00",Jun-22
Slough Borough Council,1162,Care Uk Community Partnership Ltd,M18C,Adult Social Care Operations,Supplies and Services,"3,803.00",Jun-22
Slough Borough Council,1162,Care Uk Community Partnership Ltd,M18C,Adult Social Care Operations,Supplies and Services,"3,803.00",Jun-22
Slough Borough Council,1162,Care Uk Community Partnership Ltd,M18C,Adult Social Care Operations,Supplies and Services,"3,969.72",Jun-22
Slough Borough Council,1162,Care Uk Community Partnership Ltd,M18C,Adult Social Care Operations,Supplies and Services,"3,969.72",Jun-22
Slough Borough Council,1162,Care Uk Community Partnership Ltd,M18C,Adult Social Care Operations,Supplies and Services,"3,803.00",Jun-22
Slough Borough Council,1162,Care Uk Community Partnership Ltd,M18C,Adult Social Care Operations,Supplies and Services,"3,803.00",Jun-22
Slough Borough Council,1162,Care Uk Community Partnership Ltd,M18C,Adult Social Care Operations,Supplies and Services,"64,651.00",Jun-22
Slough Borough Council,1162,Care Uk Community Partnership Ltd,M18C,Adult Social Care Operations,Supplies and Services,"-13,594.60",Jun-22
Slough Borough Council,1162,Care Uk Community Partnership Ltd,M18C,Adult Social Care Operations,Supplies and Services,"3,803.00",Jun-22
Slough Borough Council,1162,Care Uk Community Partnership Ltd,M18C,Adult Social Care Operations,Supplies and Services,"3,803.00",Jun-22
Slough Borough Council,1162,Care Uk Community Partnership Ltd,M18C,Adult Social Care Operations,Supplies and Services,"3,969.72",Jun-22
Slough Borough Council,1162,Care Uk Community Partnership Ltd,M18C,Adult Social Care Operations,Supplies and Services,"3,969.72",Jun-22
Slough Borough Council,1162,Care Uk Community Partnership Ltd,M18C,Adult Social Care Operations,Supplies and Services,"3,803.00",Jun-22
Slough Borough Council,1162,Care Uk Community Partnership Ltd,M18C,Adult Social Care Operations,Supplies and Services,"3,803.00",Jun-22
Slough Borough Council,1162,Care Uk Community Partnership Ltd,M18C,Adult Social Care Operations,Supplies and Services,"3,803.00",Jun-22
Slough Borough Council,1162,Care Uk Community Partnership Ltd,M18C,Adult Social Care Operations,Supplies and Services,"3,803.00",Jun-22
Slough Borough Council,1162,Care Uk Community Partnership Ltd,M18C,Adult Social Care Operations,Supplies and Services,"3,803.00",Jun-22
Slough Borough Council,1162,Care Uk Community Partnership Ltd,M18C,Adult Social Care Operations,Supplies and Services,"3,803.00",Jun-22
Slough Borough Council,1162,Care Uk Community Partnership Ltd,M18C,Adult Social Care Operations,Supplies and Services,"3,803.00",Jun-22
Slough Borough Council,1162,Care Uk Community Partnership Ltd,M18C,Adult Social Care Operations,Supplies and Services,"3,969.72",Jun-22
Slough Borough Council,1162,Care Uk Community Partnership Ltd,M18C,Adult Social Care Operations,Supplies and Services,"3,803.00",Jun-22
Slough Borough Council,1162,Care Uk Community Partnership Ltd,M18C,Adult Social Care Operations,Supplies and Services,"3,969.72",Jun-22
Slough Borough Council,1162,Care Uk Community Partnership Ltd,M18C,Adult Social Care Operations,Supplies and Services,"3,803.00",Jun-22
Slough Borough Council,1162,Care Uk Community Partnership Ltd,M18C,Adult Social Care Operations,Supplies and Services,"3,969.72",Jun-22
Slough Borough Council,1162,Care Uk Community Partnership Ltd,M18C,Adult Social Care Operations,Supplies and Services,"3,969.72",Jun-22
Slough Borough Council,1162,Care Uk Community Partnership Ltd,M18C,Adult Social Care Operations,Supplies and Services,"3,803.00",Jun-22
Slough Borough Council,1162,Care Uk Community Partnership Ltd,M18C,Adult Social Care Operations,Supplies and Services,"3,803.00",Jun-22
Slough Borough Council,1162,Care Uk Community Partnership Ltd,M18C,Adult Social Care Operations,Supplies and Services,"3,803.00",Jun-22
Slough Borough Council,1162,Care Uk Community Partnership Ltd,M18C,Adult Social Care Operations,Supplies and Services,"3,803.00",Jun-22
Slough Borough Council,1162,Care Uk Community Partnership Ltd,M18C,Adult Social Care Operations,Supplies and Services,"3,803.00",Jun-22
Slough Borough Council,1162,Care Uk Community Partnership Ltd,M18C,Adult Social Care Operations,Supplies and Services,"3,969.72",Jun-22
Slough Borough Council,1162,Care Uk Community Partnership Ltd,M18C,Adult Social Care Operations,Supplies and Services,"3,803.00",Jun-22
Slough Borough Council,1162,Care Uk Community Partnership Ltd,M18C,Adult Social Care Operations,Supplies and Services,"3,969.72",Jun-22
Slough Borough Council,1162,Care Uk Community Partnership Ltd,M18C,Adult Social Care Operations,Supplies and Services,"-45,364.04",Jun-22
Slough Borough Council,1162,Care Uk Community Partnership Ltd,M18C,Adult Social Care Operations,Supplies and Services,"3,969.72",Jun-22
Slough Borough Council,1162,Care Uk Community Partnership Ltd,M18C,Adult Social Care Operations,Supplies and Services,"3,803.00",Jun-22
Slough Borough Council,1162,Care Uk Community Partnership Ltd,M25C,Adult Social Care Operations,Supplies and Services,"3,484.52",Jun-22
Slough Borough Council,1162,Care Uk Community Partnership Ltd,M25C,Adult Social Care Operations,Supplies and Services,"3,484.52",Jun-22
Slough Borough Council,1162,Care Uk Community Partnership Ltd,M25C,Adult Social Care Operations,Supplies and Services,"69,690.40",Jun-22
Slough Borough Council,1162,Care Uk Community Partnership Ltd,M25C,Adult Social Care Operations,Supplies and Services,"3,484.52",Jun-22
Slough Borough Council,1162,Care Uk Community Partnership Ltd,M25C,Adult Social Care Operations,Supplies and Services,"3,484.52",Jun-22
Slough Borough Council,1162,Care Uk Community Partnership Ltd,M25C,Adult Social Care Operations,Supplies and Services,"-24,391.08",Jun-22
Slough Borough Council,1162,Care Uk Community Partnership Ltd,M25C,Adult Social Care Operations,Supplies and Services,"3,484.52",Jun-22
Slough Borough Council,1162,Care Uk Community Partnership Ltd,M25C,Adult Social Care Operations,Supplies and Services,"69,690.40",Jun-22
Slough Borough Council,1162,Care Uk Community Partnership Ltd,M25C,Adult Social Care Operations,Supplies and Services,"-24,391.08",Jun-22
Slough Borough Council,1162,Care Uk Community Partnership Ltd,M25C,Adult Social Care Operations,Supplies and Services,"3,484.52",Jun-22
Slough Borough Council,1162,Care Uk Community Partnership Ltd,M25C,Adult Social Care Operations,Supplies and Services,"3,484.52",Jun-22
Slough Borough Council,1162,Care Uk Community Partnership Ltd,M25C,Adult Social Care Operations,Supplies and Services,"3,484.52",Jun-22
Slough Borough Council,1162,Care Uk Community Partnership Ltd,M25C,Adult Social Care Operations,Supplies and Services,"3,484.52",Jun-22
Slough Borough Council,1162,Care Uk Community Partnership Ltd,M25C,Adult Social Care Operations,Supplies and Services,"3,484.52",Jun-22
Slough Borough Council,1162,Care Uk Community Partnership Ltd,M26E,Adult Social Care Operations,Supplies and Services,"3,803.00",Jun-22
Slough Borough Council,1162,Care Uk Community Partnership Ltd,M26E,Adult Social Care Operations,Supplies and Services,"3,803.00",Jun-22
Slough Borough Council,1162,Care Uk Community Partnership Ltd,M26E,Adult Social Care Operations,Supplies and Services,"3,803.00",Jun-22
Slough Borough Council,1162,Care Uk Community Partnership Ltd,M26E,Adult Social Care Operations,Supplies and Services,"3,803.00",Jun-22
Slough Borough Council,1162,Care Uk Community Partnership Ltd,M27C,Adult Social Care Operations,Supplies and Services,"3,484.52",Jun-22
Slough Borough Council,1162,Care Uk Community Partnership Ltd,M27C,Adult Social Care Operations,Supplies and Services,"3,181.40",Jun-22
Slough Borough Council,1162,Care Uk Community Partnership Ltd,M27C,Adult Social Care Operations,Supplies and Services,"3,484.52",Jun-22
Slough Borough Council,1162,Care Uk Community Partnership Ltd,M27C,Adult Social Care Operations,Supplies and Services,"3,484.52",Jun-22
Slough Borough Council,1162,Care Uk Community Partnership Ltd,M27C,Adult Social Care Operations,Supplies and Services,"3,181.40",Jun-22
Slough Borough Council,1162,Care Uk Community Partnership Ltd,M27C,Adult Social Care Operations,Supplies and Services,"34,995.40",Jun-22
Slough Borough Council,1162,Care Uk Community Partnership Ltd,M27C,Adult Social Care Operations,Supplies and Services,"3,484.52",Jun-22
Slough Borough Council,1162,Care Uk Community Partnership Ltd,M27C,Adult Social Care Operations,Supplies and Services,"3,484.52",Jun-22
Slough Borough Council,1162,Care Uk Community Partnership Ltd,M27C,Adult Social Care Operations,Supplies and Services,"3,484.52",Jun-22
Slough Borough Council,1162,Care Uk Community Partnership Ltd,M27C,Adult Social Care Operations,Supplies and Services,"3,484.52",Jun-22
Slough Borough Council,1162,Care Uk Community Partnership Ltd,M27C,Adult Social Care Operations,Supplies and Services,"3,484.52",Jun-22
Slough Borough Council,1162,Care Uk Community Partnership Ltd,M27C,Adult Social Care Operations,Supplies and Services,"3,181.40",Jun-22
Slough Borough Council,1162,Care Uk Community Partnership Ltd,M27C,Adult Social Care Operations,Supplies and Services,"3,484.52",Jun-22
Slough Borough Council,1162,Care Uk Community Partnership Ltd,M27C,Adult Social Care Operations,Supplies and Services,"3,484.52",Jun-22
Slough Borough Council,1162,Care Uk Community Partnership Ltd,M27C,Adult Social Care Operations,Supplies and Services,"3,181.40",Jun-22
Slough Borough Council,1162,Care Uk Community Partnership Ltd,M27C,Adult Social Care Operations,Supplies and Services,"3,484.52",Jun-22
Slough Borough Council,1162,Care Uk Community Partnership Ltd,M27C,Adult Social Care Operations,Supplies and Services,"3,484.52",Jun-22
Slough Borough Council,1162,Care Uk Community Partnership Ltd,M27C,Adult Social Care Operations,Supplies and Services,"3,181.40",Jun-22
Slough Borough Council,1162,Care Uk Community Partnership Ltd,M27C,Adult Social Care Operations,Supplies and Services,"34,995.40",Jun-22
Slough Borough Council,1162,Care Uk Community Partnership Ltd,M27C,Adult Social Care Operations,Supplies and Services,"3,181.40",Jun-22
Slough Borough Council,1162,Care Uk Community Partnership Ltd,M27C,Adult Social Care Operations,Supplies and Services,"3,181.40",Jun-22
Slough Borough Council,1162,Care Uk Community Partnership Ltd,M27C,Adult Social Care Operations,Supplies and Services,"3,484.52",Jun-22
Slough Borough Council,1162,Care Uk Community Partnership Ltd,M27C,Adult Social Care Operations,Supplies and Services,"3,484.52",Jun-22
Slough Borough Council,1162,Care Uk Community Partnership Ltd,M27C,Adult Social Care Operations,Supplies and Services,"3,484.52",Jun-22
Slough Borough Council,1162,Care Uk Community Partnership Ltd,M27C,Adult Social Care Operations,Supplies and Services,"3,181.40",Jun-22
Slough Borough Council,1162,Care Uk Community Partnership Ltd,M27C,Adult Social Care Operations,Supplies and Services,"3,484.52",Jun-22
Slough Borough Council,1162,Care Uk Community Partnership Ltd,M27C,Adult Social Care Operations,Supplies and Services,"3,484.52",Jun-22
Slough Borough Council,1162,Care Uk Community Partnership Ltd,M27C,Adult Social Care Operations,Supplies and Services,"3,484.52",Jun-22
Slough Borough Council,1162,Care Uk Community Partnership Ltd,M27C,Adult Social Care Operations,Supplies and Services,"3,484.52",Jun-22
Slough Borough Council,1162,Care Uk Community Partnership Ltd,M27C,Adult Social Care Operations,Supplies and Services,"3,181.40",Jun-22
Slough Borough Council,1162,Care Uk Community Partnership Ltd,M27C,Adult Social Care Operations,Supplies and Services,"3,484.52",Jun-22
Slough Borough Council,1162,Care Uk Community Partnership Ltd,M27C,Adult Social Care Operations,Supplies and Services,"3,484.52",Jun-22
Slough Borough Council,1162,Care Uk Community Partnership Ltd,M27C,Adult Social Care Operations,Supplies and Services,"3,484.52",Jun-22
Slough Borough Council,1162,Care Uk Community Partnership Ltd,M27C,Adult Social Care Operations,Supplies and Services,"3,484.52",Jun-22
Slough Borough Council,1162,Care Uk Community Partnership Ltd,M27C,Adult Social Care Operations,Supplies and Services,"3,181.40",Jun-22
Slough Borough Council,1162,Care Uk Community Partnership Ltd,M27C,Adult Social Care Operations,Supplies and Services,"3,484.52",Jun-22
Slough Borough Council,1162,Care Uk Community Partnership Ltd,M27F,Adult Social Care Operations,Supplies and Services,"-3,181.40",Jun-22
Slough Borough Council,1162,Care Uk Community Partnership Ltd,M27F,Adult Social Care Operations,Supplies and Services,"-3,181.40",Jun-22
Slough Borough Council,1910,Carousel Buses Ltd,D512,Place Strategy & Infrastructure,Supplies and Services,"2,043.11",Jun-22
Slough Borough Council,1910,Carousel Buses Ltd,D512,Place Strategy & Infrastructure,Supplies and Services,"2,744.83",Jun-22
Slough Borough Council,804413,Castle Water,B068,Business Services,Premises,"1,047.28",Jun-22
Slough Borough Council,804413,Castle Water,D900,Place Operations,Premises,596.65,Jun-22
Slough Borough Council,418,Castleview School,E620,Children & Families,Supplies and Services,"47,793.33",Jun-22
Slough Borough Council,803560,Centennial Property Limited T/A Rent Connect,H205,Housing (People) Services,Premises,"41,882.00",Jun-22
Slough Borough Council,805619,Centennial Property Limited T/A The Housing Network,H205,Housing (People) Services,Premises,"33,100.00",Jun-22
Slough Borough Council,805619,Centennial Property Limited T/A The Housing Network,H205,Housing (People) Services,Premises,"34,950.00",Jun-22
Slough Borough Council,3609,Centurion Healthcare Ltd,M26E,Adult Social Care Operations,Supplies and Services,"5,837.22",Jun-22
Slough Borough Council,805174,Certas Energy,D900,Place Operations,Supplies and Services,"-20,333.42",Jun-22
Slough Borough Council,805174,Certas Energy,D900,Place Operations,Supplies and Services,"22,443.00",Jun-22
Slough Borough Council,805174,Certas Energy,D900,Place Operations,Supplies and Services,"1,140.00",Jun-22
Slough Borough Council,2892,Chalfont Lodge,M15D,Adult Social Care Operations,Supplies and Services,"3,214.29",Jun-22
Slough Borough Council,2892,Chalfont Lodge,M15D,Adult Social Care Operations,Supplies and Services,"5,785.71",Jun-22
Slough Borough Council,2892,Chalfont Lodge,M15F,Adult Social Care Operations,Supplies and Services,"8,571.43",Jun-22
Slough Borough Council,2892,Chalfont Lodge,M26E,Adult Social Care Operations,Supplies and Services,"5,785.71",Jun-22
Slough Borough Council,2608,Chandos Lodge Nursing Home,M18C,Adult Social Care Operations,Supplies and Services,"3,600.00",Jun-22
Slough Borough Council,1877,Chelsie Innes,C322,Community,Supplies and Services,"4,147.00",Jun-22
Slough Borough Council,3114,Cherry Trees Day Nursery,F909,Children & Families,Supplies and Services,"26,273.52",Jun-22
Slough Borough Council,2871,Cherry Trees Residential Care,M42F,Adult Social Care Operations,Supplies and Services,"1,607.14",Jun-22
Slough Borough Council,2871,Cherry Trees Residential Care,M42F,Adult Social Care Operations,Supplies and Services,"3,214.29",Jun-22
Slough Borough Council,2871,Cherry Trees Residential Care,M42F,Adult Social Care Operations,Supplies and Services,"3,214.29",Jun-22
Slough Borough Council,807225,Chiltern Way Academy,F551,Children & Families,Supplies and Services,"3,990.84",Jun-22
Slough Borough Council,807225,Chiltern Way Academy,F551,Children & Families,Supplies and Services,"1,995.42",Jun-22
Slough Borough Council,807225,Chiltern Way Academy,F551,Children & Families,Supplies and Services,"9,280.00",Jun-22
Slough Borough Council,807225,Chiltern Way Academy,F551,Children & Families,Supplies and Services,"3,990.84",Jun-22
Slough Borough Council,803495,Christchurch Court Ltd,M15D,Adult Social Care Operations,Supplies and Services,"8,574.00",Jun-22
Slough Borough Council,2561,Christies Care Ltd,M44D,Adult Social Care Operations,Supplies and Services,"6,430.89",Jun-22
Slough Borough Council,2561,Christies Care Ltd,M44D,Adult Social Care Operations,Supplies and Services,"4,514.08",Jun-22
Slough Borough Council,768,Cippenham Nursery School,F550,Children & Families,Supplies and Services,840.00,Jun-22
Slough Borough Council,807491,Cippenham School,E620,Children & Families,Supplies and Services,"15,886.99",Jun-22
Slough Borough Council,807491,Cippenham School,B297,Finance & Commercial,Government Grants,"2,208.37",Jun-22
Slough Borough Council,807491,Cippenham School,B297,Finance & Commercial,Government Grants,"2,164.50",Jun-22
Slough Borough Council,808112,Citizen Advice Bureau Slough,A02C,Adult Social Care Commissioning,Supplies and Services,"30,000.00",Jun-22
Slough Borough Council,806550,City Homecare Ltd,M44F,Adult Social Care Operations,Salaries and Wages,579.60,Jun-22
Slough Borough Council,806550,City Homecare Ltd,A07R,Adult Social Care Operations,Supplies and Services,894.60,Jun-22
Slough Borough Council,806550,City Homecare Ltd,A07R,Adult Social Care Operations,Supplies and Services,562.80,Jun-22
Slough Borough Council,806550,City Homecare Ltd,A07R,Adult Social Care Operations,Supplies and Services,"1,125.60",Jun-22
Slough Borough Council,806550,City Homecare Ltd,M44C,Adult Social Care Operations,Supplies and Services,"1,881.60",Jun-22
Slough Borough Council,806550,City Homecare Ltd,M44C,Adult Social Care Operations,Supplies and Services,940.80,Jun-22
Slough Borough Council,806550,City Homecare Ltd,M44C,Adult Social Care Operations,Supplies and Services,"3,528.00",Jun-22
Slough Borough Council,806550,City Homecare Ltd,M44C,Adult Social Care Operations,Supplies and Services,"1,176.00",Jun-22
Slough Borough Council,806550,City Homecare Ltd,M44C,Adult Social Care Operations,Supplies and Services,"1,545.60",Jun-22
Slough Borough Council,806550,City Homecare Ltd,M44C,Adult Social Care Operations,Supplies and Services,"2,116.80",Jun-22
Slough Borough Council,806550,City Homecare Ltd,M44C,Adult Social Care Operations,Supplies and Services,823.20,Jun-22
Slough Borough Council,806550,City Homecare Ltd,M44C,Adult Social Care Operations,Supplies and Services,"1,058.40",Jun-22
Slough Borough Council,806550,City Homecare Ltd,M44C,Adult Social Care Operations,Supplies and Services,772.80,Jun-22
Slough Borough Council,806550,City Homecare Ltd,M44C,Adult Social Care Operations,Supplies and Services,"1,646.40",Jun-22
Slough Borough Council,806550,City Homecare Ltd,M44C,Adult Social Care Operations,Supplies and Services,"2,116.80",Jun-22
Slough Borough Council,806550,City Homecare Ltd,M44C,Adult Social Care Operations,Supplies and Services,"1,176.00",Jun-22
Slough Borough Council,806550,City Homecare Ltd,M44C,Adult Social Care Operations,Supplies and Services,"1,411.20",Jun-22
Slough Borough Council,806550,City Homecare Ltd,M44C,Adult Social Care Operations,Supplies and Services,"2,251.20",Jun-22
Slough Borough Council,806550,City Homecare Ltd,M44C,Adult Social Care Operations,Supplies and Services,"1,881.60",Jun-22
Slough Borough Council,806550,City Homecare Ltd,M44C,Adult Social Care Operations,Supplies and Services,823.20,Jun-22
Slough Borough Council,806550,City Homecare Ltd,M44C,Adult Social Care Operations,Supplies and Services,688.80,Jun-22
Slough Borough Council,806550,City Homecare Ltd,M44C,Adult Social Care Operations,Supplies and Services,588.00,Jun-22
Slough Borough Council,806550,City Homecare Ltd,M44C,Adult Social Care Operations,Supplies and Services,823.20,Jun-22
Slough Borough Council,806550,City Homecare Ltd,M44C,Adult Social Care Operations,Supplies and Services,856.80,Jun-22
Slough Borough Council,806550,City Homecare Ltd,M44C,Adult Social Care Operations,Supplies and Services,705.60,Jun-22
Slough Borough Council,806550,City Homecare Ltd,M44C,Adult Social Care Operations,Supplies and Services,"1,058.40",Jun-22
Slough Borough Council,806550,City Homecare Ltd,M44C,Adult Social Care Operations,Supplies and Services,"1,646.40",Jun-22
Slough Borough Council,806550,City Homecare Ltd,M44C,Adult Social Care Operations,Supplies and Services,"1,344.00",Jun-22
Slough Borough Council,806550,City Homecare Ltd,M44C,Adult Social Care Operations,Supplies and Services,588.00,Jun-22
Slough Borough Council,806550,City Homecare Ltd,M44C,Adult Social Care Operations,Supplies and Services,"2,116.80",Jun-22
Slough Borough Council,806550,City Homecare Ltd,M44C,Adult Social Care Operations,Supplies and Services,"1,176.00",Jun-22
Slough Borough Council,806550,City Homecare Ltd,M44C,Adult Social Care Operations,Supplies and Services,"1,646.40",Jun-22
Slough Borough Council,806550,City Homecare Ltd,M44C,Adult Social Care Operations,Supplies and Services,588.00,Jun-22
Slough Borough Council,806550,City Homecare Ltd,M44C,Adult Social Care Operations,Supplies and Services,688.80,Jun-22
Slough Borough Council,806550,City Homecare Ltd,M44C,Adult Social Care Operations,Supplies and Services,"1,411.20",Jun-22
Slough Borough Council,806550,City Homecare Ltd,M44C,Adult Social Care Operations,Supplies and Services,772.80,Jun-22
Slough Borough Council,806550,City Homecare Ltd,M44C,Adult Social Care Operations,Supplies and Services,"1,881.60",Jun-22
Slough Borough Council,806550,City Homecare Ltd,M44C,Adult Social Care Operations,Supplies and Services,949.20,Jun-22
Slough Borough Council,806550,City Homecare Ltd,M44C,Adult Social Care Operations,Supplies and Services,"1,058.40",Jun-22
Slough Borough Council,806550,City Homecare Ltd,M44C,Adult Social Care Operations,Supplies and Services,"1,176.00",Jun-22
Slough Borough Council,806550,City Homecare Ltd,M44C,Adult Social Care Operations,Supplies and Services,"1,176.00",Jun-22
Slough Borough Council,806550,City Homecare Ltd,M44C,Adult Social Care Operations,Supplies and Services,823.20,Jun-22
Slough Borough Council,806550,City Homecare Ltd,M44C,Adult Social Care Operations,Supplies and Services,588.00,Jun-22
Slough Borough Council,806550,City Homecare Ltd,M44C,Adult Social Care Operations,Supplies and Services,"2,116.80",Jun-22
Slough Borough Council,806550,City Homecare Ltd,M44C,Adult Social Care Operations,Supplies and Services,705.60,Jun-22
Slough Borough Council,806550,City Homecare Ltd,M44C,Adult Social Care Operations,Supplies and Services,"1,058.40",Jun-22
Slough Borough Council,806550,City Homecare Ltd,M44C,Adult Social Care Operations,Supplies and Services,"1,881.60",Jun-22
Slough Borough Council,806550,City Homecare Ltd,M44C,Adult Social Care Operations,Supplies and Services,"2,116.80",Jun-22
Slough Borough Council,806550,City Homecare Ltd,M44C,Adult Social Care Operations,Supplies and Services,"1,176.00",Jun-22
Slough Borough Council,806550,City Homecare Ltd,M44C,Adult Social Care Operations,Supplies and Services,"1,138.20",Jun-22
Slough Borough Council,806550,City Homecare Ltd,M44C,Adult Social Care Operations,Supplies and Services,"1,881.60",Jun-22
Slough Borough Council,806550,City Homecare Ltd,M44C,Adult Social Care Operations,Supplies and Services,940.80,Jun-22
Slough Borough Council,806550,City Homecare Ltd,M44C,Adult Social Care Operations,Supplies and Services,"3,528.00",Jun-22
Slough Borough Council,806550,City Homecare Ltd,M44C,Adult Social Care Operations,Supplies and Services,"1,545.60",Jun-22
Slough Borough Council,806550,City Homecare Ltd,M44C,Adult Social Care Operations,Supplies and Services,"2,116.80",Jun-22
Slough Borough Council,806550,City Homecare Ltd,M44C,Adult Social Care Operations,Supplies and Services,823.20,Jun-22
Slough Borough Council,806550,City Homecare Ltd,M44C,Adult Social Care Operations,Supplies and Services,856.80,Jun-22
Slough Borough Council,806550,City Homecare Ltd,M44C,Adult Social Care Operations,Supplies and Services,"2,251.20",Jun-22
Slough Borough Council,806550,City Homecare Ltd,M44C,Adult Social Care Operations,Supplies and Services,"1,041.60",Jun-22
Slough Borough Council,806550,City Homecare Ltd,M44C,Adult Social Care Operations,Supplies and Services,831.60,Jun-22
Slough Borough Council,806550,City Homecare Ltd,M44C,Adult Social Care Operations,Supplies and Services,"2,058.00",Jun-22
Slough Borough Council,806550,City Homecare Ltd,M44C,Adult Social Care Operations,Supplies and Services,"1,050.00",Jun-22
Slough Borough Council,806550,City Homecare Ltd,M44C,Adult Social Care Operations,Supplies and Services,831.60,Jun-22
Slough Borough Council,806550,City Homecare Ltd,M44C,Adult Social Care Operations,Supplies and Services,"1,831.20",Jun-22
Slough Borough Council,806550,City Homecare Ltd,M44C,Adult Social Care Operations,Supplies and Services,"2,116.80",Jun-22
Slough Borough Council,806550,City Homecare Ltd,M44C,Adult Social Care Operations,Supplies and Services,705.60,Jun-22
Slough Borough Council,806550,City Homecare Ltd,M44C,Adult Social Care Operations,Supplies and Services,"1,058.40",Jun-22
Slough Borough Council,806550,City Homecare Ltd,M44C,Adult Social Care Operations,Supplies and Services,"1,881.60",Jun-22
Slough Borough Council,806550,City Homecare Ltd,M44C,Adult Social Care Operations,Supplies and Services,588.00,Jun-22
Slough Borough Council,806550,City Homecare Ltd,M44C,Adult Social Care Operations,Supplies and Services,"1,058.40",Jun-22
Slough Borough Council,806550,City Homecare Ltd,M44C,Adult Social Care Operations,Supplies and Services,688.80,Jun-22
Slough Borough Council,806550,City Homecare Ltd,M44C,Adult Social Care Operations,Supplies and Services,823.20,Jun-22
Slough Borough Council,806550,City Homecare Ltd,M44C,Adult Social Care Operations,Supplies and Services,"1,176.00",Jun-22
Slough Borough Council,806550,City Homecare Ltd,M44C,Adult Social Care Operations,Supplies and Services,"2,116.80",Jun-22
Slough Borough Council,806550,City Homecare Ltd,M44C,Adult Social Care Operations,Supplies and Services,"1,545.60",Jun-22
Slough Borough Council,806550,City Homecare Ltd,M44C,Adult Social Care Operations,Supplies and Services,"2,116.80",Jun-22
Slough Borough Council,806550,City Homecare Ltd,M44C,Adult Social Care Operations,Supplies and Services,"1,411.20",Jun-22
Slough Borough Council,806550,City Homecare Ltd,M44C,Adult Social Care Operations,Supplies and Services,"1,176.00",Jun-22
Slough Borough Council,806550,City Homecare Ltd,M44C,Adult Social Care Operations,Supplies and Services,940.80,Jun-22
Slough Borough Council,806550,City Homecare Ltd,M44C,Adult Social Care Operations,Supplies and Services,"1,176.00",Jun-22
Slough Borough Council,806550,City Homecare Ltd,M44C,Adult Social Care Operations,Supplies and Services,940.80,Jun-22
Slough Borough Council,806550,City Homecare Ltd,M44C,Adult Social Care Operations,Supplies and Services,"3,528.00",Jun-22
Slough Borough Council,806550,City Homecare Ltd,M44C,Adult Social Care Operations,Supplies and Services,"1,646.40",Jun-22
Slough Borough Council,806550,City Homecare Ltd,M44C,Adult Social Care Operations,Supplies and Services,"2,251.20",Jun-22
Slough Borough Council,806550,City Homecare Ltd,M44C,Adult Social Care Operations,Supplies and Services,"1,881.60",Jun-22
Slough Borough Council,806550,City Homecare Ltd,M44C,Adult Social Care Operations,Supplies and Services,823.20,Jun-22
Slough Borough Council,806550,City Homecare Ltd,M44C,Adult Social Care Operations,Supplies and Services,588.00,Jun-22
Slough Borough Council,806550,City Homecare Ltd,M44C,Adult Social Care Operations,Supplies and Services,823.20,Jun-22
Slough Borough Council,806550,City Homecare Ltd,M44C,Adult Social Care Operations,Supplies and Services,856.80,Jun-22
Slough Borough Council,806550,City Homecare Ltd,M44C,Adult Social Care Operations,Supplies and Services,772.80,Jun-22
Slough Borough Council,806550,City Homecare Ltd,M44C,Adult Social Care Operations,Supplies and Services,"1,646.40",Jun-22
Slough Borough Council,806550,City Homecare Ltd,M44D,Adult Social Care Operations,Supplies and Services,940.80,Jun-22
Slough Borough Council,806550,City Homecare Ltd,M44D,Adult Social Care Operations,Supplies and Services,"2,822.40",Jun-22
Slough Borough Council,806550,City Homecare Ltd,M44D,Adult Social Care Operations,Supplies and Services,588.00,Jun-22
Slough Borough Council,806550,City Homecare Ltd,M44D,Adult Social Care Operations,Supplies and Services,"1,948.80",Jun-22
Slough Borough Council,806550,City Homecare Ltd,M44D,Adult Social Care Operations,Supplies and Services,588.00,Jun-22
Slough Borough Council,806550,City Homecare Ltd,M44D,Adult Social Care Operations,Supplies and Services,940.80,Jun-22
Slough Borough Council,806550,City Homecare Ltd,M44D,Adult Social Care Operations,Supplies and Services,588.00,Jun-22
Slough Borough Council,806550,City Homecare Ltd,M44D,Adult Social Care Operations,Supplies and Services,554.40,Jun-22
Slough Borough Council,806550,City Homecare Ltd,M44D,Adult Social Care Operations,Supplies and Services,705.60,Jun-22
Slough Borough Council,806550,City Homecare Ltd,M44D,Adult Social Care Operations,Supplies and Services,"1,881.60",Jun-22
Slough Borough Council,806550,City Homecare Ltd,M44D,Adult Social Care Operations,Supplies and Services,"2,822.40",Jun-22
Slough Borough Council,806550,City Homecare Ltd,M44D,Adult Social Care Operations,Supplies and Services,"1,881.60",Jun-22
Slough Borough Council,806550,City Homecare Ltd,M44D,Adult Social Care Operations,Supplies and Services,940.80,Jun-22
Slough Borough Council,806550,City Homecare Ltd,M44D,Adult Social Care Operations,Supplies and Services,940.80,Jun-22
Slough Borough Council,806550,City Homecare Ltd,M44D,Adult Social Care Operations,Supplies and Services,"1,881.60",Jun-22
Slough Borough Council,806550,City Homecare Ltd,M44D,Adult Social Care Operations,Supplies and Services,940.80,Jun-22
Slough Borough Council,806550,City Homecare Ltd,M44D,Adult Social Care Operations,Supplies and Services,705.60,Jun-22
Slough Borough Council,806550,City Homecare Ltd,M44D,Adult Social Care Operations,Supplies and Services,705.60,Jun-22
Slough Borough Council,806550,City Homecare Ltd,M44D,Adult Social Care Operations,Supplies and Services,"1,948.80",Jun-22
Slough Borough Council,806550,City Homecare Ltd,M44D,Adult Social Care Operations,Supplies and Services,"2,822.40",Jun-22
Slough Borough Council,806550,City Homecare Ltd,M44D,Adult Social Care Operations,Supplies and Services,588.00,Jun-22
Slough Borough Council,806550,City Homecare Ltd,M44D,Adult Social Care Operations,Supplies and Services,588.00,Jun-22
Slough Borough Council,806550,City Homecare Ltd,M44D,Adult Social Care Operations,Supplies and Services,940.80,Jun-22
Slough Borough Council,806550,City Homecare Ltd,M44E,Adult Social Care Operations,Supplies and Services,705.60,Jun-22
Slough Borough Council,806550,City Homecare Ltd,M44E,Adult Social Care Operations,Supplies and Services,705.60,Jun-22
Slough Borough Council,806550,City Homecare Ltd,M44F,Adult Social Care Operations,Supplies and Services,"1,478.40",Jun-22
Slough Borough Council,806550,City Homecare Ltd,M44F,Adult Social Care Operations,Supplies and Services,806.40,Jun-22
Slough Borough Council,806550,City Homecare Ltd,M44F,Adult Social Care Operations,Supplies and Services,840.00,Jun-22
Slough Borough Council,806550,City Homecare Ltd,M44F,Adult Social Care Operations,Supplies and Services,840.00,Jun-22
Slough Borough Council,806550,City Homecare Ltd,M44F,Adult Social Care Operations,Supplies and Services,"1,478.40",Jun-22
Slough Borough Council,806550,City Homecare Ltd,M44F,Adult Social Care Operations,Supplies and Services,806.40,Jun-22
Slough Borough Council,806550,City Homecare Ltd,M44F,Adult Social Care Operations,Supplies and Services,"1,478.40",Jun-22
Slough Borough Council,806550,City Homecare Ltd,M44F,Adult Social Care Operations,Supplies and Services,806.40,Jun-22
Slough Borough Council,806550,City Homecare Ltd,M44F,Adult Social Care Operations,Supplies and Services,840.00,Jun-22
Slough Borough Council,806550,City Homecare Ltd,M48C,Adult Social Care Operations,Supplies and Services,554.40,Jun-22
Slough Borough Council,1083,Civica Uk Limited,C104,Community,Supplies and Services,"23,177.00",Jun-22
Slough Borough Council,1151,Claycots Primary School,E200,Children & Families,Supplies and Services,"790,157.74",Jun-22
Slough Borough Council,408,Clear Channel Uk Ltd,B283,Finance & Commercial,Supplies and Services,"1,950.00",Jun-22
Slough Borough Council,408,Clear Channel Uk Ltd,B283,Finance & Commercial,Supplies and Services,850.00,Jun-22
Slough Borough Council,3685,Coghlan Lodges Limited,M44D,Adult Social Care Operations,Supplies and Services,"2,116.04",Jun-22
Slough Borough Council,3685,Coghlan Lodges Limited,M44F,Adult Social Care Operations,Supplies and Services,"1,870.00",Jun-22
Slough Borough Council,805823,Collaborative Care Solutions,M42E,Adult Social Care Operations,Supplies and Services,"8,914.28",Jun-22
Slough Borough Council,805823,Collaborative Care Solutions,M42F,Adult Social Care Operations,Supplies and Services,"2,875.71",Jun-22
Slough Borough Council,805823,Collaborative Care Solutions,M44D,Adult Social Care Operations,Supplies and Services,"8,914.28",Jun-22
Slough Borough Council,459,Colliers Cre,J006,Place Management,Supplies and Services,"3,666.67",Jun-22
Slough Borough Council,459,Colliers Cre,J006,Place Management,Supplies and Services,"3,666.67",Jun-22
Slough Borough Council,286,Colnbrook C Of E Primary School,E620,Children & Families,Supplies and Services,"46,267.47",Jun-22
Slough Borough Council,2535,Comfort Care Services,M42E,Adult Social Care Operations,Supplies and Services,"2,325.00",Jun-22
Slough Borough Council,2535,Comfort Care Services,M42E,Adult Social Care Operations,Supplies and Services,"2,635.00",Jun-22
Slough Borough Council,2535,Comfort Care Services,M42E,Adult Social Care Operations,Supplies and Services,"1,538.88",Jun-22
Slough Borough Council,2535,Comfort Care Services,M42E,Adult Social Care Operations,Supplies and Services,"5,114.92",Jun-22
Slough Borough Council,2535,Comfort Care Services,M42E,Adult Social Care Operations,Supplies and Services,"2,482.07",Jun-22
Slough Borough Council,2535,Comfort Care Services,M42E,Adult Social Care Operations,Supplies and Services,"2,503.63",Jun-22
Slough Borough Council,2535,Comfort Care Services,M42E,Adult Social Care Operations,Supplies and Services,"2,250.00",Jun-22
Slough Borough Council,2535,Comfort Care Services,M42E,Adult Social Care Operations,Supplies and Services,546.00,Jun-22
Slough Borough Council,2535,Comfort Care Services,M42E,Adult Social Care Operations,Supplies and Services,"1,128.21",Jun-22
Slough Borough Council,2535,Comfort Care Services,M42E,Adult Social Care Operations,Supplies and Services,750.00,Jun-22
Slough Borough Council,2535,Comfort Care Services,M42E,Adult Social Care Operations,Supplies and Services,"3,089.06",Jun-22
Slough Borough Council,2535,Comfort Care Services,M42E,Adult Social Care Operations,Supplies and Services,"2,550.00",Jun-22
Slough Borough Council,2535,Comfort Care Services,M42E,Adult Social Care Operations,Supplies and Services,"1,489.24",Jun-22
Slough Borough Council,2535,Comfort Care Services,M42E,Adult Social Care Operations,Supplies and Services,"1,308.72",Jun-22
Slough Borough Council,2535,Comfort Care Services,M42E,Adult Social Care Operations,Supplies and Services,"4,949.92",Jun-22
Slough Borough Council,2535,Comfort Care Services,M42F,Adult Social Care Operations,Supplies and Services,"1,749.29",Jun-22
Slough Borough Council,2535,Comfort Care Services,M42F,Adult Social Care Operations,Supplies and Services,839.21,Jun-22
Slough Borough Council,2535,Comfort Care Services,M42F,Adult Social Care Operations,Supplies and Services,"2,635.00",Jun-22
Slough Borough Council,2535,Comfort Care Services,M42F,Adult Social Care Operations,Supplies and Services,"2,369.29",Jun-22
Slough Borough Council,2535,Comfort Care Services,M42F,Adult Social Care Operations,Supplies and Services,"2,635.00",Jun-22
Slough Borough Council,2535,Comfort Care Services,M42F,Adult Social Care Operations,Supplies and Services,"1,632.15",Jun-22
Slough Borough Council,2535,Comfort Care Services,M42F,Adult Social Care Operations,Supplies and Services,839.21,Jun-22
Slough Borough Council,2535,Comfort Care Services,M42F,Adult Social Care Operations,Supplies and Services,"1,300.80",Jun-22
Slough Borough Council,2535,Comfort Care Services,M42F,Adult Social Care Operations,Supplies and Services,"3,474.21",Jun-22
Slough Borough Council,2535,Comfort Care Services,M42F,Adult Social Care Operations,Supplies and Services,"1,300.80",Jun-22
Slough Borough Council,2535,Comfort Care Services,M42F,Adult Social Care Operations,Supplies and Services,"2,550.00",Jun-22
Slough Borough Council,2535,Comfort Care Services,M42F,Adult Social Care Operations,Supplies and Services,"1,692.86",Jun-22
Slough Borough Council,2535,Comfort Care Services,M42F,Adult Social Care Operations,Supplies and Services,"2,550.00",Jun-22
Slough Borough Council,2535,Comfort Care Services,M42F,Adult Social Care Operations,Supplies and Services,"2,550.00",Jun-22
Slough Borough Council,2535,Comfort Care Services,M42F,Adult Social Care Operations,Supplies and Services,"2,292.86",Jun-22
Slough Borough Council,2535,Comfort Care Services,M42F,Adult Social Care Operations,Supplies and Services,"3,362.14",Jun-22
Slough Borough Council,2535,Comfort Care Services,M42F,Adult Social Care Operations,Supplies and Services,"1,430.31",Jun-22
Slough Borough Council,2535,Comfort Care Services,M42F,Adult Social Care Operations,Supplies and Services,974.57,Jun-22
Slough Borough Council,2535,Comfort Care Services,M42F,Adult Social Care Operations,Supplies and Services,812.14,Jun-22
Slough Borough Council,2535,Comfort Care Services,M42F,Adult Social Care Operations,Supplies and Services,"1,258.84",Jun-22
Slough Borough Council,2535,Comfort Care Services,M42F,Adult Social Care Operations,Supplies and Services,"2,550.00",Jun-22
Slough Borough Council,2535,Comfort Care Services,M42F,Adult Social Care Operations,Supplies and Services,"1,579.50",Jun-22
Slough Borough Council,2535,Comfort Care Services,M42F,Adult Social Care Operations,Supplies and Services,"3,768.21",Jun-22
Slough Borough Council,2535,Comfort Care Services,M42F,Adult Social Care Operations,Supplies and Services,812.14,Jun-22
Slough Borough Council,2535,Comfort Care Services,M42F,Adult Social Care Operations,Supplies and Services,812.14,Jun-22
Slough Borough Council,2535,Comfort Care Services,M42F,Adult Social Care Operations,Supplies and Services,"1,258.84",Jun-22
Slough Borough Council,2535,Comfort Care Services,M42F,Adult Social Care Operations,Supplies and Services,812.14,Jun-22
Slough Borough Council,2535,Comfort Care Services,M42F,Adult Social Care Operations,Supplies and Services,"2,550.00",Jun-22
Slough Borough Council,2535,Comfort Care Services,M42F,Adult Social Care Operations,Supplies and Services,"2,550.00",Jun-22
Slough Borough Council,2535,Comfort Care Services,M44C,Adult Social Care Operations,Supplies and Services,"2,349.80",Jun-22
Slough Borough Council,2535,Comfort Care Services,M44C,Adult Social Care Operations,Supplies and Services,"2,274.00",Jun-22
Slough Borough Council,2535,Comfort Care Services,M44E,Adult Social Care Operations,Supplies and Services,"2,072.57",Jun-22
Slough Borough Council,2535,Comfort Care Services,M44E,Adult Social Care Operations,Supplies and Services,"4,317.64",Jun-22
Slough Borough Council,2535,Comfort Care Services,M44F,Adult Social Care Operations,Supplies and Services,"1,317.50",Jun-22
Slough Borough Council,2535,Comfort Care Services,M44F,Adult Social Care Operations,Supplies and Services,"2,635.00",Jun-22
Slough Borough Council,2535,Comfort Care Services,M44F,Adult Social Care Operations,Supplies and Services,"1,317.50",Jun-22
Slough Borough Council,2535,Comfort Care Services,M44F,Adult Social Care Operations,Supplies and Services,"3,357.48",Jun-22
Slough Borough Council,2535,Comfort Care Services,M44F,Adult Social Care Operations,Supplies and Services,"1,317.50",Jun-22
Slough Borough Council,2535,Comfort Care Services,M44F,Adult Social Care Operations,Supplies and Services,"1,275.00",Jun-22
Slough Borough Council,2535,Comfort Care Services,M44F,Adult Social Care Operations,Supplies and Services,"1,275.00",Jun-22
Slough Borough Council,2535,Comfort Care Services,M44F,Adult Social Care Operations,Supplies and Services,"2,843.10",Jun-22
Slough Borough Council,2535,Comfort Care Services,M44F,Adult Social Care Operations,Supplies and Services,"1,275.00",Jun-22
Slough Borough Council,2535,Comfort Care Services,M44F,Adult Social Care Operations,Supplies and Services,"3,362.14",Jun-22
Slough Borough Council,2535,Comfort Care Services,M44F,Adult Social Care Operations,Supplies and Services,"3,249.17",Jun-22
Slough Borough Council,2535,Comfort Care Services,M44F,Adult Social Care Operations,Supplies and Services,"1,128.21",Jun-22
Slough Borough Council,2535,Comfort Care Services,M44F,Adult Social Care Operations,Supplies and Services,"1,275.00",Jun-22
Slough Borough Council,2535,Comfort Care Services,M44F,Adult Social Care Operations,Supplies and Services,"1,827.34",Jun-22
Slough Borough Council,2535,Comfort Care Services,M44F,Adult Social Care Operations,Supplies and Services,"2,550.00",Jun-22
Slough Borough Council,2535,Comfort Care Services,M81D,Adult Social Care Operations,Supplies and Services,"2,635.00",Jun-22
Slough Borough Council,2535,Comfort Care Services,M81D,Adult Social Care Operations,Supplies and Services,"2,550.00",Jun-22
Slough Borough Council,807005,Complete Background Screening Ltd,B348,People,Supplies and Services,796.00,Jun-22
Slough Borough Council,1772,Computershare Voucher Services,B348,People,Supplies and Services,"2,614.00",Jun-22
Slough Borough Council,808351,Connect Futures,B199,Place Regulation,Supplies and Services,"10,500.00",Jun-22
Slough Borough Council,807468,"Connect Managed Services (UK) Ltd, trading as Conn3ct",A106,Customer,Supplies and Services,"2,527.17",Jun-22
Slough Borough Council,806594,Coram Family and Childcare,M04A,People Children,Transport,"161,369.02",Jun-22
Slough Borough Council,805278,Countrystyle Recycling Ltd,D342,Place Operations,Supplies and Services,"-2,330.00",Jun-22
Slough Borough Council,805278,Countrystyle Recycling Ltd,D342,Place Operations,Supplies and Services,"3,872.40",Jun-22
Slough Borough Council,805278,Countrystyle Recycling Ltd,D342,Place Operations,Supplies and Services,"2,330.00",Jun-22
Slough Borough Council,805278,Countrystyle Recycling Ltd,D342,Place Operations,Supplies and Services,"4,641.60",Jun-22
Slough Borough Council,251,Cox Green School,F552,Children & Families,Supplies and Services,"1,175.00",Jun-22
Slough Borough Council,3670,Craegmoor Birches Grove Priory,M27F,Adult Social Care Operations,Supplies and Services,"3,823.00",Jun-22
Slough Borough Council,3670,Craegmoor Birches Grove Priory,M27F,Adult Social Care Operations,Supplies and Services,"1,984.04",Jun-22
Slough Borough Council,1638,Creative Support Ltd,A02L,Adult Social Care Operations,Supplies and Services,"1,065.60",Jun-22
Slough Borough Council,1638,Creative Support Ltd,A02L,Adult Social Care Operations,Supplies and Services,"1,365.30",Jun-22
Slough Borough Council,1638,Creative Support Ltd,A02L,Adult Social Care Operations,Supplies and Services,"1,065.60",Jun-22
Slough Borough Council,1638,Creative Support Ltd,A02L,Adult Social Care Operations,Supplies and Services,"1,365.30",Jun-22
Slough Borough Council,1638,Creative Support Ltd,M42E,Adult Social Care Operations,Supplies and Services,"1,182.15",Jun-22
Slough Borough Council,1638,Creative Support Ltd,M42E,Adult Social Care Operations,Supplies and Services,"1,182.15",Jun-22
Slough Borough Council,1638,Creative Support Ltd,M42E,Adult Social Care Operations,Supplies and Services,"9,014.04",Jun-22
Slough Borough Council,1638,Creative Support Ltd,M44E,Adult Social Care Operations,Supplies and Services,999.00,Jun-22
Slough Borough Council,1638,Creative Support Ltd,M44E,Adult Social Care Operations,Supplies and Services,932.40,Jun-22
Slough Borough Council,1638,Creative Support Ltd,M44E,Adult Social Care Operations,Supplies and Services,699.30,Jun-22
Slough Borough Council,1638,Creative Support Ltd,M44E,Adult Social Care Operations,Supplies and Services,999.00,Jun-22
Slough Borough Council,1638,Creative Support Ltd,M44E,Adult Social Care Operations,Supplies and Services,"1,465.20",Jun-22
Slough Borough Council,1638,Creative Support Ltd,M44E,Adult Social Care Operations,Supplies and Services,699.30,Jun-22
Slough Borough Council,1638,Creative Support Ltd,M44E,Adult Social Care Operations,Supplies and Services,999.00,Jun-22
Slough Borough Council,1638,Creative Support Ltd,M44E,Adult Social Care Operations,Supplies and Services,932.40,Jun-22
Slough Borough Council,1638,Creative Support Ltd,M44E,Adult Social Care Operations,Supplies and Services,999.00,Jun-22
Slough Borough Council,1638,Creative Support Ltd,M44E,Adult Social Care Operations,Supplies and Services,999.00,Jun-22
Slough Borough Council,1638,Creative Support Ltd,M44E,Adult Social Care Operations,Supplies and Services,"1,465.00",Jun-22
Slough Borough Council,806983,Critiqom,H015,Finance & Commercial,Supplies and Services,692.30,Jun-22
Slough Borough Council,806983,Critiqom,H015,Finance & Commercial,Supplies and Services,"1,952.06",Jun-22
Slough Borough Council,806983,Critiqom,H015,Finance & Commercial,Supplies and Services,922.79,Jun-22
Slough Borough Council,806983,Critiqom,H015,Finance & Commercial,Supplies and Services,"1,123.87",Jun-22
Slough Borough Council,806983,Critiqom,H015,Finance & Commercial,Supplies and Services,516.45,Jun-22
Slough Borough Council,806063,Cruise Minibuses Ltd,F123,Education & Inclusion,Supplies and Services,"6,450.50",Jun-22
Slough Borough Council,806900,CYXTERA TECHNOLOGY UK LIMITED,B282,Digital and Strategic IT,Supplies and Services,"20,738.70",Jun-22
Slough Borough Council,805744,DATCHET MONTESSORI SCHOOL,F550,Children & Families,Supplies and Services,576.80,Jun-22
Slough Borough Council,805744,DATCHET MONTESSORI SCHOOL,F550,Children & Families,Supplies and Services,547.96,Jun-22
Slough Borough Council,805744,DATCHET MONTESSORI SCHOOL,F550,Children & Families,Supplies and Services,663.32,Jun-22
Slough Borough Council,807288,David Allwood,C322,Community,Supplies and Services,"3,176.25",Jun-22
Slough Borough Council,807440,David Peplow,A04A,Adult Social Care Operations,Supplies and Services,600.00,Jun-22
Slough Borough Council,808298,Dell Corporation Ltd,B282,Digital and Strategic IT,Supplies and Services,"110,661.55",Jun-22
Slough Borough Council,804903,Dennis Eagle Limited,D610,Place Operations,Supplies and Services,"18,810.54",Jun-22
Slough Borough Council,804903,Dennis Eagle Limited,D630,Place Operations,Supplies and Services,"1,773.30",Jun-22
Slough Borough Council,804903,Dennis Eagle Limited,D610,Place Operations,Supplies and Services,521.76,Jun-22
Slough Borough Council,804903,Dennis Eagle Limited,D610,Place Operations,Supplies and Services,573.53,Jun-22
Slough Borough Council,808382,Department for Education,M50A,Major Infrastructure Projects,Supplies and Services,"18,173.00",Jun-22
Slough Borough Council,928,Devonshires Solicitors,F868,Children & Families,Supplies and Services,"1,123.00",Jun-22
Slough Borough Council,3554,Dimensions (Uk) Ltd,M42E,Adult Social Care Operations,Supplies and Services,"5,342.64",Jun-22
Slough Borough Council,3554,Dimensions (Uk) Ltd,M42E,Adult Social Care Operations,Supplies and Services,"7,201.83",Jun-22
Slough Borough Council,3554,Dimensions (Uk) Ltd,M42E,Adult Social Care Operations,Supplies and Services,"5,624.02",Jun-22
Slough Borough Council,3554,Dimensions (Uk) Ltd,M42E,Adult Social Care Operations,Supplies and Services,"5,880.39",Jun-22
Slough Borough Council,3554,Dimensions (Uk) Ltd,M42E,Adult Social Care Operations,Supplies and Services,"7,191.56",Jun-22
Slough Borough Council,3554,Dimensions (Uk) Ltd,M42E,Adult Social Care Operations,Supplies and Services,"5,915.07",Jun-22
Slough Borough Council,3554,Dimensions (Uk) Ltd,M42E,Adult Social Care Operations,Supplies and Services,"7,538.76",Jun-22
Slough Borough Council,3554,Dimensions (Uk) Ltd,M42E,Adult Social Care Operations,Supplies and Services,"7,011.40",Jun-22
Slough Borough Council,3554,Dimensions (Uk) Ltd,M42E,Adult Social Care Operations,Supplies and Services,"7,484.55",Jun-22
Slough Borough Council,3554,Dimensions (Uk) Ltd,M42E,Adult Social Care Operations,Supplies and Services,"6,233.48",Jun-22
Slough Borough Council,805483,Direct Tyre Managenent Ltd,D610,Place Operations,Transport,"1,706.58",Jun-22
Slough Borough Council,805483,Direct Tyre Managenent Ltd,D610,Place Operations,Transport,"3,944.74",Jun-22
Slough Borough Council,805483,Direct Tyre Managenent Ltd,D620,Place Operations,Transport,552.69,Jun-22
Slough Borough Council,803306,Ditton Park Academy,E620,Children & Families,Supplies and Services,"21,226.59",Jun-22
Slough Borough Council,803724,DMA Signs,P218,Capital,Capital Charges,"25,000.00",Jun-22
Slough Borough Council,1457,Dr Norman Gordon,D320,Place Operations,Premises,"2,161.50",Jun-22
Slough Borough Council,803177,Early Steps Preschool,F909,Children & Families,Supplies and Services,"6,270.20",Jun-22
Slough Borough Council,803301,Eden Girls School,E610,Children & Families,Supplies and Services,"3,416.67",Jun-22
Slough Borough Council,807001,Elegant Care Services Ltd,M42E,Adult Social Care Operations,Supplies and Services,"5,785.71",Jun-22
Slough Borough Council,807001,Elegant Care Services Ltd,M42E,Adult Social Care Operations,Supplies and Services,"5,571.42",Jun-22
Slough Borough Council,807001,Elegant Care Services Ltd,M42E,Adult Social Care Operations,Supplies and Services,"9,857.14",Jun-22
Slough Borough Council,807001,Elegant Care Services Ltd,M42E,Adult Social Care Operations,Supplies and Services,"5,571.42",Jun-22
Slough Borough Council,807001,Elegant Care Services Ltd,M42E,Adult Social Care Operations,Supplies and Services,"9,857.14",Jun-22
Slough Borough Council,807001,Elegant Care Services Ltd,M42E,Adult Social Care Operations,Supplies and Services,"5,785.71",Jun-22
Slough Borough Council,807001,Elegant Care Services Ltd,M44C,Adult Social Care Operations,Supplies and Services,"6,535.71",Jun-22
Slough Borough Council,807001,Elegant Care Services Ltd,M44C,Adult Social Care Operations,Supplies and Services,"6,535.71",Jun-22
Slough Borough Council,806355,Elysium Healthcare,M26E,Adult Social Care Operations,Supplies and Services,"9,576.52",Jun-22
Slough Borough Council,806355,Elysium Healthcare,M26E,Adult Social Care Operations,Supplies and Services,"11,044.68",Jun-22
Slough Borough Council,3752,Endurance Health,A07R,Adult Social Care Operations,Supplies and Services,"2,234.56",Jun-22
Slough Borough Council,3752,Endurance Health,A07R,Adult Social Care Operations,Supplies and Services,"1,991.19",Jun-22
Slough Borough Council,3752,Endurance Health,A07R,Adult Social Care Operations,Supplies and Services,"1,519.05",Jun-22
Slough Borough Council,3752,Endurance Health,A07R,Adult Social Care Operations,Supplies and Services,"2,270.86",Jun-22
Slough Borough Council,3752,Endurance Health,M44C,Adult Social Care Operations,Supplies and Services,"1,462.54",Jun-22
Slough Borough Council,3752,Endurance Health,M44C,Adult Social Care Operations,Supplies and Services,715.06,Jun-22
Slough Borough Council,3752,Endurance Health,M44C,Adult Social Care Operations,Supplies and Services,"2,268.48",Jun-22
Slough Borough Council,3752,Endurance Health,M44C,Adult Social Care Operations,Supplies and Services,"1,124.55",Jun-22
Slough Borough Council,3752,Endurance Health,M44C,Adult Social Care Operations,Supplies and Services,"1,107.33",Jun-22
Slough Borough Council,3752,Endurance Health,M44C,Adult Social Care Operations,Supplies and Services,"1,130.52",Jun-22
Slough Borough Council,3752,Endurance Health,M44C,Adult Social Care Operations,Supplies and Services,"2,245.57",Jun-22
Slough Borough Council,3752,Endurance Health,M44C,Adult Social Care Operations,Supplies and Services,699.44,Jun-22
Slough Borough Council,3752,Endurance Health,M44C,Adult Social Care Operations,Supplies and Services,837.77,Jun-22
Slough Borough Council,3752,Endurance Health,M44C,Adult Social Care Operations,Supplies and Services,"1,127.55",Jun-22
Slough Borough Council,3752,Endurance Health,M44C,Adult Social Care Operations,Supplies and Services,"1,553.28",Jun-22
Slough Borough Council,3752,Endurance Health,M44C,Adult Social Care Operations,Supplies and Services,"2,142.00",Jun-22
Slough Borough Council,3752,Endurance Health,M44C,Adult Social Care Operations,Supplies and Services,838.95,Jun-22
Slough Borough Council,3752,Endurance Health,M44C,Adult Social Care Operations,Supplies and Services,611.07,Jun-22
Slough Borough Council,3752,Endurance Health,M44C,Adult Social Care Operations,Supplies and Services,"1,134.38",Jun-22
Slough Borough Council,3752,Endurance Health,M44C,Adult Social Care Operations,Supplies and Services,"1,125.46",Jun-22
Slough Borough Council,3752,Endurance Health,M44C,Adult Social Care Operations,Supplies and Services,500.70,Jun-22
Slough Borough Council,3752,Endurance Health,M44C,Adult Social Care Operations,Supplies and Services,"1,107.91",Jun-22
Slough Borough Council,3752,Endurance Health,M44C,Adult Social Care Operations,Supplies and Services,"1,124.55",Jun-22
Slough Borough Council,3752,Endurance Health,M44C,Adult Social Care Operations,Supplies and Services,696.15,Jun-22
Slough Borough Council,3752,Endurance Health,M44C,Adult Social Care Operations,Supplies and Services,623.28,Jun-22
Slough Borough Council,3752,Endurance Health,M44C,Adult Social Care Operations,Supplies and Services,999.60,Jun-22
Slough Borough Council,3752,Endurance Health,M44C,Adult Social Care Operations,Supplies and Services,838.95,Jun-22
Slough Borough Council,3752,Endurance Health,M44C,Adult Social Care Operations,Supplies and Services,745.78,Jun-22
Slough Borough Council,3752,Endurance Health,M44C,Adult Social Care Operations,Supplies and Services,"1,116.83",Jun-22
Slough Borough Council,3752,Endurance Health,M44C,Adult Social Care Operations,Supplies and Services,"2,249.10",Jun-22
Slough Borough Council,3752,Endurance Health,M44C,Adult Social Care Operations,Supplies and Services,571.20,Jun-22
Slough Borough Council,3752,Endurance Health,M44C,Adult Social Care Operations,Supplies and Services,"1,367.31",Jun-22
Slough Borough Council,3752,Endurance Health,M44C,Adult Social Care Operations,Supplies and Services,"1,138.55",Jun-22
Slough Borough Council,3752,Endurance Health,M44C,Adult Social Care Operations,Supplies and Services,938.03,Jun-22
Slough Borough Council,3752,Endurance Health,M44C,Adult Social Care Operations,Supplies and Services,"1,458.67",Jun-22
Slough Borough Council,3752,Endurance Health,M44C,Adult Social Care Operations,Supplies and Services,"2,009.36",Jun-22
Slough Borough Council,3752,Endurance Health,M44C,Adult Social Care Operations,Supplies and Services,"2,328.28",Jun-22
Slough Borough Council,3752,Endurance Health,M44C,Adult Social Care Operations,Supplies and Services,"1,262.62",Jun-22
Slough Borough Council,3752,Endurance Health,M44C,Adult Social Care Operations,Supplies and Services,"1,385.87",Jun-22
Slough Borough Council,3752,Endurance Health,M44C,Adult Social Care Operations,Supplies and Services,608.69,Jun-22
Slough Borough Council,3752,Endurance Health,M44C,Adult Social Care Operations,Supplies and Services,"1,074.00",Jun-22
Slough Borough Council,3752,Endurance Health,M44C,Adult Social Care Operations,Supplies and Services,"2,272.35",Jun-22
Slough Borough Council,3752,Endurance Health,M44C,Adult Social Care Operations,Supplies and Services,"1,124.27",Jun-22
Slough Borough Council,3752,Endurance Health,M44C,Adult Social Care Operations,Supplies and Services,"1,535.72",Jun-22
Slough Borough Council,3752,Endurance Health,M44C,Adult Social Care Operations,Supplies and Services,659.87,Jun-22
Slough Borough Council,3752,Endurance Health,M44C,Adult Social Care Operations,Supplies and Services,"1,135.57",Jun-22
Slough Borough Council,3752,Endurance Health,M44D,Adult Social Care Operations,Supplies and Services,"1,288.79",Jun-22
Slough Borough Council,3752,Endurance Health,M44D,Adult Social Care Operations,Supplies and Services,"2,499.00",Jun-22
Slough Borough Council,3752,Endurance Health,M44D,Adult Social Care Operations,Supplies and Services,"1,183.17",Jun-22
Slough Borough Council,3752,Endurance Health,M44D,Adult Social Care Operations,Supplies and Services,758.34,Jun-22
Slough Borough Council,3752,Endurance Health,M44D,Adult Social Care Operations,Supplies and Services,"1,003.19",Jun-22
Slough Borough Council,3752,Endurance Health,M44D,Adult Social Care Operations,Supplies and Services,897.87,Jun-22
Slough Borough Council,3752,Endurance Health,M44D,Adult Social Care Operations,Supplies and Services,"1,178.10",Jun-22
Slough Borough Council,3752,Endurance Health,M44D,Adult Social Care Operations,Supplies and Services,"2,522.23",Jun-22
Slough Borough Council,3752,Endurance Health,M44D,Adult Social Care Operations,Supplies and Services,782.44,Jun-22
Slough Borough Council,3752,Endurance Health,M44D,Adult Social Care Operations,Supplies and Services,619.11,Jun-22
Slough Borough Council,3752,Endurance Health,M44F,Adult Social Care Operations,Supplies and Services,553.06,Jun-22
Slough Borough Council,3752,Endurance Health,M45C,Adult Social Care Operations,Supplies and Services,867.52,Jun-22
Slough Borough Council,3752,Endurance Health,M45C,Adult Social Care Operations,Supplies and Services,"1,125.16",Jun-22
Slough Borough Council,3752,Endurance Health,M45C,Adult Social Care Operations,Supplies and Services,506.65,Jun-22
Slough Borough Council,3752,Endurance Health,M48C,Adult Social Care Operations,Supplies and Services,557.26,Jun-22
Slough Borough Council,3752,Endurance Health,M48C,Adult Social Care Operations,Supplies and Services,"1,182.86",Jun-22
Slough Borough Council,3752,Endurance Health,M48C,Adult Social Care Operations,Supplies and Services,874.65,Jun-22
Slough Borough Council,805423,Enriched Care,M44D,Adult Social Care Operations,Supplies and Services,"3,642.86",Jun-22
Slough Borough Council,805423,Enriched Care,M44F,Adult Social Care Operations,Supplies and Services,"2,712.30",Jun-22
Slough Borough Council,805423,Enriched Care,M44F,Adult Social Care Operations,Supplies and Services,"4,275.00",Jun-22
Slough Borough Council,805423,Enriched Care,M44F,Adult Social Care Operations,Supplies and Services,"2,678.57",Jun-22
Slough Borough Council,805423,Enriched Care,M44F,Adult Social Care Operations,Supplies and Services,"2,582.14",Jun-22
Slough Borough Council,805423,Enriched Care,M80F,Adult Social Care Operations,Supplies and Services,"1,701.43",Jun-22
Slough Borough Council,807310,Enterprise Rent-A-Car UK Limited trading as Enterprise Flex-E-Rent,D880,Place Operations,Supplies and Services,546.33,Jun-22
Slough Borough Council,639,Environment Agency,D308,Place Operations,Supplies and Services,"1,285.35",Jun-22
Slough Borough Council,803583,Eton Porny C of E First School,F552,Children & Families,Supplies and Services,"3,111.00",Jun-22
Slough Borough Council,803583,Eton Porny C of E First School,F552,Children & Families,Supplies and Services,"2,716.00",Jun-22
Slough Borough Council,803583,Eton Porny C of E First School,F552,Children & Families,Supplies and Services,"4,559.00",Jun-22
Slough Borough Council,1995,Eton Wick C Of E First School,F552,Children & Families,Supplies and Services,"3,660.00",Jun-22
Slough Borough Council,1995,Eton Wick C Of E First School,F552,Children & Families,Supplies and Services,"3,196.00",Jun-22
Slough Borough Council,808344,Euro Housing UK LTD,H205,Housing (People) Services,Supplies and Services,"1,155.00",Jun-22
Slough Borough Council,808344,Euro Housing UK LTD,H205,Housing (People) Services,Supplies and Services,"1,650.00",Jun-22
Slough Borough Council,808344,Euro Housing UK LTD,H205,Housing (People) Services,Supplies and Services,"1,650.00",Jun-22
Slough Borough Council,808344,Euro Housing UK LTD,H205,Housing (People) Services,Supplies and Services,"1,650.00",Jun-22
Slough Borough Council,808344,Euro Housing UK LTD,H205,Housing (People) Services,Supplies and Services,"6,565.00",Jun-22
Slough Borough Council,808344,Euro Housing UK LTD,H205,Housing (People) Services,Supplies and Services,"6,450.00",Jun-22
Slough Borough Council,806501,Excellent Healthcare Services Ltd,M44C,Adult Social Care Operations,Supplies and Services,510.60,Jun-22
Slough Borough Council,806501,Excellent Healthcare Services Ltd,M44C,Adult Social Care Operations,Supplies and Services,"1,489.25",Jun-22
Slough Borough Council,806501,Excellent Healthcare Services Ltd,M44C,Adult Social Care Operations,Supplies and Services,"2,144.52",Jun-22
Slough Borough Council,806501,Excellent Healthcare Services Ltd,M44C,Adult Social Care Operations,Supplies and Services,"2,144.52",Jun-22
Slough Borough Council,806501,Excellent Healthcare Services Ltd,M44C,Adult Social Care Operations,Supplies and Services,595.70,Jun-22
Slough Borough Council,806501,Excellent Healthcare Services Ltd,M44C,Adult Social Care Operations,Supplies and Services,714.84,Jun-22
Slough Borough Council,806501,Excellent Healthcare Services Ltd,M44C,Adult Social Care Operations,Supplies and Services,595.70,Jun-22
Slough Borough Council,806501,Excellent Healthcare Services Ltd,M44C,Adult Social Care Operations,Supplies and Services,787.18,Jun-22
Slough Borough Council,806501,Excellent Healthcare Services Ltd,M44C,Adult Social Care Operations,Supplies and Services,"1,072.26",Jun-22
Slough Borough Council,806501,Excellent Healthcare Services Ltd,M44D,Adult Social Care Operations,Supplies and Services,"1,072.26",Jun-22
Slough Borough Council,806501,Excellent Healthcare Services Ltd,M44F,Adult Social Care Operations,Supplies and Services,953.12,Jun-22
Slough Borough Council,806501,Excellent Healthcare Services Ltd,M44F,Adult Social Care Operations,Supplies and Services,"2,382.20",Jun-22
Slough Borough Council,806501,Excellent Healthcare Services Ltd,M44F,Adult Social Care Operations,Supplies and Services,714.84,Jun-22
Slough Borough Council,807560,Exeter Royal Academy for Deaf Education,F558,Children & Families,Supplies and Services,"36,055.00",Jun-22
Slough Borough Council,805225,Falcon Surfacing Ltd,D880,Place Operations,Supplies and Services,"18,428.80",Jun-22
Slough Borough Council,805225,Falcon Surfacing Ltd,D880,Place Operations,Supplies and Services,"11,800.00",Jun-22
Slough Borough Council,805225,Falcon Surfacing Ltd,D880,Place Operations,Supplies and Services,"20,095.00",Jun-22
Slough Borough Council,805225,Falcon Surfacing Ltd,D880,Place Operations,Supplies and Services,"32,885.70",Jun-22
Slough Borough Council,805225,Falcon Surfacing Ltd,D880,Place Operations,Supplies and Services,"47,770.00",Jun-22
Slough Borough Council,805225,Falcon Surfacing Ltd,D880,Place Operations,Supplies and Services,"1,854.72",Jun-22
Slough Borough Council,805225,Falcon Surfacing Ltd,D880,Place Operations,Supplies and Services,"13,111.00",Jun-22
Slough Borough Council,805225,Falcon Surfacing Ltd,D880,Place Operations,Supplies and Services,"16,157.50",Jun-22
Slough Borough Council,805225,Falcon Surfacing Ltd,D880,Place Operations,Supplies and Services,"4,575.00",Jun-22
Slough Borough Council,805225,Falcon Surfacing Ltd,D880,Place Operations,Supplies and Services,"4,370.00",Jun-22
Slough Borough Council,805225,Falcon Surfacing Ltd,D880,Place Operations,Supplies and Services,"3,970.30",Jun-22
Slough Borough Council,805225,Falcon Surfacing Ltd,D880,Place Operations,Supplies and Services,959.59,Jun-22
Slough Borough Council,805225,Falcon Surfacing Ltd,D880,Place Operations,Supplies and Services,578.46,Jun-22
Slough Borough Council,805225,Falcon Surfacing Ltd,D880,Place Operations,Supplies and Services,"1,026.30",Jun-22
Slough Borough Council,805225,Falcon Surfacing Ltd,D880,Place Operations,Supplies and Services,"2,298.88",Jun-22
Slough Borough Council,805225,Falcon Surfacing Ltd,D880,Place Operations,Supplies and Services,767.38,Jun-22
Slough Borough Council,805225,Falcon Surfacing Ltd,D880,Place Operations,Supplies and Services,"2,622.20",Jun-22
Slough Borough Council,805225,Falcon Surfacing Ltd,D880,Place Operations,Supplies and Services,"2,018.36",Jun-22
Slough Borough Council,805225,Falcon Surfacing Ltd,D880,Place Operations,Supplies and Services,"3,158.94",Jun-22
Slough Borough Council,805225,Falcon Surfacing Ltd,D880,Place Operations,Supplies and Services,"7,885.59",Jun-22
Slough Borough Council,805225,Falcon Surfacing Ltd,D880,Place Operations,Supplies and Services,"1,519.70",Jun-22
Slough Borough Council,805225,Falcon Surfacing Ltd,D880,Place Operations,Supplies and Services,"1,187.08",Jun-22
Slough Borough Council,805225,Falcon Surfacing Ltd,D880,Place Operations,Supplies and Services,"4,217.50",Jun-22
Slough Borough Council,805225,Falcon Surfacing Ltd,D880,Place Operations,Supplies and Services,"2,622.20",Jun-22
Slough Borough Council,805225,Falcon Surfacing Ltd,D880,Place Operations,Supplies and Services,"1,553.37",Jun-22
Slough Borough Council,805225,Falcon Surfacing Ltd,D880,Place Operations,Supplies and Services,"5,792.50",Jun-22
Slough Borough Council,805225,Falcon Surfacing Ltd,D880,Place Operations,Supplies and Services,"2,745.00",Jun-22
Slough Borough Council,805225,Falcon Surfacing Ltd,D880,Place Operations,Supplies and Services,"2,622.20",Jun-22
Slough Borough Council,805225,Falcon Surfacing Ltd,D880,Place Operations,Supplies and Services,"11,117.02",Jun-22
Slough Borough Council,805225,Falcon Surfacing Ltd,D880,Place Operations,Supplies and Services,"14,894.92",Jun-22
Slough Borough Council,805225,Falcon Surfacing Ltd,D880,Place Operations,Supplies and Services,"4,575.00",Jun-22
Slough Borough Council,805225,Falcon Surfacing Ltd,D880,Place Operations,Supplies and Services,"1,885.04",Jun-22
Slough Borough Council,805225,Falcon Surfacing Ltd,D880,Place Operations,Supplies and Services,943.88,Jun-22
Slough Borough Council,805225,Falcon Surfacing Ltd,D880,Place Operations,Supplies and Services,555.00,Jun-22
Slough Borough Council,805225,Falcon Surfacing Ltd,D880,Place Operations,Supplies and Services,"4,805.00",Jun-22
Slough Borough Council,805225,Falcon Surfacing Ltd,D880,Place Operations,Supplies and Services,"2,087.60",Jun-22
Slough Borough Council,805225,Falcon Surfacing Ltd,D880,Place Operations,Supplies and Services,"1,182.86",Jun-22
Slough Borough Council,805225,Falcon Surfacing Ltd,D880,Place Operations,Supplies and Services,"1,561.76",Jun-22
Slough Borough Council,805225,Falcon Surfacing Ltd,D880,Place Operations,Supplies and Services,813.78,Jun-22
Slough Borough Council,805225,Falcon Surfacing Ltd,D880,Place Operations,Supplies and Services,955.14,Jun-22
Slough Borough Council,805225,Falcon Surfacing Ltd,D880,Place Operations,Supplies and Services,"11,277.00",Jun-22
Slough Borough Council,805225,Falcon Surfacing Ltd,D880,Place Operations,Supplies and Services,"3,525.34",Jun-22
Slough Borough Council,4031,Family Support Practise Limited,B277,Digital and Strategic IT,Supplies and Services,"1,216.25",Jun-22
Slough Borough Council,4031,Family Support Practise Limited,B277,Digital and Strategic IT,Supplies and Services,"1,800.00",Jun-22
Slough Borough Council,4031,Family Support Practise Limited,B277,Digital and Strategic IT,Supplies and Services,"1,800.00",Jun-22
Slough Borough Council,475,Farnham Road Surgery,A04C,Adult Social Care Operations,Supplies and Services,"14,133.66",Jun-22
Slough Borough Council,807620,FERN CONSULTING SERVICES LTD,D012,Place Strategy & Infrastructure,Supplies and Services,"1,360.00",Jun-22
Slough Borough Council,955,First Beeline Buses Ltd,D512,Place Strategy & Infrastructure,Supplies and Services,"85,895.89",Jun-22
Slough Borough Council,955,First Beeline Buses Ltd,D512,Place Strategy & Infrastructure,Supplies and Services,"92,382.42",Jun-22
Slough Borough Council,754,First Steps Day Nursery,F909,Children & Families,Supplies and Services,"10,168.53",Jun-22
Slough Borough Council,807987,Fit For Sport,F382,Children & Families,Supplies and Services,"2,400.00",Jun-22
Slough Borough Council,1626,Five Star Radio Cars Limited,F123,Education & Inclusion,Supplies and Services,"2,880.00",Jun-22
Slough Borough Council,1626,Five Star Radio Cars Limited,F123,Education & Inclusion,Supplies and Services,"2,720.00",Jun-22
Slough Borough Council,2460,Forest Bridge School Ltd,F551,Children & Families,Supplies and Services,"12,459.33",Jun-22
Slough Borough Council,2460,Forest Bridge School Ltd,F551,Children & Families,Supplies and Services,"14,281.00",Jun-22
Slough Borough Council,2460,Forest Bridge School Ltd,F551,Children & Families,Supplies and Services,"6,490.01",Jun-22
Slough Borough Council,2460,Forest Bridge School Ltd,F551,Children & Families,Supplies and Services,"12,459.33",Jun-22
Slough Borough Council,2460,Forest Bridge School Ltd,F551,Children & Families,Supplies and Services,"12,459.33",Jun-22
Slough Borough Council,2460,Forest Bridge School Ltd,F551,Children & Families,Supplies and Services,"12,459.33",Jun-22
Slough Borough Council,2460,Forest Bridge School Ltd,F551,Children & Families,Supplies and Services,"8,633.67",Jun-22
Slough Borough Council,2460,Forest Bridge School Ltd,F551,Children & Families,Supplies and Services,"8,633.67",Jun-22
Slough Borough Council,2460,Forest Bridge School Ltd,F551,Children & Families,Supplies and Services,"8,633.67",Jun-22
Slough Borough Council,2460,Forest Bridge School Ltd,F551,Children & Families,Supplies and Services,"8,633.67",Jun-22
Slough Borough Council,2460,Forest Bridge School Ltd,F417,Education & Inclusion,Supplies and Services,-793.33,Jun-22
Slough Borough Council,2460,Forest Bridge School Ltd,F417,Education & Inclusion,Supplies and Services,-833.33,Jun-22
Slough Borough Council,2460,Forest Bridge School Ltd,F417,Education & Inclusion,Supplies and Services,-850.00,Jun-22
Slough Borough Council,2460,Forest Bridge School Ltd,F551,Children & Families,Supplies and Services,"4,955.50",Jun-22
Slough Borough Council,2460,Forest Bridge School Ltd,F551,Children & Families,Supplies and Services,"9,291.20",Jun-22
Slough Borough Council,2460,Forest Bridge School Ltd,F551,Children & Families,Supplies and Services,"3,099.00",Jun-22
Slough Borough Council,2460,Forest Bridge School Ltd,F551,Children & Families,Supplies and Services,"9,911.00",Jun-22
Slough Borough Council,2460,Forest Bridge School Ltd,F551,Children & Families,Supplies and Services,"9,911.00",Jun-22
Slough Borough Council,1204,Forget Me Not,M25C,Adult Social Care Operations,Supplies and Services,"3,800.00",Jun-22
Slough Borough Council,1204,Forget Me Not,M25C,Adult Social Care Operations,Supplies and Services,"3,180.00",Jun-22
Slough Borough Council,1204,Forget Me Not,M27C,Adult Social Care Operations,Supplies and Services,"1,642.14",Jun-22
Slough Borough Council,1204,Forget Me Not,M27C,Adult Social Care Operations,Supplies and Services,"3,400.00",Jun-22
Slough Borough Council,1204,Forget Me Not,M27C,Adult Social Care Operations,Supplies and Services,"3,047.40",Jun-22
Slough Borough Council,806249,Formact Ltd,P006,Capital,Capital Charges,"7,852.40",Jun-22
Slough Borough Council,647,Foxborough Primary School,E620,Children & Families,Supplies and Services,"8,701.67",Jun-22
Slough Borough Council,806480,Frontier NX Limited,A04C,Adult Social Care Operations,Supplies and Services,"2,664.00",Jun-22
Slough Borough Council,806480,Frontier NX Limited,A04C,Adult Social Care Operations,Supplies and Services,"2,170.50",Jun-22
Slough Borough Council,806480,Frontier NX Limited,A04C,Adult Social Care Operations,Supplies and Services,576.20,Jun-22
Slough Borough Council,1555,Gallagher Bassett,B018,Finance & Commercial,Supplies and Services,"25,985.69",Jun-22
Slough Borough Council,1758,Gas Advisory Services Limited,J606,Place Management,Supplies and Services,840.00,Jun-22
Slough Borough Council,1758,Gas Advisory Services Limited,J606,Place Management,Supplies and Services,"2,609.00",Jun-22
Slough Borough Council,1758,Gas Advisory Services Limited,J606,Place Management,Supplies and Services,840.00,Jun-22
Slough Borough Council,1758,Gas Advisory Services Limited,J606,Place Management,Supplies and Services,"4,343.50",Jun-22
Slough Borough Council,1758,Gas Advisory Services Limited,J606,Place Management,Supplies and Services,"6,148.50",Jun-22
Slough Borough Council,1758,Gas Advisory Services Limited,J606,Place Management,Supplies and Services,"1,557.00",Jun-22
Slough Borough Council,807052,Georgia Thompson,C322,Community,Supplies and Services,"1,194.50",Jun-22
Slough Borough Council,807052,Georgia Thompson,C322,Community,Supplies and Services,"2,500.00",Jun-22
Slough Borough Council,803332,Get Berkshire Active,B211,Community,Supplies and Services,"1,153.76",Jun-22
Slough Borough Council,806300,Glasscubes Limited,B282,Digital and Strategic IT,Supplies and Services,"1,056.00",Jun-22
Slough Borough Council,806300,Glasscubes Limited,B282,Digital and Strategic IT,Supplies and Services,-729.00,Jun-22
Slough Borough Council,806300,Glasscubes Limited,J006,Place Management,Supplies and Services,"1,176.00",Jun-22
Slough Borough Council,806300,Glasscubes Limited,J006,Place Management,Supplies and Services,-834.00,Jun-22
Slough Borough Council,807626,Global Radio Services Ltd,B296,Finance & Commercial,Supplies and Services,"2,320.00",Jun-22
Slough Borough Council,806485,GPF Lewis Plc,P101,Capital,Capital Charges,"10,000.00",Jun-22
Slough Borough Council,2830,GR Response Healthcare Ltd,M44C,Adult Social Care Operations,Supplies and Services,"2,394.00",Jun-22
Slough Borough Council,2830,GR Response Healthcare Ltd,M44C,Adult Social Care Operations,Supplies and Services,"2,000.32",Jun-22
Slough Borough Council,2830,GR Response Healthcare Ltd,M44C,Adult Social Care Operations,Supplies and Services,"1,624.50",Jun-22
Slough Borough Council,2830,GR Response Healthcare Ltd,M44C,Adult Social Care Operations,Supplies and Services,"2,394.00",Jun-22
Slough Borough Council,2830,GR Response Healthcare Ltd,M44C,Adult Social Care Operations,Supplies and Services,"2,546.00",Jun-22
Slough Borough Council,2830,GR Response Healthcare Ltd,M44C,Adult Social Care Operations,Supplies and Services,"2,394.00",Jun-22
Slough Borough Council,2830,GR Response Healthcare Ltd,M44C,Adult Social Care Operations,Supplies and Services,"1,577.00",Jun-22
Slough Borough Council,2830,GR Response Healthcare Ltd,M44C,Adult Social Care Operations,Supplies and Services,"2,250.08",Jun-22
Slough Borough Council,2830,GR Response Healthcare Ltd,M44C,Adult Social Care Operations,Supplies and Services,"2,499.92",Jun-22
Slough Borough Council,2830,GR Response Healthcare Ltd,M44D,Adult Social Care Operations,Supplies and Services,"1,596.00",Jun-22
Slough Borough Council,2830,GR Response Healthcare Ltd,M44D,Adult Social Care Operations,Supplies and Services,665.00,Jun-22
Slough Borough Council,2830,GR Response Healthcare Ltd,M44D,Adult Social Care Operations,Supplies and Services,"2,698.00",Jun-22
Slough Borough Council,2830,GR Response Healthcare Ltd,M44D,Adult Social Care Operations,Supplies and Services,"2,250.08",Jun-22
Slough Borough Council,2830,GR Response Healthcare Ltd,M44D,Adult Social Care Operations,Supplies and Services,"1,901.86",Jun-22
Slough Borough Council,2830,GR Response Healthcare Ltd,M44D,Adult Social Care Operations,Supplies and Services,"1,928.64",Jun-22
Slough Borough Council,2830,GR Response Healthcare Ltd,M44D,Adult Social Care Operations,Supplies and Services,"2,394.00",Jun-22
Slough Borough Council,2830,GR Response Healthcare Ltd,M44F,Adult Social Care Operations,Supplies and Services,570.92,Jun-22
Slough Borough Council,2830,GR Response Healthcare Ltd,M44F,Adult Social Care Operations,Supplies and Services,"2,128.00",Jun-22
Slough Borough Council,2830,GR Response Healthcare Ltd,M45C,Adult Social Care Operations,Supplies and Services,"1,901.93",Jun-22
Slough Borough Council,2830,GR Response Healthcare Ltd,M45C,Adult Social Care Operations,Supplies and Services,"1,064.00",Jun-22
Slough Borough Council,2830,GR Response Healthcare Ltd,M48C,Adult Social Care Operations,Supplies and Services,"3,002.00",Jun-22
Slough Borough Council,2830,GR Response Healthcare Ltd,A06C,Adult Social Care Commissioning,Supplies and Services,"9,050.00",Jun-22
Slough Borough Council,2830,GR Response Healthcare Ltd,A06C,Adult Social Care Commissioning,Supplies and Services,"9,950.00",Jun-22
Slough Borough Council,805186,Grafton Merchanting GB Ltd,D880,Place Operations,Supplies and Services,"1,440.28",Jun-22
Slough Borough Council,804577,Green Monarch ZC2016 c/o Savills(UK) Limited,H205,Housing (People) Services,Premises,"3,583.33",Jun-22
Slough Borough Council,804577,Green Monarch ZC2016 c/o Savills(UK) Limited,H205,Housing (People) Services,Premises,"3,583.33",Jun-22
Slough Borough Council,804577,Green Monarch ZC2016 c/o Savills(UK) Limited,H205,Housing (People) Services,Premises,"3,583.33",Jun-22
Slough Borough Council,808378,Greensleeves Care,M17C,Adult Social Care Operations,Supplies and Services,"3,497.49",Jun-22
Slough Borough Council,808378,Greensleeves Care,M17C,Adult Social Care Operations,External Receipts,"29,866.83",Jun-22
Slough Borough Council,805069,Grove Academy,E610,Children & Families,Supplies and Services,"7,904.45",Jun-22
Slough Borough Council,804447,Grundon Waste Management Limited,D342,Place Operations,Supplies and Services,"472,651.80",Jun-22
Slough Borough Council,3228,H Plus Care Ltd,M25C,Adult Social Care Operations,Supplies and Services,"5,357.14",Jun-22
Slough Borough Council,3228,H Plus Care Ltd,M26E,Adult Social Care Operations,Supplies and Services,"5,142.86",Jun-22
Slough Borough Council,806681,Hako Machines Ltd,D620,Place Operations,Supplies and Services,597.42,Jun-22
Slough Borough Council,744,Hampshire County Council,D015,Place Strategy & Infrastructure,Supplies and Services,"23,834.58",Jun-22
Slough Borough Council,744,Hampshire County Council,D015,Place Strategy & Infrastructure,Supplies and Services,"4,647.50",Jun-22
Slough Borough Council,804986,Havencare Ltd,M26E,Adult Social Care Operations,Supplies and Services,"1,279.50",Jun-22
Slough Borough Council,804986,Havencare Ltd,M26E,Adult Social Care Operations,Supplies and Services,"1,279.50",Jun-22
Slough Borough Council,804986,Havencare Ltd,M26E,Adult Social Care Operations,Supplies and Services,"1,279.50",Jun-22
Slough Borough Council,804986,Havencare Ltd,M26E,Adult Social Care Operations,Supplies and Services,"1,279.50",Jun-22
Slough Borough Council,1381,Haybrook College,E610,Children & Families,Supplies and Services,"167,641.66",Jun-22
Slough Borough Council,3784,Haybrook College Pru,E610,Children & Families,Supplies and Services,"54,200.00",Jun-22
Slough Borough Council,803248,Haybrook College Trust,B297,Finance & Commercial,Government Grants,"1,425.00",Jun-22
Slough Borough Council,1313,Haymarket Media Group,D750,Place Operations,Supplies and Services,"2,232.00",Jun-22
Slough Borough Council,803753,Healthcare Homes,M28C,Adult Social Care Operations,Supplies and Services,"4,428.57",Jun-22
Slough Borough Council,803753,Healthcare Homes,M28C,Adult Social Care Operations,Supplies and Services,"4,428.57",Jun-22
Slough Borough Council,803753,Healthcare Homes,M28C,Adult Social Care Operations,Supplies and Services,"-4,142.86",Jun-22
Slough Borough Council,803753,Healthcare Homes,M28C,Adult Social Care Operations,Supplies and Services,"4,000.00",Jun-22
Slough Borough Council,803753,Healthcare Homes,M28C,Adult Social Care Operations,Supplies and Services,"4,428.57",Jun-22
Slough Borough Council,1956,Heathlands School,F551,Children & Families,Supplies and Services,"4,640.85",Jun-22
Slough Borough Council,807682,Help and Care,A02C,Adult Social Care Commissioning,Supplies and Services,"16,109.74",Jun-22
Slough Borough Council,1686,Herald Chase,B283,Finance & Commercial,Supplies and Services,"10,591.00",Jun-22
Slough Borough Council,1686,Herald Chase,F382,Children & Families,Supplies and Services,"3,024.83",Jun-22
Slough Borough Council,3387,Herschel Grammar School,B297,Finance & Commercial,Government Grants,"1,095.00",Jun-22
Slough Borough Council,659,Hilton Cabinet Co Ltd,D320,Place Operations,Supplies and Services,502.65,Jun-22
Slough Borough Council,807819,Hitch Marketing Ltd,B283,Finance & Commercial,Supplies and Services,"5,300.00",Jun-22
Slough Borough Council,3250,Hodge Hill Grange H C One Ltd,M15D,Adult Social Care Operations,Supplies and Services,"2,380.00",Jun-22
Slough Borough Council,3250,Hodge Hill Grange H C One Ltd,M15D,Adult Social Care Operations,Supplies and Services,"2,380.00",Jun-22
Slough Borough Council,850,Holy Family Catholic Primary School,E250,Children & Families,Supplies and Services,"211,808.12",Jun-22
Slough Borough Council,803249,Holyport College,F551,Children & Families,Supplies and Services,"20,000.00",Jun-22
Slough Borough Council,2917,Imperial Coaches Ltd,F123,Education & Inclusion,Supplies and Services,"4,465.00",Jun-22
Slough Borough Council,351,Imperial Polythene Products Ltd,D750,Place Operations,Supplies and Services,"1,984.00",Jun-22
Slough Borough Council,807666,Independence Home and Domicilary Care,M44F,Adult Social Care Operations,Supplies and Services,"3,381.17",Jun-22
Slough Borough Council,807666,Independence Home and Domicilary Care,M44F,Adult Social Care Operations,Supplies and Services,"1,544.58",Jun-22
Slough Borough Council,807666,Independence Home and Domicilary Care,M44F,Adult Social Care Operations,Supplies and Services,"2,940.66",Jun-22
Slough Borough Council,807666,Independence Home and Domicilary Care,M44F,Adult Social Care Operations,Supplies and Services,"3,348.00",Jun-22
Slough Borough Council,3570,Independent Supported Living And Disabilities Ltd,M42E,Adult Social Care Operations,Supplies and Services,"3,000.00",Jun-22
Slough Borough Council,3570,Independent Supported Living And Disabilities Ltd,M44D,Adult Social Care Operations,Supplies and Services,"3,044.16",Jun-22
Slough Borough Council,3570,Independent Supported Living And Disabilities Ltd,M44E,Adult Social Care Operations,Supplies and Services,"4,212.00",Jun-22
Slough Borough Council,3570,Independent Supported Living And Disabilities Ltd,M44E,Adult Social Care Operations,Supplies and Services,"1,440.00",Jun-22
Slough Borough Council,3570,Independent Supported Living And Disabilities Ltd,M44E,Adult Social Care Operations,Supplies and Services,"3,570.00",Jun-22
Slough Borough Council,3570,Independent Supported Living And Disabilities Ltd,M44E,Adult Social Care Operations,Supplies and Services,"1,050.00",Jun-22
Slough Borough Council,3570,Independent Supported Living And Disabilities Ltd,M81D,Adult Social Care Operations,Supplies and Services,"2,384.00",Jun-22
Slough Borough Council,3570,Independent Supported Living And Disabilities Ltd,M81D,Adult Social Care Operations,Supplies and Services,"1,788.00",Jun-22
Slough Borough Council,3570,Independent Supported Living And Disabilities Ltd,M81D,Adult Social Care Operations,Supplies and Services,596.00,Jun-22
Slough Borough Council,3570,Independent Supported Living And Disabilities Ltd,M81D,Adult Social Care Operations,Supplies and Services,"3,576.00",Jun-22
Slough Borough Council,3570,Independent Supported Living And Disabilities Ltd,M81D,Adult Social Care Operations,Supplies and Services,"4,172.00",Jun-22
Slough Borough Council,3570,Independent Supported Living And Disabilities Ltd,M81D,Adult Social Care Operations,Supplies and Services,"3,576.00",Jun-22
Slough Borough Council,3570,Independent Supported Living And Disabilities Ltd,M81D,Adult Social Care Operations,Supplies and Services,596.00,Jun-22
Slough Borough Council,808214,Infocus Charity,M26E,Adult Social Care Operations,Supplies and Services,"2,827.86",Jun-22
Slough Borough Council,808214,Infocus Charity,M26E,Adult Social Care Operations,Supplies and Services,"2,675.57",Jun-22
Slough Borough Council,808214,Infocus Charity,M26E,Adult Social Care Operations,Supplies and Services,"2,827.86",Jun-22
Slough Borough Council,808214,Infocus Charity,M26E,Adult Social Care Operations,Supplies and Services,"2,401.91",Jun-22
Slough Borough Council,808214,Infocus Charity,M26E,Adult Social Care Operations,Supplies and Services,"2,554.20",Jun-22
Slough Borough Council,808214,Infocus Charity,M26E,Adult Social Care Operations,Supplies and Services,"2,827.86",Jun-22
Slough Borough Council,808214,Infocus Charity,M26E,Adult Social Care Operations,Supplies and Services,"2,736.64",Jun-22
Slough Borough Council,808214,Infocus Charity,M26E,Adult Social Care Operations,Supplies and Services,"2,827.86",Jun-22
Slough Borough Council,808214,Infocus Charity,M26E,Adult Social Care Operations,Supplies and Services,"2,736.64",Jun-22
Slough Borough Council,808214,Infocus Charity,M26E,Adult Social Care Operations,Supplies and Services,"2,827.86",Jun-22
Slough Borough Council,808214,Infocus Charity,M26E,Adult Social Care Operations,Supplies and Services,"2,827.86",Jun-22
Slough Borough Council,808214,Infocus Charity,M26E,Adult Social Care Operations,Supplies and Services,"2,310.69",Jun-22
Slough Borough Council,803651,Insight Direct (UK) Ltd,P084,Capital,Supplies and Services,"21,452.00",Jun-22
Slough Borough Council,803651,Insight Direct (UK) Ltd,P084,Capital,Capital Charges,"52,886.00",Jun-22
Slough Borough Council,803651,Insight Direct (UK) Ltd,P084,Capital,Capital Charges,"52,886.00",Jun-22
Slough Borough Council,805325,Instarmac Group plc,D880,Place Operations,Supplies and Services,"2,737.48",Jun-22
Slough Borough Council,805325,Instarmac Group plc,D880,Place Operations,Supplies and Services,"2,387.76",Jun-22
Slough Borough Council,3172,Intelligent Transport Services,D124,Place Strategy & Infrastructure,Supplies and Services,"2,274.00",Jun-22
Slough Borough Council,3172,Intelligent Transport Services,P209,Capital,Capital Charges,"1,500.00",Jun-22
Slough Borough Council,3172,Intelligent Transport Services,P209,Capital,Capital Charges,900.00,Jun-22
Slough Borough Council,3172,Intelligent Transport Services,P212,Capital,Capital Charges,"1,500.00",Jun-22
Slough Borough Council,3172,Intelligent Transport Services,P212,Capital,Capital Charges,900.00,Jun-22
Slough Borough Council,3172,Intelligent Transport Services,P212,Capital,Capital Charges,"1,800.00",Jun-22
Slough Borough Council,3172,Intelligent Transport Services,P235,Capital,Capital Charges,"1,500.00",Jun-22
Slough Borough Council,3172,Intelligent Transport Services,P235,Capital,Capital Charges,"1,200.00",Jun-22
Slough Borough Council,3172,Intelligent Transport Services,P235,Capital,Capital Charges,"1,500.00",Jun-22
Slough Borough Council,3172,Intelligent Transport Services,P235,Capital,Capital Charges,744.00,Jun-22
Slough Borough Council,3172,Intelligent Transport Services,P235,Capital,Capital Charges,"2,400.00",Jun-22
Slough Borough Council,3172,Intelligent Transport Services,P235,Capital,Capital Charges,"2,100.00",Jun-22
Slough Borough Council,3172,Intelligent Transport Services,P235,Capital,Capital Charges,"1,200.00",Jun-22
Slough Borough Council,3172,Intelligent Transport Services,P579,Capital,Capital Charges,"1,500.00",Jun-22
Slough Borough Council,3500,Iqra Slough Islamic Primary School,E480,Children & Families,Supplies and Services,"131,504.19",Jun-22
Slough Borough Council,998,Iron Mountain Uk Ltd,B282,Digital and Strategic IT,Supplies and Services,797.51,Jun-22
Slough Borough Council,2919,Islamic Shakhsiyah Foundation,F909,Children & Families,Supplies and Services,"9,007.09",Jun-22
Slough Borough Council,753,Jack In The Box Day Nursery,F909,Children & Families,Supplies and Services,"11,997.83",Jun-22
Slough Borough Council,733,James Elliman  School,E620,Children & Families,Supplies and Services,"24,096.67",Jun-22
Slough Borough Council,1970,James Elliman Academy,B297,Finance & Commercial,Government Grants,"1,950.00",Jun-22
Slough Borough Council,805226,JD Surfacing & Civil Engineering Limited,D880,Place Operations,Supplies and Services,"16,097.55",Jun-22
Slough Borough Council,805226,JD Surfacing & Civil Engineering Limited,D880,Place Operations,Supplies and Services,"1,850.00",Jun-22
Slough Borough Council,805226,JD Surfacing & Civil Engineering Limited,D880,Place Operations,Supplies and Services,"1,855.00",Jun-22
Slough Borough Council,805226,JD Surfacing & Civil Engineering Limited,D880,Place Operations,Supplies and Services,"8,640.00",Jun-22
Slough Borough Council,805226,JD Surfacing & Civil Engineering Limited,D880,Place Operations,Supplies and Services,"15,256.55",Jun-22
Slough Borough Council,805226,JD Surfacing & Civil Engineering Limited,D880,Place Operations,Supplies and Services,"8,580.53",Jun-22
Slough Borough Council,805226,JD Surfacing & Civil Engineering Limited,D880,Place Operations,Supplies and Services,"1,113.00",Jun-22
Slough Borough Council,805226,JD Surfacing & Civil Engineering Limited,D880,Place Operations,Supplies and Services,"7,560.00",Jun-22
Slough Borough Council,805226,JD Surfacing & Civil Engineering Limited,D880,Place Operations,Supplies and Services,"3,355.00",Jun-22
Slough Borough Council,805226,JD Surfacing & Civil Engineering Limited,D880,Place Operations,Supplies and Services,"11,731.55",Jun-22
Slough Borough Council,805226,JD Surfacing & Civil Engineering Limited,D880,Place Operations,Supplies and Services,"9,720.00",Jun-22
Slough Borough Council,805226,JD Surfacing & Civil Engineering Limited,D880,Place Operations,Supplies and Services,"10,507.55",Jun-22
Slough Borough Council,805226,JD Surfacing & Civil Engineering Limited,D880,Place Operations,Supplies and Services,"1,855.00",Jun-22
Slough Borough Council,807308,JLA Total Care Ltd,H205,Housing (People) Services,Supplies and Services,675.65,Jun-22
Slough Borough Council,2200,Joshua Pilmore,C322,Community,Supplies and Services,"1,452.00",Jun-22
Slough Borough Council,803687,JP McDougall & Co Ltd T/A Dulux Decorator Centre,J606,Place Management,Supplies and Services,"1,075.98",Jun-22
Slough Borough Council,803687,JP McDougall & Co Ltd T/A Dulux Decorator Centre,J606,Place Management,Supplies and Services,"1,524.67",Jun-22
Slough Borough Council,201,Kamal Enterprises Ltd,A04C,Adult Social Care Operations,Supplies and Services,634.00,Jun-22
Slough Borough Council,803815,Kathys Childcare,F909,Children & Families,Supplies and Services,"1,315.32",Jun-22
Slough Borough Council,808070,Katie Lees,C322,Community,Supplies and Services,598.00,Jun-22
Slough Borough Council,2620,Kcare Nursing Agency Ltd,M44C,Adult Social Care Operations,Supplies and Services,576.45,Jun-22
Slough Borough Council,2620,Kcare Nursing Agency Ltd,M44C,Adult Social Care Operations,Supplies and Services,"3,614.56",Jun-22
Slough Borough Council,2620,Kcare Nursing Agency Ltd,M48C,Adult Social Care Operations,Supplies and Services,"4,000.00",Jun-22
Slough Borough Council,808146,Kents Hill Care Home,M18C,Adult Social Care Operations,Supplies and Services,"3,764.29",Jun-22
Slough Borough Council,807742,Khalsa Primary School,E620,Children & Families,Supplies and Services,"10,936.67",Jun-22
Slough Borough Council,803916,Kharis Solutions,A07R,Adult Social Care Operations,Supplies and Services,535.50,Jun-22
Slough Borough Council,803916,Kharis Solutions,A07R,Adult Social Care Operations,Supplies and Services,576.00,Jun-22
Slough Borough Council,803916,Kharis Solutions,M44C,Adult Social Care Operations,Supplies and Services,"1,904.00",Jun-22
Slough Borough Council,803916,Kharis Solutions,M44C,Adult Social Care Operations,Supplies and Services,"2,278.00",Jun-22
Slough Borough Council,803916,Kharis Solutions,M44C,Adult Social Care Operations,Supplies and Services,"1,428.00",Jun-22
Slough Borough Council,803916,Kharis Solutions,M44C,Adult Social Care Operations,Supplies and Services,"1,428.00",Jun-22
Slough Borough Council,803916,Kharis Solutions,M44C,Adult Social Care Operations,Supplies and Services,"1,904.00",Jun-22
Slough Borough Council,803916,Kharis Solutions,M44C,Adult Social Care Operations,Supplies and Services,"2,278.00",Jun-22
Slough Borough Council,803916,Kharis Solutions,M44D,Adult Social Care Operations,Supplies and Services,"2,142.00",Jun-22
Slough Borough Council,803916,Kharis Solutions,M44D,Adult Social Care Operations,Supplies and Services,"2,125.00",Jun-22
Slough Borough Council,803916,Kharis Solutions,M44E,Adult Social Care Operations,Supplies and Services,"1,250.00",Jun-22
Slough Borough Council,803916,Kharis Solutions,M44E,Adult Social Care Operations,Supplies and Services,"1,200.00",Jun-22
Slough Borough Council,803916,Kharis Solutions,M44E,Adult Social Care Operations,Supplies and Services,900.00,Jun-22
Slough Borough Council,803916,Kharis Solutions,M45C,Adult Social Care Operations,Supplies and Services,514.25,Jun-22
Slough Borough Council,803916,Kharis Solutions,M48C,Adult Social Care Operations,Supplies and Services,"2,210.00",Jun-22
Slough Borough Council,803916,Kharis Solutions,M48C,Adult Social Care Operations,Supplies and Services,"2,210.00",Jun-22
Slough Borough Council,803675,Knapp Richardson Ltd,J019,Place Management,Supplies and Services,"1,139.60",Jun-22
Slough Borough Council,664,Langley Grammar School,E610,Children & Families,Supplies and Services,833.33,Jun-22
Slough Borough Council,664,Langley Grammar School,B297,Finance & Commercial,Government Grants,"2,240.00",Jun-22
Slough Borough Council,664,Langley Grammar School,B297,Finance & Commercial,Government Grants,855.00,Jun-22
Slough Borough Council,664,Langley Grammar School,B297,Finance & Commercial,Government Grants,840.00,Jun-22
Slough Borough Council,1699,Langley Hall Primary Academy,E620,Children & Families,Supplies and Services,"9,090.04",Jun-22
Slough Borough Council,3001,Langley Haven Care Homes Ltd,M25C,Adult Social Care Operations,Supplies and Services,"3,488.40",Jun-22
Slough Borough Council,3001,Langley Haven Care Homes Ltd,M25C,Adult Social Care Operations,Supplies and Services,"3,488.40",Jun-22
Slough Borough Council,3001,Langley Haven Care Homes Ltd,M26E,Adult Social Care Operations,Supplies and Services,"3,600.00",Jun-22
Slough Borough Council,3001,Langley Haven Care Homes Ltd,M26E,Adult Social Care Operations,Supplies and Services,"3,600.00",Jun-22
Slough Borough Council,3001,Langley Haven Care Homes Ltd,M27C,Adult Social Care Operations,Supplies and Services,"3,488.40",Jun-22
Slough Borough Council,3001,Langley Haven Care Homes Ltd,M27C,Adult Social Care Operations,Supplies and Services,"3,488.40",Jun-22
Slough Borough Council,3001,Langley Haven Care Homes Ltd,M27C,Adult Social Care Operations,Supplies and Services,"3,488.40",Jun-22
Slough Borough Council,3001,Langley Haven Care Homes Ltd,M27C,Adult Social Care Operations,Supplies and Services,"3,488.40",Jun-22
Slough Borough Council,3001,Langley Haven Care Homes Ltd,M27F,Adult Social Care Operations,Supplies and Services,"3,857.14",Jun-22
Slough Borough Council,3001,Langley Haven Care Homes Ltd,M27F,Adult Social Care Operations,Supplies and Services,"3,488.40",Jun-22
Slough Borough Council,3001,Langley Haven Care Homes Ltd,M27F,Adult Social Care Operations,Supplies and Services,"3,488.40",Jun-22
Slough Borough Council,3001,Langley Haven Care Homes Ltd,M27F,Adult Social Care Operations,Supplies and Services,"3,488.40",Jun-22
Slough Borough Council,3001,Langley Haven Care Homes Ltd,M27F,Adult Social Care Operations,Supplies and Services,"1,821.43",Jun-22
Slough Borough Council,3001,Langley Haven Care Homes Ltd,M29C,Adult Social Care Operations,Supplies and Services,"3,488.40",Jun-22
Slough Borough Council,3001,Langley Haven Care Homes Ltd,M29C,Adult Social Care Operations,Supplies and Services,"1,511.64",Jun-22
Slough Borough Council,3001,Langley Haven Care Homes Ltd,M29C,Adult Social Care Operations,Supplies and Services,"3,488.40",Jun-22
Slough Borough Council,803686,Lascelles Park Nursery,F909,Children & Families,Supplies and Services,"17,552.68",Jun-22
Slough Borough Council,803222,Learning Pool Limited,B409,People,Indirect Employee Expenses,"3,000.00",Jun-22
Slough Borough Council,3482,Leonard Cheshire Disability,M26E,Adult Social Care Operations,Supplies and Services,"6,207.48",Jun-22
Slough Borough Council,301,Liberata Uk Limited,B311,Finance & Commercial,Supplies and Services,"19,498.00",Jun-22
Slough Borough Council,301,Liberata Uk Limited,B311,Finance & Commercial,Supplies and Services,"51,018.42",Jun-22
Slough Borough Council,301,Liberata Uk Limited,B311,Finance & Commercial,Supplies and Services,"12,838.60",Jun-22
Slough Borough Council,301,Liberata Uk Limited,B311,Finance & Commercial,Supplies and Services,"21,142.00",Jun-22
Slough Borough Council,301,Liberata Uk Limited,B048,Finance & Commercial,Supplies and Services,"11,226.76",Jun-22
Slough Borough Council,803392,Liftshare.com LTD,D508,Place Strategy & Infrastructure,Supplies and Services,"1,785.35",Jun-22
Slough Borough Council,804692,Little Diamonds Pre School,F909,Children & Families,Supplies and Services,"15,000.00",Jun-22
Slough Borough Council,3791,Littledown Pru,E610,Children & Families,Supplies and Services,"17,100.00",Jun-22
Slough Borough Council,667,Littledown School,E610,Children & Families,Supplies and Services,"94,531.18",Jun-22
Slough Borough Council,803959,Local Government Association,B204,Finance & Commercial,Supplies and Services,"26,016.98",Jun-22
Slough Borough Council,4017,Local Government Information Unit(Lgiu),B204,Finance & Commercial,Supplies and Services,"11,300.00",Jun-22
Slough Borough Council,1282,Long Close School,F909,Children & Families,Supplies and Services,"6,859.24",Jun-22
Slough Borough Council,804585,Longlea Ltd,M18C,Adult Social Care Operations,Supplies and Services,"3,857.14",Jun-22
Slough Borough Council,807840,Lumen,B282,Digital and Strategic IT,Supplies and Services,"4,109.90",Jun-22
Slough Borough Council,807840,Lumen,B282,Digital and Strategic IT,Supplies and Services,"4,109.90",Jun-22
Slough Borough Council,1195,Lynch Hill (Foundation Primary) School,E620,Children & Families,Supplies and Services,"32,933.33",Jun-22
Slough Borough Council,1771,Lynch Hill Academy,E620,Children & Families,Supplies and Services,"14,125.00",Jun-22
Slough Borough Council,3424,M D Homes,M15F,Adult Social Care Operations,Supplies and Services,"4,714.29",Jun-22
Slough Borough Council,804930,M H Goals Ltd,B179,Business Services,Premises,"15,162.00",Jun-22
Slough Borough Council,807217,Macadamia Support Limited,M42E,Adult Social Care Operations,Supplies and Services,"3,973.20",Jun-22
Slough Borough Council,807217,Macadamia Support Limited,M42E,Adult Social Care Operations,Supplies and Services,"6,931.20",Jun-22
Slough Borough Council,807217,Macadamia Support Limited,M42E,Adult Social Care Operations,Supplies and Services,"6,713.00",Jun-22
Slough Borough Council,807217,Macadamia Support Limited,M42E,Adult Social Care Operations,Supplies and Services,"7,308.00",Jun-22
Slough Borough Council,807217,Macadamia Support Limited,M42E,Adult Social Care Operations,Supplies and Services,"3,589.12",Jun-22
Slough Borough Council,807217,Macadamia Support Limited,M44C,Adult Social Care Operations,Supplies and Services,"3,591.56",Jun-22
Slough Borough Council,807217,Macadamia Support Limited,M44D,Adult Social Care Operations,Supplies and Services,"5,523.00",Jun-22
Slough Borough Council,808408,Maiden Erlegh Trust,F552,Children & Families,Supplies and Services,"3,462.00",Jun-22
Slough Borough Council,1941,Manor Green School,F551,Children & Families,Supplies and Services,"37,800.00",Jun-22
Slough Borough Council,529,Marish Primary School,E620,Children & Families,Supplies and Services,"112,608.55",Jun-22
Slough Borough Council,2087,Marlow Opportunity Playgroup,F550,Children & Families,Supplies and Services,"1,500.00",Jun-22
Slough Borough Council,2087,Marlow Opportunity Playgroup,F550,Children & Families,Supplies and Services,"1,000.00",Jun-22
Slough Borough Council,2087,Marlow Opportunity Playgroup,F550,Children & Families,Supplies and Services,500.00,Jun-22
Slough Borough Council,807774,Marsh Ltd,B018,Finance & Commercial,Supplies and Services,"5,544.00",Jun-22
Slough Borough Council,807774,Marsh Ltd,B018,Finance & Commercial,Supplies and Services,"41,668.54",Jun-22
Slough Borough Council,807774,Marsh Ltd,B018,Finance & Commercial,Supplies and Services,"14,740.94",Jun-22
Slough Borough Council,807774,Marsh Ltd,B018,Finance & Commercial,Supplies and Services,856.80,Jun-22
Slough Borough Council,807774,Marsh Ltd,B018,Finance & Commercial,Supplies and Services,"23,173.76",Jun-22
Slough Borough Council,807774,Marsh Ltd,B018,Finance & Commercial,Supplies and Services,"36,803.20",Jun-22
Slough Borough Council,807774,Marsh Ltd,B018,Finance & Commercial,Supplies and Services,"33,600.00",Jun-22
Slough Borough Council,807774,Marsh Ltd,B018,Finance & Commercial,Supplies and Services,"19,277.44",Jun-22
Slough Borough Council,807774,Marsh Ltd,B018,Finance & Commercial,Supplies and Services,"6,231.46",Jun-22
Slough Borough Council,807774,Marsh Ltd,B018,Finance & Commercial,Supplies and Services,"20,994.75",Jun-22
Slough Borough Council,807774,Marsh Ltd,B018,Finance & Commercial,Supplies and Services,"3,800.90",Jun-22
Slough Borough Council,807774,Marsh Ltd,B018,Finance & Commercial,Supplies and Services,"14,657.54",Jun-22
Slough Borough Council,807774,Marsh Ltd,B018,Finance & Commercial,Supplies and Services,"297,495.84",Jun-22
Slough Borough Council,807774,Marsh Ltd,B018,Finance & Commercial,Supplies and Services,"305,760.00",Jun-22
Slough Borough Council,807774,Marsh Ltd,B018,Finance & Commercial,Supplies and Services,"332,082.28",Jun-22
Slough Borough Council,1886,Matrix Scm,B023,Finance & Commercial,Agency Staff,"318,163.47",Jun-22
Slough Borough Council,1886,Matrix Scm,B023,Finance & Commercial,Agency Staff,"330,074.37",Jun-22
Slough Borough Council,1886,Matrix Scm,B023,Finance & Commercial,Agency Staff,"223,520.00",Jun-22
Slough Borough Council,1886,Matrix Scm,B023,Finance & Commercial,Agency Staff,"343,236.06",Jun-22
Slough Borough Council,1886,Matrix Scm,B023,Finance & Commercial,Agency Staff,"316,224.56",Jun-22
Slough Borough Council,805218,Merit Thornton Planning and Community Consultants Ltd,D012,Place Strategy & Infrastructure,Supplies and Services,"5,399.51",Jun-22
Slough Borough Council,1887,Michael Dyson Associates Ltd,P101,Capital,Capital Charges,"1,100.00",Jun-22
Slough Borough Council,1496,Mighty Acorns Day Nursery Ltd,F909,Children & Families,Supplies and Services,"16,235.90",Jun-22
Slough Borough Council,2106,Mj Events Support Ltd,B240,Business Services,Premises,974.70,Jun-22
Slough Borough Council,805121,MMCG (2) Limited,M15D,Adult Social Care Operations,Supplies and Services,"3,557.25",Jun-22
Slough Borough Council,805121,MMCG (2) Limited,M15F,Adult Social Care Operations,Supplies and Services,"3,557.25",Jun-22
Slough Borough Council,805121,MMCG (2) Limited,M17C,Adult Social Care Operations,Supplies and Services,"4,387.30",Jun-22
Slough Borough Council,805121,MMCG (2) Limited,M17C,Adult Social Care Operations,Supplies and Services,"4,031.55",Jun-22
Slough Borough Council,805121,MMCG (2) Limited,M17C,Adult Social Care Operations,Supplies and Services,"3,557.25",Jun-22
Slough Borough Council,805121,MMCG (2) Limited,M18C,Adult Social Care Operations,Supplies and Services,"4,387.30",Jun-22
Slough Borough Council,805121,MMCG (2) Limited,M18C,Adult Social Care Operations,Supplies and Services,"4,387.30",Jun-22
Slough Borough Council,805121,MMCG (2) Limited,M18C,Adult Social Care Operations,Supplies and Services,"4,245.77",Jun-22
Slough Borough Council,805121,MMCG (2) Limited,M18C,Adult Social Care Operations,Supplies and Services,"3,557.25",Jun-22
Slough Borough Council,805121,MMCG (2) Limited,M18C,Adult Social Care Operations,Supplies and Services,"3,557.25",Jun-22
Slough Borough Council,805121,MMCG (2) Limited,M18C,Adult Social Care Operations,Supplies and Services,"3,557.25",Jun-22
Slough Borough Council,805121,MMCG (2) Limited,M18C,Adult Social Care Operations,Supplies and Services,"3,557.25",Jun-22
Slough Borough Council,805121,MMCG (2) Limited,M18C,Adult Social Care Operations,Supplies and Services,"3,557.25",Jun-22
Slough Borough Council,805121,MMCG (2) Limited,M18C,Adult Social Care Operations,Supplies and Services,"3,442.50",Jun-22
Slough Borough Council,805121,MMCG (2) Limited,M18C,Adult Social Care Operations,Supplies and Services,"3,557.25",Jun-22
Slough Borough Council,805121,MMCG (2) Limited,M18C,Adult Social Care Operations,Supplies and Services,"3,442.50",Jun-22
Slough Borough Council,805121,MMCG (2) Limited,M18C,Adult Social Care Operations,Supplies and Services,"1,377.00",Jun-22
Slough Borough Council,805121,MMCG (2) Limited,M25C,Adult Social Care Operations,Supplies and Services,"3,557.25",Jun-22
Slough Borough Council,805121,MMCG (2) Limited,M27C,Adult Social Care Operations,Supplies and Services,"3,557.25",Jun-22
Slough Borough Council,805121,MMCG (2) Limited,M27C,Adult Social Care Operations,Supplies and Services,"3,557.25",Jun-22
Slough Borough Council,805121,MMCG (2) Limited,M27C,Adult Social Care Operations,Supplies and Services,"3,557.25",Jun-22
Slough Borough Council,805121,MMCG (2) Limited,M27C,Adult Social Care Operations,Supplies and Services,"3,557.25",Jun-22
Slough Borough Council,805121,MMCG (2) Limited,M27C,Adult Social Care Operations,Supplies and Services,"3,557.25",Jun-22
Slough Borough Council,805121,MMCG (2) Limited,M28C,Adult Social Care Operations,Supplies and Services,"3,114.10",Jun-22
Slough Borough Council,805121,MMCG (2) Limited,M28C,Adult Social Care Operations,Supplies and Services,"3,557.25",Jun-22
Slough Borough Council,805121,MMCG (2) Limited,M28C,Adult Social Care Operations,Supplies and Services,"2,180.25",Jun-22
Slough Borough Council,805121,MMCG (2) Limited,M29C,Adult Social Care Operations,Supplies and Services,"3,557.25",Jun-22
Slough Borough Council,805121,MMCG (2) Limited,M29C,Adult Social Care Operations,Supplies and Services,"1,377.00",Jun-22
Slough Borough Council,2645,Modus Care Ltd,M26E,Adult Social Care Operations,Supplies and Services,"10,804.40",Jun-22
Slough Borough Council,804815,Molly Southall,C322,Community,Supplies and Services,899.50,Jun-22
Slough Borough Council,2115,Montagu Evans Llp,B086,Place Strategy & Infrastructure,Capital Charges,"9,582.00",Jun-22
Slough Borough Council,2115,Montagu Evans Llp,B086,Place Strategy & Infrastructure,Capital Charges,"7,500.00",Jun-22
Slough Borough Council,2115,Montagu Evans Llp,B086,Place Strategy & Infrastructure,Capital Charges,"7,500.00",Jun-22
Slough Borough Council,2115,Montagu Evans Llp,B086,Place Strategy & Infrastructure,Capital Charges,"7,500.00",Jun-22
Slough Borough Council,2115,Montagu Evans Llp,B086,Place Strategy & Infrastructure,Capital Charges,"7,500.00",Jun-22
Slough Borough Council,2166,Montague Swift Recruitment Ltd,F640,Children & Families,Agency Staff,"1,666.67",Jun-22
Slough Borough Council,2166,Montague Swift Recruitment Ltd,F640,Children & Families,Agency Staff,"2,708.33",Jun-22
Slough Borough Council,2166,Montague Swift Recruitment Ltd,F640,Children & Families,Agency Staff,"2,375.00",Jun-22
Slough Borough Council,3970,Montem Academy,B297,Finance & Commercial,Government Grants,"3,615.00",Jun-22
Slough Borough Council,1140,Montem Guesthouse,H205,Housing (People) Services,Supplies and Services,728.00,Jun-22
Slough Borough Council,1140,Montem Guesthouse,H205,Housing (People) Services,Supplies and Services,"1,500.00",Jun-22
Slough Borough Council,1140,Montem Guesthouse,H205,Housing (People) Services,Supplies and Services,"1,350.00",Jun-22
Slough Borough Council,1140,Montem Guesthouse,H205,Housing (People) Services,Supplies and Services,"1,000.00",Jun-22
Slough Borough Council,1140,Montem Guesthouse,H205,Housing (People) Services,Supplies and Services,"1,500.00",Jun-22
Slough Borough Council,1140,Montem Guesthouse,H205,Housing (People) Services,Supplies and Services,"1,650.00",Jun-22
Slough Borough Council,1140,Montem Guesthouse,H205,Housing (People) Services,Supplies and Services,"1,350.00",Jun-22
Slough Borough Council,1140,Montem Guesthouse,H205,Housing (People) Services,Supplies and Services,"1,050.00",Jun-22
Slough Borough Council,1140,Montem Guesthouse,H205,Housing (People) Services,Supplies and Services,"1,200.00",Jun-22
Slough Borough Council,1140,Montem Guesthouse,H205,Housing (People) Services,Supplies and Services,"1,350.00",Jun-22
Slough Borough Council,1140,Montem Guesthouse,H205,Housing (People) Services,Supplies and Services,"1,500.00",Jun-22
Slough Borough Council,1140,Montem Guesthouse,H205,Housing (People) Services,Supplies and Services,"1,500.00",Jun-22
Slough Borough Council,1140,Montem Guesthouse,H205,Housing (People) Services,Supplies and Services,"1,350.00",Jun-22
Slough Borough Council,1140,Montem Guesthouse,H205,Housing (People) Services,Supplies and Services,"1,500.00",Jun-22
Slough Borough Council,1140,Montem Guesthouse,H205,Housing (People) Services,Supplies and Services,"1,650.00",Jun-22
Slough Borough Council,1140,Montem Guesthouse,H205,Housing (People) Services,Supplies and Services,"1,500.00",Jun-22
Slough Borough Council,1140,Montem Guesthouse,H205,Housing (People) Services,Supplies and Services,"1,350.00",Jun-22
Slough Borough Council,1140,Montem Guesthouse,H205,Housing (People) Services,Supplies and Services,500.00,Jun-22
Slough Borough Council,1140,Montem Guesthouse,H205,Housing (People) Services,Supplies and Services,700.00,Jun-22
Slough Borough Council,1140,Montem Guesthouse,H205,Housing (People) Services,Supplies and Services,"1,500.00",Jun-22
Slough Borough Council,1140,Montem Guesthouse,H205,Housing (People) Services,Supplies and Services,"1,350.00",Jun-22
Slough Borough Council,1140,Montem Guesthouse,H205,Housing (People) Services,Supplies and Services,"1,650.00",Jun-22
Slough Borough Council,1140,Montem Guesthouse,H205,Housing (People) Services,Supplies and Services,"1,800.00",Jun-22
Slough Borough Council,1140,Montem Guesthouse,H205,Housing (People) Services,Supplies and Services,"1,350.00",Jun-22
Slough Borough Council,1140,Montem Guesthouse,H205,Housing (People) Services,Supplies and Services,"1,500.00",Jun-22
Slough Borough Council,1140,Montem Guesthouse,H205,Housing (People) Services,Supplies and Services,"1,650.00",Jun-22
Slough Borough Council,1140,Montem Guesthouse,H205,Housing (People) Services,Supplies and Services,"1,650.00",Jun-22
Slough Borough Council,1140,Montem Guesthouse,H205,Housing (People) Services,Supplies and Services,"1,350.00",Jun-22
Slough Borough Council,1140,Montem Guesthouse,H205,Housing (People) Services,Supplies and Services,900.00,Jun-22
Slough Borough Council,1140,Montem Guesthouse,H205,Housing (People) Services,Supplies and Services,"1,200.00",Jun-22
Slough Borough Council,1140,Montem Guesthouse,H205,Housing (People) Services,Supplies and Services,600.00,Jun-22
Slough Borough Council,1140,Montem Guesthouse,H205,Housing (People) Services,Supplies and Services,-600.00,Jun-22
Slough Borough Council,1140,Montem Guesthouse,H205,Housing (People) Services,Supplies and Services,"1,595.00",Jun-22
Slough Borough Council,1140,Montem Guesthouse,H205,Housing (People) Services,Supplies and Services,"1,550.00",Jun-22
Slough Borough Council,1140,Montem Guesthouse,H205,Housing (People) Services,Supplies and Services,"1,395.00",Jun-22
Slough Borough Council,1140,Montem Guesthouse,H205,Housing (People) Services,Supplies and Services,"1,395.00",Jun-22
Slough Borough Council,1140,Montem Guesthouse,H205,Housing (People) Services,Supplies and Services,"1,085.00",Jun-22
Slough Borough Council,1140,Montem Guesthouse,H205,Housing (People) Services,Supplies and Services,"1,550.00",Jun-22
Slough Borough Council,1140,Montem Guesthouse,H205,Housing (People) Services,Supplies and Services,"1,395.00",Jun-22
Slough Borough Council,1140,Montem Guesthouse,H205,Housing (People) Services,Supplies and Services,"1,550.00",Jun-22
Slough Borough Council,1140,Montem Guesthouse,H205,Housing (People) Services,Supplies and Services,"1,550.00",Jun-22
Slough Borough Council,1140,Montem Guesthouse,H205,Housing (People) Services,Supplies and Services,"1,395.00",Jun-22
Slough Borough Council,1140,Montem Guesthouse,H205,Housing (People) Services,Supplies and Services,"1,705.00",Jun-22
Slough Borough Council,1140,Montem Guesthouse,H205,Housing (People) Services,Supplies and Services,"1,550.00",Jun-22
Slough Borough Council,1140,Montem Guesthouse,H205,Housing (People) Services,Supplies and Services,"1,705.00",Jun-22
Slough Borough Council,1140,Montem Guesthouse,H205,Housing (People) Services,Supplies and Services,"1,705.00",Jun-22
Slough Borough Council,1140,Montem Guesthouse,H205,Housing (People) Services,Supplies and Services,"1,240.00",Jun-22
Slough Borough Council,1140,Montem Guesthouse,H205,Housing (People) Services,Supplies and Services,"1,395.00",Jun-22
Slough Borough Council,1140,Montem Guesthouse,H205,Housing (People) Services,Supplies and Services,"1,550.00",Jun-22
Slough Borough Council,1140,Montem Guesthouse,H205,Housing (People) Services,Supplies and Services,"1,550.00",Jun-22
Slough Borough Council,1140,Montem Guesthouse,H205,Housing (People) Services,Supplies and Services,"1,550.00",Jun-22
Slough Borough Council,1140,Montem Guesthouse,H205,Housing (People) Services,Supplies and Services,"1,550.00",Jun-22
Slough Borough Council,1140,Montem Guesthouse,H205,Housing (People) Services,Supplies and Services,"1,450.00",Jun-22
Slough Borough Council,1140,Montem Guesthouse,H205,Housing (People) Services,Supplies and Services,"1,395.00",Jun-22
Slough Borough Council,1140,Montem Guesthouse,H205,Housing (People) Services,Supplies and Services,"1,705.00",Jun-22
Slough Borough Council,1140,Montem Guesthouse,H205,Housing (People) Services,Supplies and Services,600.00,Jun-22
Slough Borough Council,1140,Montem Guesthouse,H205,Housing (People) Services,Supplies and Services,"1,560.00",Jun-22
Slough Borough Council,1140,Montem Guesthouse,H205,Housing (People) Services,Supplies and Services,"1,395.00",Jun-22
Slough Borough Council,1140,Montem Guesthouse,H205,Housing (People) Services,Supplies and Services,"1,705.00",Jun-22
Slough Borough Council,1140,Montem Guesthouse,H205,Housing (People) Services,Supplies and Services,"1,170.00",Jun-22
Slough Borough Council,1140,Montem Guesthouse,H205,Housing (People) Services,Supplies and Services,"1,395.00",Jun-22
Slough Borough Council,1140,Montem Guesthouse,H205,Housing (People) Services,Supplies and Services,"1,395.00",Jun-22
Slough Borough Council,1140,Montem Guesthouse,H205,Housing (People) Services,Supplies and Services,"1,705.00",Jun-22
Slough Borough Council,1140,Montem Guesthouse,H205,Housing (People) Services,Supplies and Services,"1,265.00",Jun-22
Slough Borough Council,1140,Montem Guesthouse,H205,Housing (People) Services,Supplies and Services,"1,860.00",Jun-22
Slough Borough Council,1140,Montem Guesthouse,H205,Housing (People) Services,Supplies and Services,"1,550.00",Jun-22
Slough Borough Council,1140,Montem Guesthouse,H205,Housing (People) Services,Supplies and Services,600.00,Jun-22
Slough Borough Council,3302,Montem Primary School,E620,Children & Families,Supplies and Services,"39,349.52",Jun-22
Slough Borough Council,805335,Motion Picture Licensing Company,B179,Business Services,Supplies and Services,"3,709.81",Jun-22
Slough Borough Council,806484,Mrs Parwinder Kaur Bhandal,H205,Housing (People) Services,Supplies and Services,"7,680.00",Jun-22
Slough Borough Council,806484,Mrs Parwinder Kaur Bhandal,H205,Housing (People) Services,Supplies and Services,"7,936.00",Jun-22
Slough Borough Council,806858,MUDDY BOOTS DAY NURSERY LTD,F909,Children & Families,Supplies and Services,"6,081.95",Jun-22
Slough Borough Council,806264,NAL Ltd,D880,Place Operations,Supplies and Services,633.40,Jun-22
Slough Borough Council,805369,NAS Services Limited,M42E,Adult Social Care Operations,Supplies and Services,"8,170.11",Jun-22
Slough Borough Council,1796,Ncer Cic,F200,Education & Inclusion,Supplies and Services,"7,416.97",Jun-22
Slough Borough Council,805932,NHS East Berkshire CCG,A04C,Adult Social Care Operations,Supplies and Services,"16,614.71",Jun-22
Slough Borough Council,804831,No.5 Chambers,H009,Business Services,Supplies and Services,"1,375.00",Jun-22
Slough Borough Council,804831,No.5 Chambers,H009,Business Services,Supplies and Services,"3,750.00",Jun-22
Slough Borough Council,3717,Norwood Schools Limited,M26E,Adult Social Care Operations,Supplies and Services,"4,051.92",Jun-22
Slough Borough Council,3717,Norwood Schools Limited,M26E,Adult Social Care Operations,Supplies and Services,"4,051.92",Jun-22
Slough Borough Council,3717,Norwood Schools Limited,M26E,Adult Social Care Operations,External Receipts,-641.20,Jun-22
Slough Borough Council,3717,Norwood Schools Limited,M26E,Adult Social Care Operations,External Receipts,-641.20,Jun-22
Slough Borough Council,803238,Oasis Care and Training Agency,A07R,Adult Social Care Operations,Supplies and Services,"1,684.62",Jun-22
Slough Borough Council,803238,Oasis Care and Training Agency,A07R,Adult Social Care Operations,Supplies and Services,782.15,Jun-22
Slough Borough Council,803238,Oasis Care and Training Agency,A07R,Adult Social Care Operations,Supplies and Services,601.65,Jun-22
Slough Borough Council,803238,Oasis Care and Training Agency,M42C,Adult Social Care Operations,Supplies and Services,683.30,Jun-22
Slough Borough Council,803238,Oasis Care and Training Agency,M44C,Adult Social Care Operations,Supplies and Services,962.64,Jun-22
Slough Borough Council,803238,Oasis Care and Training Agency,M44C,Adult Social Care Operations,Supplies and Services,"2,045.60",Jun-22
Slough Borough Council,803238,Oasis Care and Training Agency,M44C,Adult Social Care Operations,Supplies and Services,"1,151.73",Jun-22
Slough Borough Council,803238,Oasis Care and Training Agency,M44C,Adult Social Care Operations,Supplies and Services,601.65,Jun-22
Slough Borough Council,803238,Oasis Care and Training Agency,M44C,Adult Social Care Operations,Supplies and Services,842.31,Jun-22
Slough Borough Council,803238,Oasis Care and Training Agency,M44C,Adult Social Care Operations,Supplies and Services,"1,444.62",Jun-22
Slough Borough Council,803238,Oasis Care and Training Agency,M44C,Adult Social Care Operations,Supplies and Services,962.64,Jun-22
Slough Borough Council,803238,Oasis Care and Training Agency,M44C,Adult Social Care Operations,Supplies and Services,"1,203.30",Jun-22
Slough Borough Council,803238,Oasis Care and Training Agency,M44C,Adult Social Care Operations,Supplies and Services,"2,784.78",Jun-22
Slough Borough Council,803238,Oasis Care and Training Agency,M44C,Adult Social Care Operations,Supplies and Services,"2,089.11",Jun-22
Slough Borough Council,803238,Oasis Care and Training Agency,M44C,Adult Social Care Operations,Supplies and Services,"1,203.30",Jun-22
Slough Borough Council,803238,Oasis Care and Training Agency,M44C,Adult Social Care Operations,Supplies and Services,"3,733.49",Jun-22
Slough Borough Council,803238,Oasis Care and Training Agency,M44C,Adult Social Care Operations,Supplies and Services,"1,443.96",Jun-22
Slough Borough Council,803238,Oasis Care and Training Agency,M44C,Adult Social Care Operations,Supplies and Services,601.64,Jun-22
Slough Borough Council,803238,Oasis Care and Training Agency,M44C,Adult Social Care Operations,Supplies and Services,842.31,Jun-22
Slough Borough Council,803238,Oasis Care and Training Agency,M44C,Adult Social Care Operations,Supplies and Services,"2,681.64",Jun-22
Slough Borough Council,803238,Oasis Care and Training Agency,M44C,Adult Social Care Operations,Supplies and Services,704.87,Jun-22
Slough Borough Council,803238,Oasis Care and Training Agency,M44C,Adult Social Care Operations,Supplies and Services,"1,082.96",Jun-22
Slough Borough Council,803238,Oasis Care and Training Agency,M44C,Adult Social Care Operations,Supplies and Services,722.00,Jun-22
Slough Borough Council,803238,Oasis Care and Training Agency,M44C,Adult Social Care Operations,Supplies and Services,"1,151.72",Jun-22
Slough Borough Council,803238,Oasis Care and Training Agency,M44C,Adult Social Care Operations,Supplies and Services,"1,186.13",Jun-22
Slough Borough Council,803238,Oasis Care and Training Agency,M44C,Adult Social Care Operations,Supplies and Services,"1,082.96",Jun-22
Slough Borough Council,803238,Oasis Care and Training Agency,M44C,Adult Social Care Operations,Supplies and Services,"2,681.64",Jun-22
Slough Borough Council,803238,Oasis Care and Training Agency,M44C,Adult Social Care Operations,Supplies and Services,"2,784.80",Jun-22
Slough Borough Council,803238,Oasis Care and Training Agency,M44C,Adult Social Care Operations,Supplies and Services,"1,443.96",Jun-22
Slough Borough Council,803238,Oasis Care and Training Agency,M44C,Adult Social Care Operations,Supplies and Services,"1,443.96",Jun-22
Slough Borough Council,803238,Oasis Care and Training Agency,M44C,Adult Social Care Operations,Supplies and Services,"2,165.96",Jun-22
Slough Borough Council,803238,Oasis Care and Training Agency,M44C,Adult Social Care Operations,Supplies and Services,842.32,Jun-22
Slough Borough Council,803238,Oasis Care and Training Agency,M44C,Adult Social Care Operations,Supplies and Services,601.64,Jun-22
Slough Borough Council,803238,Oasis Care and Training Agency,M44C,Adult Social Care Operations,Supplies and Services,962.64,Jun-22
Slough Borough Council,803238,Oasis Care and Training Agency,M44C,Adult Social Care Operations,Supplies and Services,"2,045.60",Jun-22
Slough Borough Council,803238,Oasis Care and Training Agency,M44C,Adult Social Care Operations,Supplies and Services,962.64,Jun-22
Slough Borough Council,803238,Oasis Care and Training Agency,M44C,Adult Social Care Operations,Supplies and Services,842.32,Jun-22
Slough Borough Council,803238,Oasis Care and Training Agency,M44D,Adult Social Care Operations,Supplies and Services,979.84,Jun-22
Slough Borough Council,803238,Oasis Care and Training Agency,M44D,Adult Social Care Operations,Supplies and Services,842.31,Jun-22
Slough Borough Council,803238,Oasis Care and Training Agency,M44D,Adult Social Care Operations,Supplies and Services,670.41,Jun-22
Slough Borough Council,803238,Oasis Care and Training Agency,M44D,Adult Social Care Operations,Supplies and Services,"2,165.94",Jun-22
Slough Borough Council,803238,Oasis Care and Training Agency,M44D,Adult Social Care Operations,Supplies and Services,"1,375.20",Jun-22
Slough Borough Council,803238,Oasis Care and Training Agency,M44D,Adult Social Care Operations,Supplies and Services,842.31,Jun-22
Slough Borough Council,803238,Oasis Care and Training Agency,M44D,Adult Social Care Operations,Supplies and Services,"1,323.63",Jun-22
Slough Borough Council,803238,Oasis Care and Training Agency,M44D,Adult Social Care Operations,Supplies and Services,979.83,Jun-22
Slough Borough Council,803238,Oasis Care and Training Agency,M44D,Adult Social Care Operations,Supplies and Services,"2,165.94",Jun-22
Slough Borough Council,803238,Oasis Care and Training Agency,M44D,Adult Social Care Operations,Supplies and Services,842.32,Jun-22
Slough Borough Council,803238,Oasis Care and Training Agency,M44D,Adult Social Care Operations,Supplies and Services,"1,340.84",Jun-22
Slough Borough Council,803238,Oasis Care and Training Agency,M44D,Adult Social Care Operations,Supplies and Services,"2,165.96",Jun-22
Slough Borough Council,803238,Oasis Care and Training Agency,M44D,Adult Social Care Operations,Supplies and Services,979.84,Jun-22
Slough Borough Council,803238,Oasis Care and Training Agency,M44D,Adult Social Care Operations,Supplies and Services,979.84,Jun-22
Slough Borough Council,803238,Oasis Care and Training Agency,M44D,Adult Social Care Operations,Supplies and Services,842.32,Jun-22
Slough Borough Council,803238,Oasis Care and Training Agency,M44D,Adult Social Care Operations,Supplies and Services,"1,044.30",Jun-22
Slough Borough Council,803238,Oasis Care and Training Agency,M44D,Adult Social Care Operations,Supplies and Services,670.40,Jun-22
Slough Borough Council,803238,Oasis Care and Training Agency,M44D,Adult Social Care Operations,Supplies and Services,"1,323.64",Jun-22
Slough Borough Council,803238,Oasis Care and Training Agency,M44F,Adult Social Care Operations,Supplies and Services,"1,375.20",Jun-22
Slough Borough Council,803238,Oasis Care and Training Agency,M44F,Adult Social Care Operations,Supplies and Services,"4,331.88",Jun-22
Slough Borough Council,803238,Oasis Care and Training Agency,M44F,Adult Social Care Operations,Supplies and Services,"4,331.88",Jun-22
Slough Borough Council,803238,Oasis Care and Training Agency,M44F,Adult Social Care Operations,Supplies and Services,"1,375.20",Jun-22
Slough Borough Council,803238,Oasis Care and Training Agency,M45C,Adult Social Care Operations,Supplies and Services,"1,289.25",Jun-22
Slough Borough Council,803238,Oasis Care and Training Agency,M48C,Adult Social Care Operations,Supplies and Services,"9,576.00",Jun-22
Slough Borough Council,803238,Oasis Care and Training Agency,M48C,Adult Social Care Operations,Supplies and Services,"9,576.00",Jun-22
Slough Borough Council,1552,Octink,B283,Finance & Commercial,Supplies and Services,"3,525.00",Jun-22
Slough Borough Council,1767,Olive Tree Montessori Ltd,F909,Children & Families,Supplies and Services,"20,748.05",Jun-22
Slough Borough Council,3603,Olympia Transport Limited,F123,Education & Inclusion,Supplies and Services,"9,010.48",Jun-22
Slough Borough Council,3603,Olympia Transport Limited,F123,Education & Inclusion,Supplies and Services,"7,367.45",Jun-22
Slough Borough Council,804687,Optalis Limited,M42E,Adult Social Care Operations,Supplies and Services,"5,642.13",Jun-22
Slough Borough Council,804687,Optalis Limited,M42E,Adult Social Care Operations,Supplies and Services,"4,807.26",Jun-22
Slough Borough Council,803490,Optimum Specialised Home Limited,M26E,Adult Social Care Operations,Supplies and Services,"8,400.00",Jun-22
Slough Borough Council,803490,Optimum Specialised Home Limited,M26E,Adult Social Care Operations,Supplies and Services,"7,180.00",Jun-22
Slough Borough Council,803960,Orchard Hill College,F558,Children & Families,Supplies and Services,"16,622.16",Jun-22
Slough Borough Council,803960,Orchard Hill College,F558,Children & Families,Supplies and Services,"17,404.56",Jun-22
Slough Borough Council,803960,Orchard Hill College,F558,Children & Families,Supplies and Services,"17,887.93",Jun-22
Slough Borough Council,803960,Orchard Hill College,F558,Children & Families,Supplies and Services,"18,091.93",Jun-22
Slough Borough Council,803960,Orchard Hill College,F558,Children & Families,Supplies and Services,"20,913.40",Jun-22
Slough Borough Council,803960,Orchard Hill College,F558,Children & Families,Supplies and Services,"16,372.09",Jun-22
Slough Borough Council,803960,Orchard Hill College,F558,Children & Families,Supplies and Services,"13,202.11",Jun-22
Slough Borough Council,803960,Orchard Hill College,F558,Children & Families,Supplies and Services,"13,179.44",Jun-22
Slough Borough Council,803960,Orchard Hill College,F558,Children & Families,Supplies and Services,"16,468.56",Jun-22
Slough Borough Council,803960,Orchard Hill College,F558,Children & Families,Supplies and Services,"-8,262.68",Jun-22
Slough Borough Council,807272,Origin Transport Consultants Ltd,D224,Place Regulation,Supplies and Services,"5,952.70",Jun-22
Slough Borough Council,807272,Origin Transport Consultants Ltd,D224,Place Regulation,Supplies and Services,"3,561.05",Jun-22
Slough Borough Council,805011,Osborne Property Services Limited,J606,Place Management,Supplies and Services,"80,000.00",Jun-22
Slough Borough Council,805011,Osborne Property Services Limited,J607,Place Management,Premises,"169,530.53",Jun-22
Slough Borough Council,805011,Osborne Property Services Limited,J015,Place Management,Premises,"27,000.00",Jun-22
Slough Borough Council,805011,Osborne Property Services Limited,J606,Place Management,Supplies and Services,"12,389.96",Jun-22
Slough Borough Council,805011,Osborne Property Services Limited,J606,Place Management,Supplies and Services,"28,814.12",Jun-22
Slough Borough Council,805011,Osborne Property Services Limited,J606,Place Management,Supplies and Services,"135,991.93",Jun-22
Slough Borough Council,805011,Osborne Property Services Limited,J607,Place Management,Supplies and Services,"117,268.59",Jun-22
Slough Borough Council,805011,Osborne Property Services Limited,J606,Place Management,Supplies and Services,"145,000.00",Jun-22
Slough Borough Council,805011,Osborne Property Services Limited,J607,Place Management,Supplies and Services,"2,082.00",Jun-22
Slough Borough Council,3371,Our Lady Of Peace Catholic Primary and Nursery School,E340,Children & Families,Supplies and Services,"33,727.65",Jun-22
Slough Borough Council,294,Oxford Computer Consultants Ltd,A01D,Adult Social Care Operations,Supplies and Services,"10,810.00",Jun-22
Slough Borough Council,680,Oxford House Community Care,M44C,Adult Social Care Operations,Supplies and Services,"1,248.82",Jun-22
Slough Borough Council,680,Oxford House Community Care,M44C,Adult Social Care Operations,Supplies and Services,707.83,Jun-22
Slough Borough Council,680,Oxford House Community Care,M44C,Adult Social Care Operations,Supplies and Services,"1,193.86",Jun-22
Slough Borough Council,680,Oxford House Community Care,M44C,Adult Social Care Operations,Supplies and Services,"1,242.85",Jun-22
Slough Borough Council,680,Oxford House Community Care,M44C,Adult Social Care Operations,Supplies and Services,897.60,Jun-22
Slough Borough Council,680,Oxford House Community Care,M44C,Adult Social Care Operations,Supplies and Services,"2,220.82",Jun-22
Slough Borough Council,680,Oxford House Community Care,M44C,Adult Social Care Operations,Supplies and Services,812.37,Jun-22
Slough Borough Council,680,Oxford House Community Care,M44C,Adult Social Care Operations,Supplies and Services,789.37,Jun-22
Slough Borough Council,680,Oxford House Community Care,M44C,Adult Social Care Operations,Supplies and Services,633.60,Jun-22
Slough Borough Council,680,Oxford House Community Care,M44C,Adult Social Care Operations,Supplies and Services,"1,031.92",Jun-22
Slough Borough Council,680,Oxford House Community Care,M44C,Adult Social Care Operations,Supplies and Services,"1,232.00",Jun-22
Slough Borough Council,680,Oxford House Community Care,M44C,Adult Social Care Operations,Supplies and Services,"2,076.39",Jun-22
Slough Borough Council,680,Oxford House Community Care,M44C,Adult Social Care Operations,Supplies and Services,"1,048.90",Jun-22
Slough Borough Council,680,Oxford House Community Care,M44C,Adult Social Care Operations,Supplies and Services,"2,217.60",Jun-22
Slough Borough Council,680,Oxford House Community Care,M44C,Adult Social Care Operations,Supplies and Services,"2,419.13",Jun-22
Slough Borough Council,680,Oxford House Community Care,M44C,Adult Social Care Operations,Supplies and Services,735.97,Jun-22
Slough Borough Council,680,Oxford House Community Care,M44C,Adult Social Care Operations,Supplies and Services,"1,041.62",Jun-22
Slough Borough Council,680,Oxford House Community Care,M44C,Adult Social Care Operations,Supplies and Services,616.00,Jun-22
Slough Borough Council,680,Oxford House Community Care,M44C,Adult Social Care Operations,Supplies and Services,664.11,Jun-22
Slough Borough Council,680,Oxford House Community Care,M44C,Adult Social Care Operations,Supplies and Services,"1,181.84",Jun-22
Slough Borough Council,680,Oxford House Community Care,M44C,Adult Social Care Operations,Supplies and Services,580.80,Jun-22
Slough Borough Council,680,Oxford House Community Care,M44C,Adult Social Care Operations,Supplies and Services,"1,152.28",Jun-22
Slough Borough Council,680,Oxford House Community Care,M44D,Adult Social Care Operations,Supplies and Services,621.86,Jun-22
Slough Borough Council,680,Oxford House Community Care,M44D,Adult Social Care Operations,Supplies and Services,616.00,Jun-22
Slough Borough Council,680,Oxford House Community Care,M44D,Adult Social Care Operations,Supplies and Services,528.01,Jun-22
Slough Borough Council,680,Oxford House Community Care,M44D,Adult Social Care Operations,Supplies and Services,739.20,Jun-22
Slough Borough Council,680,Oxford House Community Care,M44D,Adult Social Care Operations,Supplies and Services,"1,117.89",Jun-22
Slough Borough Council,680,Oxford House Community Care,M47D,Adult Social Care Operations,Supplies and Services,633.60,Jun-22
Slough Borough Council,680,Oxford House Community Care,M48C,Adult Social Care Operations,Supplies and Services,985.60,Jun-22
Slough Borough Council,680,Oxford House Community Care,M48C,Adult Social Care Operations,Supplies and Services,573.84,Jun-22
Slough Borough Council,518,Oxford House Nursing Home,M18C,Adult Social Care Operations,Supplies and Services,"45,789.00",Jun-22
Slough Borough Council,518,Oxford House Nursing Home,M15D,Adult Social Care Operations,Supplies and Services,"3,052.60",Jun-22
Slough Borough Council,518,Oxford House Nursing Home,M15D,Adult Social Care Operations,Supplies and Services,"3,052.60",Jun-22
Slough Borough Council,518,Oxford House Nursing Home,M18C,Adult Social Care Operations,Supplies and Services,"-4,578.90",Jun-22
Slough Borough Council,518,Oxford House Nursing Home,M18C,Adult Social Care Operations,Supplies and Services,"32,052.30",Jun-22
Slough Borough Council,518,Oxford House Nursing Home,M18C,Adult Social Care Operations,Supplies and Services,"-32,052.30",Jun-22
Slough Borough Council,518,Oxford House Nursing Home,M18C,Adult Social Care Operations,Supplies and Services,"3,052.60",Jun-22
Slough Borough Council,518,Oxford House Nursing Home,M18C,Adult Social Care Operations,Supplies and Services,"3,052.60",Jun-22
Slough Borough Council,518,Oxford House Nursing Home,M18C,Adult Social Care Operations,Supplies and Services,"3,052.60",Jun-22
Slough Borough Council,518,Oxford House Nursing Home,M18C,Adult Social Care Operations,Supplies and Services,"-2,616.51",Jun-22
Slough Borough Council,518,Oxford House Nursing Home,M28C,Adult Social Care Operations,Supplies and Services,"3,052.60",Jun-22
Slough Borough Council,2520,Paradigm Housing Group Ltd,H205,Housing (People) Services,Premises,"19,371.05",Jun-22
Slough Borough Council,2520,Paradigm Housing Group Ltd,H205,Housing (People) Services,Premises,"16,062.74",Jun-22
Slough Borough Council,808255,Parker Plant Hire Ltd,B240,Business Services,Supplies and Services,540.00,Jun-22
Slough Borough Council,1468,Patrol,D123,Place Strategy & Infrastructure,Supplies and Services,"1,859.10",Jun-22
Slough Borough Council,1468,Patrol,D123,Place Strategy & Infrastructure,Supplies and Services,"1,363.50",Jun-22
Slough Borough Council,807405,PayPoint Network Ltd,B212,Customer,Supplies and Services,"6,965.75",Jun-22
Slough Borough Council,806879,Pearce Recycling Ltd,D342,Place Operations,Supplies and Services,875.70,Jun-22
Slough Borough Council,824,Penn Wood Primary and Nursery School,F550,Children & Families,Supplies and Services,"2,940.00",Jun-22
Slough Borough Council,824,Penn Wood Primary and Nursery School,F550,Children & Families,Supplies and Services,"2,310.00",Jun-22
Slough Borough Council,824,Penn Wood Primary and Nursery School,F550,Children & Families,Supplies and Services,"2,310.00",Jun-22
Slough Borough Council,824,Penn Wood Primary and Nursery School,E450,Children & Families,Supplies and Services,"313,064.82",Jun-22
Slough Borough Council,807611,Peopletoo Ltd,A01D,Adult Social Care Operations,Supplies and Services,"46,915.00",Jun-22
Slough Borough Council,1504,Permanent Futures Limited,F410,Children & Families,Supplies and Services,"1,350.00",Jun-22
Slough Borough Council,1504,Permanent Futures Limited,F410,Children & Families,Supplies and Services,"1,350.00",Jun-22
Slough Borough Council,1504,Permanent Futures Limited,F410,Children & Families,Supplies and Services,"1,800.00",Jun-22
Slough Borough Council,1504,Permanent Futures Limited,F410,Children & Families,Supplies and Services,"1,350.00",Jun-22
Slough Borough Council,1504,Permanent Futures Limited,F640,Children & Families,Supplies and Services,"1,500.00",Jun-22
Slough Borough Council,1504,Permanent Futures Limited,F640,Children & Families,Supplies and Services,"1,500.00",Jun-22
Slough Borough Council,1504,Permanent Futures Limited,F640,Children & Families,Supplies and Services,"1,500.00",Jun-22
Slough Borough Council,803786,Phillipa Holliday,C322,Community,Supplies and Services,"2,047.25",Jun-22
Slough Borough Council,807727,Phoenix Infant Academy c/o Thames Learning Trust,E620,Children & Families,Supplies and Services,"23,700.67",Jun-22
Slough Borough Council,807727,Phoenix Infant Academy c/o Thames Learning Trust,B297,Finance & Commercial,Government Grants,"1,260.00",Jun-22
Slough Borough Council,807727,Phoenix Infant Academy c/o Thames Learning Trust,B297,Finance & Commercial,Government Grants,"1,170.00",Jun-22
Slough Borough Council,3359,Pippins School,E370,Children & Families,Supplies and Services,"25,305.02",Jun-22
Slough Borough Council,904,Pitney Bowes Finance Plc,K077,Business Services,Supplies and Services,"15,028.80",Jun-22
Slough Borough Council,807120,PJ Care Limited,M15D,Adult Social Care Operations,Supplies and Services,"9,514.50",Jun-22
Slough Borough Council,3644,Poppy Cottage,M42E,Adult Social Care Operations,Supplies and Services,"3,739.39",Jun-22
Slough Borough Council,3644,Poppy Cottage,M42E,Adult Social Care Operations,Supplies and Services,"2,419.61",Jun-22
Slough Borough Council,3644,Poppy Cottage,M42E,Adult Social Care Operations,Supplies and Services,"6,159.00",Jun-22
Slough Borough Council,3644,Poppy Cottage,M42E,Adult Social Care Operations,Supplies and Services,"6,159.00",Jun-22
Slough Borough Council,806807,Poppy Radford,C322,Community,Supplies and Services,572.00,Jun-22
Slough Borough Council,1054,Powerleague Fives Ltd,C406,Community,Supplies and Services,"1,240.00",Jun-22
Slough Borough Council,805896,PPL PRS Ltd,B064,Business Services,Supplies and Services,"2,625.00",Jun-22
Slough Borough Council,2537,Pre School Stars,F909,Children & Families,Supplies and Services,"6,682.55",Jun-22
Slough Borough Council,2693,Pressbeau Ltd,M17C,Adult Social Care Operations,Supplies and Services,"2,135.71",Jun-22
Slough Borough Council,2693,Pressbeau Ltd,M17C,Adult Social Care Operations,Supplies and Services,"1,767.86",Jun-22
Slough Borough Council,2693,Pressbeau Ltd,M17C,Adult Social Care Operations,Supplies and Services,"4,821.43",Jun-22
Slough Borough Council,2693,Pressbeau Ltd,M17C,Adult Social Care Operations,Supplies and Services,"4,982.14",Jun-22
Slough Borough Council,2693,Pressbeau Ltd,M17C,Adult Social Care Operations,Supplies and Services,"-3,214.29",Jun-22
Slough Borough Council,849,Priory Primary School,E380,Children & Families,Supplies and Services,"453,974.06",Jun-22
Slough Borough Council,807130,Prism Power Limited,B064,Business Services,Premises,558.56,Jun-22
Slough Borough Council,1138,Qed Slough Ltd,F868,Children & Families,Supplies and Services,"599,548.69",Jun-22
Slough Borough Council,1138,Qed Slough Ltd,F868,Children & Families,Supplies and Services,"599,298.37",Jun-22
Slough Borough Council,1138,Qed Slough Ltd,F868,Children & Families,Supplies and Services,"4,332.48",Jun-22
Slough Borough Council,2376,Quality Care Homes Uk Ltd,M26E,Adult Social Care Operations,Supplies and Services,"1,800.00",Jun-22
Slough Borough Council,2376,Quality Care Homes Uk Ltd,M26E,Adult Social Care Operations,Supplies and Services,"1,800.00",Jun-22
Slough Borough Council,2376,Quality Care Homes Uk Ltd,M26E,Adult Social Care Operations,Supplies and Services,"1,800.00",Jun-22
Slough Borough Council,2376,Quality Care Homes Uk Ltd,M26E,Adult Social Care Operations,Supplies and Services,"1,800.00",Jun-22
Slough Borough Council,808360,Queensmead-Witherslack,F462,Children & Families,Supplies and Services,"34,012.00",Jun-22
Slough Borough Council,808360,Queensmead-Witherslack,F462,Children & Families,Supplies and Services,"12,247.50",Jun-22
Slough Borough Council,808360,Queensmead-Witherslack,F462,Children & Families,Supplies and Services,"31,027.00",Jun-22
Slough Borough Council,808200,Quest Recovery Services Ltd,A07R,Adult Social Care Operations,Supplies and Services,"1,904.00",Jun-22
Slough Borough Council,808200,Quest Recovery Services Ltd,M44C,Adult Social Care Operations,Supplies and Services,"1,456.00",Jun-22
Slough Borough Council,808200,Quest Recovery Services Ltd,M44C,Adult Social Care Operations,Supplies and Services,"1,825.00",Jun-22
Slough Borough Council,808200,Quest Recovery Services Ltd,M44C,Adult Social Care Operations,Supplies and Services,508.00,Jun-22
